Workbook

Sheet Introducción
B4: Herramienta para Respuesta de los Cultivos a Nutrientes
B5: (CNRT) v4.1
B6: Planilla de cálculo para estimar la dosis óptima económica de aplicación de nutrientes
B9: Traducción y adaptación al castellano
B10: Ing. Agr. María M. Ron
B11: Ing. Agr. Juan M. Martínez
B13: Ultima Revisión: 26/11/2012
B18: IPNI Programa Latinoamérica Cono Sur
B20: Presentación
B21: Su principal objetivo es ofrecer, a partir de datos limitados -un solo ensayo-, la mejor estimación posible de la "dosis óptima económica” (DOE) basada en la respuesta a la fertilización de un cultivo, es decir la dosis más económicamente rentable para aplicar un insumo limitante.
B23: La DOE se calcula sin tener en cuenta efectos residuales en los cultivos subsiguientes. Por lo tanto el análisis resulta de mayor practicidad para nitrógeno (N), y menos útil para nutrientes como el fósforo (P) y el potasio (K).
B25: Puede servir, además, como una herramienta para registrar datos. La hoja de cálculo de resumen provee almacenamiento en una sola fila para 1000 o más años-sitios.
B27: Para obtener los mejores resultados, los ensayos deberían tener al menos cuatro (4) dosis, y una de ellas debería ser cero (0) o menor al 25% de la dosis más alta.
B29: Las DOE se calculan a partir de curvas ajustadas sin evaluación de su significancia estadística. No se calcula la probabilidad de que no difieran de cero.
B31: La interpretación de los datos no debería basarse sólo sobre la DOE calculada. Debería incluir: i) inspección visual de la relación entre la curva ajustada y los datos originales ; y ii) conocimiento de la confiabilidad de los datos.
B34: NOTA: Para computadoras sin el complemento Solver, o si el macro "ajuste" no se puede ejecutar, las curvas de respuesta pueden ajustarse manualmente modificando sucesivamente los coeficientes ABC (Hoja C) hasta obtener "visualmente" un buen ajuste y maximizar el R2.
B37: ECUACIONES UTILIZADAS 1, 2:
B38: Cuadrática(Q)
B39: Y = A + BX + CXX
B40: DOE = (R-B)/(2C) ; A = intercepto; B = pendiente inicial; C = curvatura
B42: Cuadrática- Plateau (QP)
B43: Y = A + BX + CXX cuando X<B/-2C; de lo contrario Y=A + BB/-2C + BB/4C
B44: DOE = (R-B)/(2C) ; A = intercepto; B = pendiente inicial; C = curvatura
B46: Mitscherlich (M)
B47: Y = A + Bexp(CX)
B48: DOE = (1/B)*ln(R/(B*C)) ; A = maximo rendimiento; B = intercepto menos máximo; C = curvatura
B50: Linear-Plateau (LP)
B51: Y = A + BX cuando X < (C - A)/B; de lo contrario Y = C
B52: DOE = (C-A)/B si B>R; de lo contrario MERN = 0 ; A = intercepto; B = pendiente; C = máximo rendimiento
B54: Esférica-plateau (S)
B55: Y = A + B(3X/(2C) - 0.5(X/C)^3) cuando X < C; de lo contrario Y = A + B
B56: DOE = RAIZ(C^2 - 2*BR*C^3/(3*B)) ; A = intercepto; B = máximo menos intercepto; C = mínima dosis para máximo rendimiento
B58: 1R = relación de precios nutriente:grano
B59: 2Cuando las respuestas son casi lineales, los modelos cuadrático y llineal-plateu se acercarán a modelos lineales.
B61: *Para corregir el valor por diferencias de humedad o calidad de grano entre tratamientos de fertilización, convertir el valor en unidades de rendimiento y hacer los ajustes correspondientes a los datos ingresados.
B64: Esta planilla de cálculo fue originalmente desarrollada por el Dr. TW Bruulsema, con la aprobación del Dr. TS Murrell, Director de IPNI Centro Norte de Norteamérica
B67: Contacto del autor
B68: Tom Bruulsema, PhD, CCA
B69: Director, Northeast Region, North America Program
B70: International Plant Nutrition Institute
B71: 18 Maplewood Drive
B72: Guelph, Ontario, Canada N1G 1L8
B73: cell: (519) 835-2499
B74: email: Tom.Bruulsema@ipni.net
B75: http://www.ipni.net/cnrt
B77: Referencias:
B78: Bruulsema, TW, PE Fixen, and CS Snyder. 2004. Fertilizer Nutrient Recovery in Sustainable Cropping Systems.
B79: Snyder, CS, and TW Bruulsema. 2007. Nutrient Use Efficiency and Effectiveness in North America: Indices of Agronomic and Environmental Benefit
A84: Listas: se usan para menus desplegables en algunas de las celdas para información del sitio.
A86: cultivo antecesor
A88: Cebada
A89: Legumbres
A90: Forraje <33% leguminosa
A91: Forraje 33- 50 % leguminosa
A92: Forraje > 50 % leguminosa
A93: Maíz (para grano)
A94: Avena
A95: Maíz (para silaje
A96: Soja
A97: Trigo
A98: Trigo-trébol
A99: Cereal-trébol
A100: NA
A102: Textura del suelo
A104: Arcilloso
A105: Franco arcilloso
A106: Arcilloso pesado
A107: Franco
A108: Arenoso franco
A109: Arenoso
A110: Areno arcilloso
A111: Franco areno arcilloso
A112: Franco arenoso
A113: Franco limoso
A114: Arcillo limoso
A115: Franco limo arcilloso
A116: NA
A119: Labranza
A121: Siembra directa
A122: Labranza conservacionista
A123: cincel (en primavera)
A124: Reja (en primavera)
A125: cincel (en otoño)
A126: Reja (en otoño)
A127: Convencional
A128: NA
A131: Momento y forma de aplicación
A133: Presiembra en superficie
A134: Presiembra incorporado
A135: Preemergencia al voleo
A136: Entre líneas en superficie
A137: Entre líneas inyectado
A138: NA

Sheet A
A1: Herramienta para respuesta de cultivos a los nutrientes (CNRT) v4.1 | F1: Media ponderada por R2 | G1: Cuadrática (Q) | H1: Cuadrática- Plateau (QP) | I1: Mitscherlich (M) | J1: Lineal- Plateau (LP) | K1: Esférica- Plateau (SP)
A2: Paso 1: Ingresar datos de dosis y rendimientos. | C2: Dosis de nutriente (kg/ha) | D2: Rendimiento (kg/ha) | E2: A: | G2: 2445.0852 | H2: 2435.751486 | I2: 3077.528205 | J2: 2428.000127 | K2: 2435.409867
A3: Paso 2: Ingresar datos del sitio, precios de los cultivos y de los fertilizantes | E3: B: | G3: 14.20097038 | H3: 15.83547847 | I3: -650.6463484 | J3: 13.90003004 | K3: 610.908712
A4: Paso 3: Cliquear el botón "Ajustar" | E4: C: | G4: -0.07761913422 | H4: -0.1010508748 | I4: -0.03486948056 | J4: 3038.99947 | K4: 66.03815943
A5: Paso 4: Cliquear para agregar información a la hoja Resumen | C5: 0 | D5: 2428 | E5: R2: | G5: =IF(ISERROR(1-((SUM('C'!G5:G40)/COUNT('C'!G5:G40))/VAR($D5:$D40))),"no data",1-((SUM('C'!G5:G40)/COUNT('C'!G5:G40))/VAR($D5:$D40))) -> 0.9912943111 | H5: =IF(ISERROR(1-((SUM('C'!H5:H40)/COUNT('C'!H5:H40))/VAR($D5:$D40))),"no data",1-((SUM('C'!H5:H40)/COUNT('C'!H5:H40))/VAR($D5:$D40))) -> 0.9911699226 | I5: =IF(ISERROR(1-((SUM('C'!I5:I40)/COUNT('C'!I5:I40))/VAR($D5:$D40))),"no data",1-((SUM('C'!I5:I40)/COUNT('C'!I5:I40))/VAR($D5:$D40))) -> 0.9930765112 | J5: =IF(ISERROR(1-((SUM('C'!J5:J40)/COUNT('C'!J5:J40))/VAR($D5:$D40))),"no data",1-((SUM('C'!J5:J40)/COUNT('C'!J5:J40))/VAR($D5:$D40))) -> 0.9860311784 | K5: =IF(ISERROR(1-((SUM('C'!K5:K40)/COUNT('C'!K5:K40))/VAR($D5:$D40))),"no data",1-((SUM('C'!K5:K40)/COUNT('C'!K5:K40))/VAR($D5:$D40))) -> 0.9863088565
A6: DATOS DEL SITIO | C6: 30 | D6: 2845 | E6: DOE (kg/ha): | F6: =IF(AND(ISNUMBER(G5),ISNUMBER(B29),'C'!M49),(G6*G$5+H6*H$5+I6*I$5+J6*J$5+K6*K$5)/SUM(G$5:K$5),"NA") -> 37.85349478 | G6: =IF(AND(ISNUMBER(G5),ISNUMBER(B29),'C'!M49),MIN((1+0.1*G5)*MAX($C5:$C40),IF(G4<0,MAX((G3-B29)/(-2*G4),0),IF(G3>B29,MAX($C5:$C40),0))),"NA$") -> 37.79761977 | H6: =IF(AND(ISNUMBER(H5),ISNUMBER(B29),'C'!M49),MIN((1+0.1*H5)*MAX($C5:$C40),IF(H4<0,MAX((H3-B29)/(-2*H4),0),IF(H3>B29,MAX($C5:$C40),0))),"NA$") -> 37.12063429 | I6: =IF(AND(ISNUMBER(I5),ISNUMBER(B29),'C'!M49),MIN((1+0.1*I5)*MAX($C5:$C40),MAX((1/I4)*LN(B29/(I3*I4)),0)),"NA$") -> 28.72309492 | J6: =IF(AND(ISNUMBER(J5),ISNUMBER(B29),'C'!M49),MIN((1+0.1*J5)*MAX($C5:$C40),IF(J3>B29,(J4-J2)/J3,0)),"NA$") -> 43.95669233 | K6: =IF(AND(ISNUMBER(K5),ISNUMBER(B29),'C'!M49),IF(ISNUMBER(SQRT(K4^2-2*B29*K4^3/(3*K3))),MIN((1+0.1*K5)*MAX($C5:$C40),SQRT(K4^2-2*B29*K4^3/(3*K3))),0),"NA$") -> 41.73769434
A7: Sitio | B7: INTA Bordenave | C7: 60 | D7: 2989 | E7: Rendimiento @ DOE (kg/ha) | F7: =IF(ISNUMBER(F6),VLOOKUP(F6,'C'!B44:H294,7),"NA") -> 2887.27323 | G7: =IF(ISNUMBER(G6),G2+G3*G6+G4*G6^2,"NA") -> 2870.956722 | H7: =IF(ISNUMBER(H6),H2+H3*H6+H4*H6^2,"NA") -> 2884.332298 | I7: =IF(ISNUMBER(I6),I2+I3*EXP(I6*I4),"NA") -> 2838.541756 | J7: =IF(ISNUMBER(J6),IF(J3>'C'!O22,MIN(J4,J2+J3*J6),J2),"NA") -> 3038.99947 | K7: =IF(AND(ISNUMBER(K6),K6>0),IF(K6<A!K$4,A!K$2+A!K$3*(3*K6/(2*A!K$4)-0.5*(K6/A!K$4)^3),A!K$3+A!K$2),"NA") -> 2937.456807
A8: Año | B8: xxxxxx | C8: 90 | D8: 3089 | E8: Productividad Parcial del Factor (PPF) | F8: =IF(ISNUMBER(F7/F6),F7/F6,"NA") -> 76.27494495 | G8: 75.95601891 | H8: 77.70158979 | I8: 98.82436987 | J8: 69.13621815 | K8: 70.37899083
A9: Localidad | B9: Bordenave | C9: 120 | D9: 3039 | E9: Efficiencia Agronómica (EAN) | F9: =IF(ISNUMBER(F12/F6),F12/F6,"NA") -> 11.96837386 | G9: =IF(ISNUMBER((G7-G2)/G6),(G7-G2)/G6,"NA") -> 11.26715186 | H9: =IF(ISNUMBER((H7-H2)/H6),(H7-H2)/H6,"NA") -> 12.0844059 | I9: =IF(ISNUMBER((I7-(I2+I3))/I6),(I7-(I2+I3))/I6,"NA") -> 14.33201752 | J9: =IF(ISNUMBER((J7-J2)/J6),(J7-J2)/J6,"NA") -> 13.90003004 | K9: =IF(ISNUMBER((K7-K2)/K6),(K7-K2)/K6,"NA") -> 12.02862179
A10: Partido o Departamento | B10: Puan | E10: Balance Parcial de Nutriente (BPN): | F10: =IF(AND(F6>0,ISNUMBER(F6)),F7*B30/(F6+B25),"NA") -> 1.525498899 | G10: =IF(AND(G6>0,ISNUMBER(G6)),G7*$B30/(G6+$B24),"NA") -> 1.519120378 | H10: =IF(AND(H6>0,ISNUMBER(H6)),H7*$B30/(H6+$B24),"NA") -> 1.554031796 | I10: =IF(AND(I6>0,ISNUMBER(I6)),I7*$B30/(I6+$B25),"NA") -> 1.976487397 | J10: =IF(AND(J6>0,ISNUMBER(J6)),J7*B30/(J6+B25),"NA") -> 1.382724363 | K10: =IF(AND(K6>0,ISNUMBER(K6)),K7*$B30/(K6+$B24),"NA") -> 1.407579817
A11: Estado o Provincia | B11: Buenos Aires | E11: Eficiencia de Recuperación (ERN) | F11: =IF(AND(F6>0,ISNUMBER(F6)),(F12/F6)*B30*(1/B31),"NA") -> 0.3572648915 | G11: =IF(AND(G6>0,ISNUMBER(G6)),((G7-G2)*$B30*(1/$B31))/G6,"NA") -> 0.3363328912 | H11: =IF(AND(H6>0,ISNUMBER(H6)),((H7-H2)*$B30*(1/$B31))/H6,"NA") -> 0.3607285344 | I11: =IF(AND(I6>0,ISNUMBER(I6)),((I7-(I2+I3))*B30*(1/B31))/I6,"NA") -> 0.4278214184 | J11: =IF(AND(J6>0,ISNUMBER(J6)),J3*B30*(1/B31),"NA") -> 0.4149262698 | K11: =IF(AND(K6>0,ISNUMBER(K6)),((K7-K2)*$B30*(1/$B31))/K6,"NA") -> 0.3590633371
A12: Latitud | E12: Δ Rendimiento (kg/ha) | F12: =IF(ISNUMBER(F7),F7-VLOOKUP(0,'C'!B44:H294,7),"NA") -> 453.0447776 | G12: =IF(ISNUMBER(G7),G7-G2,"NA") -> 425.8715217 | H12: =IF(ISNUMBER(H7),H7-H2,"NA") -> 448.5808121 | I12: =IF(ISNUMBER(I7),I7-(I2+I3),"NA") -> 411.6598995 | J12: =IF(ISNUMBER(J7),J7-J2,"NA") -> 610.9993438 | K12: =IF(ISNUMBER(K7),K7-K2,"NA") -> 502.0469398
A13: Longitud | E13: Rendimiento Relativo (%) | F13: =IF(ISNUMBER(F7),(F7-F12)/F7,"NA") -> 0.8430890527 | G13: =IF(ISNUMBER(G7),G2/G7,"NA") -> 0.851662159 | H13: =IF(ISNUMBER(H7),H2/H7,"NA") -> 0.8444767226 | I13: =IF(ISNUMBER(I7),(I2+I3)/I7,"NA") -> 0.8549748657 | J13: =IF(ISNUMBER(J7),J2/J7,"NA") -> 0.7989472029 | K13: =IF(ISNUMBER(K7),K2/K7,"NA") -> 0.8290878904
A14: Altitud | E14: Ganancia neta (kg/ha) | F14: =IF(ISNUMBER(F12),F12-(F6*$B$29),"NA") -> 137.5989878 | G14: =IF(ISNUMBER(G12),G12-(G6*$B$29),"NA") -> 110.891357 | H14: =IF(ISNUMBER(H12),H12-(H6*$B$29),"NA") -> 139.242193 | I14: 172.3007752 | J14: 244.6935743 | K14: 154.2328203
A15: Clase textural | B15: Franco arenoso
A16: Cultivo antecesor | B16: Trigo
A17: Rendimiento esperado (kg/ha)
A18: Momento y forma de aplicación | B18: Preemergencia al voleo
A19: Sistema de labranza | B19: Labranza conservacionista
A20: Grados-día del sitio
A21: Cultivo | B21: trigo
A22: Cultivar
A23: N-nitratos (mg/kg)
A24: N de estiércol (kg/ha)
A25: Fecha de siembra
A26: Fecha de cosecha
A27: Precio Cultivo ($/kg) | B27: 120
A28: Costo Nutriente del fertilizante ($/kg) | B28: 1000
A29: Relación de precios | B29: =B28/B27 -> 8.333333333
A30: Contenido de N del cultivo (kg N/kg grano) | B30: 0.02
A31: Indice de cosecha de N | B31: 0.67
A32: Fuente fertilizante | B32: Urea

Sheet Resumen
A1: Resumen base de datos de múltiples años-sitios | D1: =COUNTA(A5:A957) -> 0 | G1: El año-sitio actual se muestra en la fila 4- No borrar
A3: =A!A7 -> Sitio | B3: =A!A8 -> Año | C3: =A!A9 -> Localidad | D3: =A!A10 -> Partido o Departamento | E3: =A!A11 -> Estado o Provincia | F3: =A!A12 -> Latitud | G3: =A!A13 -> Longitud | H3: =A!A14 -> Altitud | I3: =A!A15 -> Clase textural | J3: =A!A16 -> Cultivo antecesor | K3: =A!A17 -> Rendimiento esperado (kg/ha) | L3: =A!A18 -> Momento y forma de aplicación | M3: =A!A19 -> Sistema de labranza | N3: =A!A20 -> Grados-día del sitio | O3: =A!A21 -> Cultivo | P3: =A!A22 -> Cultivar | Q3: =A!A23 -> N-nitratos (mg/kg) | R3: =A!A24 -> N de estiércol (kg/ha) | S3: =A!A25 -> Fecha de siembra | T3: =A!A26 -> Fecha de cosecha | U3: =A!A27 -> Precio Cultivo ($/kg) | V3: =A!A28 -> Costo Nutriente del fertilizante ($/kg) | W3: =A!A29 -> Relación de precios | X3: =A!A30 -> Contenido de N del cultivo (kg N/kg grano) | Y3: =A!A31 -> Indice de cosecha de N | Z3: =A!A32 -> Fuente fertilizante | AA3: =A!A33 -> 0 | AB3: =A!A34 -> 0 | AC3: =A!A35 -> 0 | AD3: =A!A36 -> 0 | AE3: =A!A37 -> 0 | AF3: =A!A38 -> 0 | AG3: =A!A39 -> 0 | AH3: =A!A40 -> 0 | AI3: =A!E6 -> DOE (kg/ha): | AJ3: =A!E7 -> Rendimiento @ DOE (kg/ha) | AK3: PFP | AL3: AEN | AM3: PNB | AN3: REN | AO3: =A!E12 -> Δ Rendimiento (kg/ha) | AP3: =A!E13 -> Rendimiento Relativo (%) | AQ3: QA | AR3: QB | AS3: QC | AT3: QPA | AU3: QPB | AV3: QPC | AW3: MA | AX3: MB | AY3: MC | AZ3: LPA | BA3: LPB | BB3: LPC | BC3: SA | BD3: SB | BE3: SC | BF3: QR2 | BG3: QPR2 | BH3: MR2 | BI3: LPR2 | BJ3: SR2
A4: =A!B7 -> INTA Bordenave | B4: =A!B8 -> xxxxxx | C4: =A!B9 -> Bordenave | D4: =A!B10 -> Puan | E4: =A!B11 -> Buenos Aires | F4: =A!B12 -> 0 | G4: =A!B13 -> 0 | H4: =A!B14 -> 0 | I4: =A!B15 -> Franco arenoso | J4: =A!B16 -> Trigo | K4: =A!B17 -> 0 | L4: =A!B18 -> Preemergencia al voleo | M4: =A!B19 -> Labranza conservacionista | N4: =A!B20 -> 0 | O4: =A!B21 -> trigo | P4: =A!B22 -> 0 | Q4: =A!B23 -> 0 | R4: =A!B24 -> 0 | S4: =A!B25 -> 0 | T4: =A!B26 -> 0 | U4: =A!B27 -> 120 | V4: =A!B28 -> 1000 | W4: =A!B29 -> 8.333333333 | X4: =A!B30 -> 0.02 | Y4: =A!B31 -> 0.67 | Z4: =A!B32 -> Urea | AA4: =A!B33 -> 0 | AB4: =A!B34 -> 0 | AC4: =A!B35 -> 0 | AD4: =A!B36 -> 0 | AE4: =A!B37 -> 0 | AF4: =A!B38 -> 0 | AG4: =A!B39 -> 0 | AH4: =A!B40 -> 0 | AI4: =A!F6 -> 37.85349478 | AJ4: =A!F7 -> 2887.27323 | AK4: =A!F8 -> 76.27494495 | AL4: =A!F9 -> 11.96837386 | AM4: =A!F10 -> 1.525498899 | AN4: =A!F11 -> 0.3572648915 | AO4: =A!F12 -> 453.0447776 | AP4: =A!F13 -> 0.8430890527 | AQ4: =A!G2 -> 2445.0852 | AR4: =A!G3 -> 14.20097038 | AS4: =A!G4 -> -0.07761913422 | AT4: =A!H2 -> 2435.751486 | AU4: =A!H3 -> 15.83547847 | AV4: =A!H4 -> -0.1010508748 | AW4: =A!I2 -> 3077.528205 | AX4: =A!I3 -> -650.6463484 | AY4: =A!I4 -> -0.03486948056 | AZ4: =A!J2 -> 2428.000127 | BA4: =A!J3 -> 13.90003004 | BB4: =A!J4 -> 3038.99947 | BC4: =A!K2 -> 2435.409867 | BD4: =A!K3 -> 610.908712 | BE4: =A!K4 -> 66.03815943 | BF4: =A!G5 -> 0.9912943111 | BG4: =A!H5 -> 0.9911699226 | BH4: =A!I5 -> 0.9930765112 | BI4: =A!J5 -> 0.9860311784 | BJ4: =A!K5 -> 0.9863088565

Sheet C
A1: Hoja para cálculos - No ingresar datos aquí
B3: Valores predichos por la curva | G3: (Predicho menos observado) al cuadrado
A4: Obs | B4: Q | C4: QP | D4: M | E4: LP | F4: S | G4: Q | H4: QP | I4: M | J4: LP | K4: S | M4: Información Técnica
A5: 1 | B5: =IF(ISNUMBER(A!C5),A!G$2+A!G$3*A!C5+A!G$4*A!C5^2,"") -> 2445.0852 | C5: =IF(ISNUMBER(A!C5),IF(A!C5<(A!H$3/(-2*A!H$4)),A!H$2+A!H$3*A!C5+A!H$4*A!C5^2,A!H$2+A!H$3*(A!H$3/(-2*A!H$4))+A!H$4*(A!H$3/(-2*A!H$4))^2),"") -> 2435.751486 | D5: =IF(ISNUMBER(A!C5),A!I$2+A!I$3*EXP(A!I$4*A!C5),"") -> 2426.881857 | E5: =IF(ISNUMBER(A!C5),IF((A!J$2+A!J$3*A!C5)<A!J$4,A!J$2+A!J$3*A!C5,A!J$4),"") -> 2428.000127 | F5: =IF(ISNUMBER(A!C5),IF(A!C5<A!K$4,A!K$2+A!K$3*(3*A!C5/(2*A!K$4)-0.5*(A!C5/A!K$4)^3),A!K$3+A!K$2),"") -> 2435.409867 | G5: =IF(ISNUMBER(A!$C5),(B5-A!$D5)^2,"") -> 291.9040642 | H5: =IF(ISNUMBER(A!$C5),(C5-A!$D5)^2,"") -> 60.08553694 | I5: =IF(ISNUMBER(A!$C5),(D5-A!$D5)^2,"") -> 1.250244783 | J5: =IF(ISNUMBER(A!$C5),(E5-A!$D5)^2,"") -> 1.603911576e-08 | K5: =IF(ISNUMBER(A!$C5),(F5-A!$D5)^2,"") -> 54.90613426 | N5: Restricciones:
A6: =A5+1 -> 2 | B6: =IF(ISNUMBER(A!C6),A!G$2+A!G$3*A!C6+A!G$4*A!C6^2,"") -> 2801.257091 | C6: =IF(ISNUMBER(A!C6),IF(A!C6<(A!H$3/(-2*A!H$4)),A!H$2+A!H$3*A!C6+A!H$4*A!C6^2,A!H$2+A!H$3*(A!H$3/(-2*A!H$4))+A!H$4*(A!H$3/(-2*A!H$4))^2),"") -> 2819.870053 | D6: =IF(ISNUMBER(A!C6),A!I$2+A!I$3*EXP(A!I$4*A!C6),"") -> 2848.949216 | E6: =IF(ISNUMBER(A!C6),IF((A!J$2+A!J$3*A!C6)<A!J$4,A!J$2+A!J$3*A!C6,A!J$4),"") -> 2845.001028 | F6: =IF(ISNUMBER(A!C6),IF(A!C6<A!K$4,A!K$2+A!K$3*(3*A!C6/(2*A!K$4)-0.5*(A!C6/A!K$4)^3),A!K$3+A!K$2),"") -> 2823.061001 | G6: =IF(ISNUMBER(A!$C6),(B6-A!$D6)^2,"") -> 1913.442117 | H6: =IF(ISNUMBER(A!$C6),(C6-A!$D6)^2,"") -> 631.5142422 | I6: =IF(ISNUMBER(A!$C6),(D6-A!$D6)^2,"") -> 15.59630876 | J6: =IF(ISNUMBER(A!$C6),(E6-A!$D6)^2,"") -> 1.056317032e-06 | K6: =IF(ISNUMBER(A!$C6),(F6-A!$D6)^2,"") -> 481.319692 | N6: Máximo | S6: Mínimo | X6: Tolerancia
A7: =A6+1 -> 3 | B7: =IF(ISNUMBER(A!C7),A!G$2+A!G$3*A!C7+A!G$4*A!C7^2,"") -> 3017.71454 | C7: =IF(ISNUMBER(A!C7),IF(A!C7<(A!H$3/(-2*A!H$4)),A!H$2+A!H$3*A!C7+A!H$4*A!C7^2,A!H$2+A!H$3*(A!H$3/(-2*A!H$4))+A!H$4*(A!H$3/(-2*A!H$4))^2),"") -> 3022.097045 | D7: =IF(ISNUMBER(A!C7),A!I$2+A!I$3*EXP(A!I$4*A!C7),"") -> 2997.225973 | E7: =IF(ISNUMBER(A!C7),IF((A!J$2+A!J$3*A!C7)<A!J$4,A!J$2+A!J$3*A!C7,A!J$4),"") -> 3038.99947 | F7: =IF(ISNUMBER(A!C7),IF(A!C7<A!K$4,A!K$2+A!K$3*(3*A!C7/(2*A!K$4)-0.5*(A!C7/A!K$4)^3),A!K$3+A!K$2),"") -> 3038.891049 | G7: =IF(ISNUMBER(A!$C7),(B7-A!$D7)^2,"") -> 824.5247837 | H7: =IF(ISNUMBER(A!$C7),(C7-A!$D7)^2,"") -> 1095.414388 | I7: =IF(ISNUMBER(A!$C7),(D7-A!$D7)^2,"") -> 67.66662902 | J7: =IF(ISNUMBER(A!$C7),(E7-A!$D7)^2,"") -> 2499.947043 | K7: =IF(ISNUMBER(A!$C7),(F7-A!$D7)^2,"") -> 2489.116802 | N7: Q | O7: QP | P7: M | Q7: LP | R7: S | S7: Q | T7: QP | U7: M | V7: LP | W7: S | X7: de ajuste
A8: 4 | B8: =IF(ISNUMBER(A!C8),A!G$2+A!G$3*A!C8+A!G$4*A!C8^2,"") -> 3094.457547 | C8: =IF(ISNUMBER(A!C8),IF(A!C8<(A!H$3/(-2*A!H$4)),A!H$2+A!H$3*A!C8+A!H$4*A!C8^2,A!H$2+A!H$3*(A!H$3/(-2*A!H$4))+A!H$4*(A!H$3/(-2*A!H$4))^2),"") -> 3056.137947 | D8: =IF(ISNUMBER(A!C8),A!I$2+A!I$3*EXP(A!I$4*A!C8),"") -> 3049.317176 | E8: =IF(ISNUMBER(A!C8),IF((A!J$2+A!J$3*A!C8)<A!J$4,A!J$2+A!J$3*A!C8,A!J$4),"") -> 3038.99947 | F8: =IF(ISNUMBER(A!C8),IF(A!C8<A!K$4,A!K$2+A!K$3*(3*A!C8/(2*A!K$4)-0.5*(A!C8/A!K$4)^3),A!K$3+A!K$2),"") -> 3046.318579 | G8: =IF(ISNUMBER(A!$C8),(B8-A!$D8)^2,"") -> 29.78481829 | H8: =IF(ISNUMBER(A!$C8),(C8-A!$D8)^2,"") -> 1079.914526 | I8: =IF(ISNUMBER(A!$C8),(D8-A!$D8)^2,"") -> 1574.726527 | J8: =IF(ISNUMBER(A!$C8),(E8-A!$D8)^2,"") -> 2500.052958 | K8: =IF(ISNUMBER(A!$C8),(F8-A!$D8)^2,"") -> 1821.703669 | M8: A | N8: =(1+X8)*MIN(A!D5:D40) -> 3156.4 | O8: =N8 -> 3156.4 | P8: =(1+X8)*MAX(A!D5:D40) -> 4015.7 | Q8: =N8 -> 3156.4 | R8: =N8 -> 3156.4 | S8: =MAX((1-X8)*MIN(A!D5:D40)-(1+X8)*MIN(A!C5:C40)*(1/O20),0.5*MIN(A!D5:D40)) -> 1699.6 | T8: =S8 -> 1699.6 | U8: =(1-X8)*MAX(A!D5:D40) -> 2162.3 | V8: =S8 -> 1699.6 | W8: =S8 -> 1699.6 | X8: 0.3
A9: 5 | B9: =IF(ISNUMBER(A!C9),A!G$2+A!G$3*A!C9+A!G$4*A!C9^2,"") -> 3031.486113 | C9: =IF(ISNUMBER(A!C9),IF(A!C9<(A!H$3/(-2*A!H$4)),A!H$2+A!H$3*A!C9+A!H$4*A!C9^2,A!H$2+A!H$3*(A!H$3/(-2*A!H$4))+A!H$4*(A!H$3/(-2*A!H$4))^2),"") -> 3056.137947 | D9: =IF(ISNUMBER(A!C9),A!I$2+A!I$3*EXP(A!I$4*A!C9),"") -> 3067.61737 | E9: =IF(ISNUMBER(A!C9),IF((A!J$2+A!J$3*A!C9)<A!J$4,A!J$2+A!J$3*A!C9,A!J$4),"") -> 3038.99947 | F9: =IF(ISNUMBER(A!C9),IF(A!C9<A!K$4,A!K$2+A!K$3*(3*A!C9/(2*A!K$4)-0.5*(A!C9/A!K$4)^3),A!K$3+A!K$2),"") -> 3046.318579 | G9: =IF(ISNUMBER(A!$C9),(B9-A!$D9)^2,"") -> 56.45850326 | H9: =IF(ISNUMBER(A!$C9),(C9-A!$D9)^2,"") -> 293.7092278 | I9: =IF(ISNUMBER(A!$C9),(D9-A!$D9)^2,"") -> 818.953872 | J9: =IF(ISNUMBER(A!$C9),(E9-A!$D9)^2,"") -> 2.804515694e-07 | K9: =IF(ISNUMBER(A!$C9),(F9-A!$D9)^2,"") -> 53.56160373 | M9: B | N9: =O21*(1+X9)/O20 -> 63.65 | O9: =N9 -> 63.65 | P9: =MIN(-0.0000001,N8-U8) -> -1e-07 | Q9: =O21*(1+0.5*X9)/O20 -> 48.575 | R9: =-1*U9 -> 1389.4 | S9: 0 | T9: 0 | U9: =S8-Q10 -> -1389.4 | V9: =S9 -> 0 | W9: =-1*P9 -> 1e-07 | X9: 0.9
A10: 6 | B10: =IF(ISNUMBER(A!C10),A!G$2+A!G$3*A!C10+A!G$4*A!C10^2,"") ->  | C10: =IF(ISNUMBER(A!C10),IF(A!C10<(A!H$3/(-2*A!H$4)),A!H$2+A!H$3*A!C10+A!H$4*A!C10^2,A!H$2+A!H$3*(A!H$3/(-2*A!H$4))+A!H$4*(A!H$3/(-2*A!H$4))^2),"") ->  | D10: =IF(ISNUMBER(A!C10),A!I$2+A!I$3*EXP(A!I$4*A!C10),"") ->  | E10: =IF(ISNUMBER(A!C10),IF((A!J$2+A!J$3*A!C10)<A!J$4,A!J$2+A!J$3*A!C10,A!J$4),"") ->  | F10: =IF(ISNUMBER(A!C10),IF(A!C10<A!K$4,A!K$2+A!K$3*(3*A!C10/(2*A!K$4)-0.5*(A!C10/A!K$4)^3),A!K$3+A!K$2),"") ->  | G10: =IF(ISNUMBER(A!$C10),(B10-A!$D10)^2,"") ->  | H10: =IF(ISNUMBER(A!$C10),(C10-A!$D10)^2,"") ->  | I10: =IF(ISNUMBER(A!$C10),(D10-A!$D10)^2,"") ->  | J10: =IF(ISNUMBER(A!$C10),(E10-A!$D10)^2,"") ->  | K10: =IF(ISNUMBER(A!$C10),(F10-A!$D10)^2,"") ->  | M10: C | N10: -1e-07 | O10: -1e-07 | P10: -1e-07 | Q10: =MAX(A!D5:D40) -> 3089 | R10: =M44 -> 120 | S10: -1 | T10: -1 | U10: =(O21*(1+X10)/O20)/AVERAGE(P9,U9) -> -0.06268893047 | V10: =(1-(X8/2))*MAX(A!D5:D40) -> 2625.65 | W10: 0 | X10: 0.3
A11: 7 | B11: =IF(ISNUMBER(A!C11),A!G$2+A!G$3*A!C11+A!G$4*A!C11^2,"") ->  | C11: =IF(ISNUMBER(A!C11),IF(A!C11<(A!H$3/(-2*A!H$4)),A!H$2+A!H$3*A!C11+A!H$4*A!C11^2,A!H$2+A!H$3*(A!H$3/(-2*A!H$4))+A!H$4*(A!H$3/(-2*A!H$4))^2),"") ->  | D11: =IF(ISNUMBER(A!C11),A!I$2+A!I$3*EXP(A!I$4*A!C11),"") ->  | E11: =IF(ISNUMBER(A!C11),IF((A!J$2+A!J$3*A!C11)<A!J$4,A!J$2+A!J$3*A!C11,A!J$4),"") ->  | F11: =IF(ISNUMBER(A!C11),IF(A!C11<A!K$4,A!K$2+A!K$3*(3*A!C11/(2*A!K$4)-0.5*(A!C11/A!K$4)^3),A!K$3+A!K$2),"") ->  | G11: =IF(ISNUMBER(A!$C11),(B11-A!$D11)^2,"") ->  | H11: =IF(ISNUMBER(A!$C11),(C11-A!$D11)^2,"") ->  | I11: =IF(ISNUMBER(A!$C11),(D11-A!$D11)^2,"") ->  | J11: =IF(ISNUMBER(A!$C11),(E11-A!$D11)^2,"") ->  | K11: =IF(ISNUMBER(A!$C11),(F11-A!$D11)^2,"") -> 
A12: 8 | B12: =IF(ISNUMBER(A!C12),A!G$2+A!G$3*A!C12+A!G$4*A!C12^2,"") ->  | C12: =IF(ISNUMBER(A!C12),IF(A!C12<(A!H$3/(-2*A!H$4)),A!H$2+A!H$3*A!C12+A!H$4*A!C12^2,A!H$2+A!H$3*(A!H$3/(-2*A!H$4))+A!H$4*(A!H$3/(-2*A!H$4))^2),"") ->  | D12: =IF(ISNUMBER(A!C12),A!I$2+A!I$3*EXP(A!I$4*A!C12),"") ->  | E12: =IF(ISNUMBER(A!C12),IF((A!J$2+A!J$3*A!C12)<A!J$4,A!J$2+A!J$3*A!C12,A!J$4),"") ->  | F12: =IF(ISNUMBER(A!C12),IF(A!C12<A!K$4,A!K$2+A!K$3*(3*A!C12/(2*A!K$4)-0.5*(A!C12/A!K$4)^3),A!K$3+A!K$2),"") ->  | G12: =IF(ISNUMBER(A!$C12),(B12-A!$D12)^2,"") ->  | H12: =IF(ISNUMBER(A!$C12),(C12-A!$D12)^2,"") ->  | I12: =IF(ISNUMBER(A!$C12),(D12-A!$D12)^2,"") ->  | J12: =IF(ISNUMBER(A!$C12),(E12-A!$D12)^2,"") ->  | K12: =IF(ISNUMBER(A!$C12),(F12-A!$D12)^2,"") -> 
A13: 9 | B13: =IF(ISNUMBER(A!C13),A!G$2+A!G$3*A!C13+A!G$4*A!C13^2,"") ->  | C13: =IF(ISNUMBER(A!C13),IF(A!C13<(A!H$3/(-2*A!H$4)),A!H$2+A!H$3*A!C13+A!H$4*A!C13^2,A!H$2+A!H$3*(A!H$3/(-2*A!H$4))+A!H$4*(A!H$3/(-2*A!H$4))^2),"") ->  | D13: =IF(ISNUMBER(A!C13),A!I$2+A!I$3*EXP(A!I$4*A!C13),"") ->  | E13: =IF(ISNUMBER(A!C13),IF((A!J$2+A!J$3*A!C13)<A!J$4,A!J$2+A!J$3*A!C13,A!J$4),"") ->  | F13: =IF(ISNUMBER(A!C13),IF(A!C13<A!K$4,A!K$2+A!K$3*(3*A!C13/(2*A!K$4)-0.5*(A!C13/A!K$4)^3),A!K$3+A!K$2),"") ->  | G13: =IF(ISNUMBER(A!$C13),(B13-A!$D13)^2,"") ->  | H13: =IF(ISNUMBER(A!$C13),(C13-A!$D13)^2,"") ->  | I13: =IF(ISNUMBER(A!$C13),(D13-A!$D13)^2,"") ->  | J13: =IF(ISNUMBER(A!$C13),(E13-A!$D13)^2,"") ->  | K13: =IF(ISNUMBER(A!$C13),(F13-A!$D13)^2,"") ->  | N13: Datos para los gráficos
A14: 10 | B14: =IF(ISNUMBER(A!C14),A!G$2+A!G$3*A!C14+A!G$4*A!C14^2,"") ->  | C14: =IF(ISNUMBER(A!C14),IF(A!C14<(A!H$3/(-2*A!H$4)),A!H$2+A!H$3*A!C14+A!H$4*A!C14^2,A!H$2+A!H$3*(A!H$3/(-2*A!H$4))+A!H$4*(A!H$3/(-2*A!H$4))^2),"") ->  | D14: =IF(ISNUMBER(A!C14),A!I$2+A!I$3*EXP(A!I$4*A!C14),"") ->  | E14: =IF(ISNUMBER(A!C14),IF((A!J$2+A!J$3*A!C14)<A!J$4,A!J$2+A!J$3*A!C14,A!J$4),"") ->  | F14: =IF(ISNUMBER(A!C14),IF(A!C14<A!K$4,A!K$2+A!K$3*(3*A!C14/(2*A!K$4)-0.5*(A!C14/A!K$4)^3),A!K$3+A!K$2),"") ->  | G14: =IF(ISNUMBER(A!$C14),(B14-A!$D14)^2,"") ->  | H14: =IF(ISNUMBER(A!$C14),(C14-A!$D14)^2,"") ->  | I14: =IF(ISNUMBER(A!$C14),(D14-A!$D14)^2,"") ->  | J14: =IF(ISNUMBER(A!$C14),(E14-A!$D14)^2,"") ->  | K14: =IF(ISNUMBER(A!$C14),(F14-A!$D14)^2,"") ->  | N14: Dosis óptima económica | S14: Rendimiento a la dosis óptima económica | X14: Media | Y14: Media
A15: 11 | B15: =IF(ISNUMBER(A!C15),A!G$2+A!G$3*A!C15+A!G$4*A!C15^2,"") ->  | C15: =IF(ISNUMBER(A!C15),IF(A!C15<(A!H$3/(-2*A!H$4)),A!H$2+A!H$3*A!C15+A!H$4*A!C15^2,A!H$2+A!H$3*(A!H$3/(-2*A!H$4))+A!H$4*(A!H$3/(-2*A!H$4))^2),"") ->  | D15: =IF(ISNUMBER(A!C15),A!I$2+A!I$3*EXP(A!I$4*A!C15),"") ->  | E15: =IF(ISNUMBER(A!C15),IF((A!J$2+A!J$3*A!C15)<A!J$4,A!J$2+A!J$3*A!C15,A!J$4),"") ->  | F15: =IF(ISNUMBER(A!C15),IF(A!C15<A!K$4,A!K$2+A!K$3*(3*A!C15/(2*A!K$4)-0.5*(A!C15/A!K$4)^3),A!K$3+A!K$2),"") ->  | G15: =IF(ISNUMBER(A!$C15),(B15-A!$D15)^2,"") ->  | H15: =IF(ISNUMBER(A!$C15),(C15-A!$D15)^2,"") ->  | I15: =IF(ISNUMBER(A!$C15),(D15-A!$D15)^2,"") ->  | J15: =IF(ISNUMBER(A!$C15),(E15-A!$D15)^2,"") ->  | K15: =IF(ISNUMBER(A!$C15),(F15-A!$D15)^2,"") ->  | N15: Q | O15: QP | P15: M | Q15: LP | R15: S | S15: Q | T15: QP | U15: M | V15: LP | W15: S | X15: MERN | Y15: Y@mern
A16: 12 | B16: =IF(ISNUMBER(A!C16),A!G$2+A!G$3*A!C16+A!G$4*A!C16^2,"") ->  | C16: =IF(ISNUMBER(A!C16),IF(A!C16<(A!H$3/(-2*A!H$4)),A!H$2+A!H$3*A!C16+A!H$4*A!C16^2,A!H$2+A!H$3*(A!H$3/(-2*A!H$4))+A!H$4*(A!H$3/(-2*A!H$4))^2),"") ->  | D16: =IF(ISNUMBER(A!C16),A!I$2+A!I$3*EXP(A!I$4*A!C16),"") ->  | E16: =IF(ISNUMBER(A!C16),IF((A!J$2+A!J$3*A!C16)<A!J$4,A!J$2+A!J$3*A!C16,A!J$4),"") ->  | F16: =IF(ISNUMBER(A!C16),IF(A!C16<A!K$4,A!K$2+A!K$3*(3*A!C16/(2*A!K$4)-0.5*(A!C16/A!K$4)^3),A!K$3+A!K$2),"") ->  | G16: =IF(ISNUMBER(A!$C16),(B16-A!$D16)^2,"") ->  | H16: =IF(ISNUMBER(A!$C16),(C16-A!$D16)^2,"") ->  | I16: =IF(ISNUMBER(A!$C16),(D16-A!$D16)^2,"") ->  | J16: =IF(ISNUMBER(A!$C16),(E16-A!$D16)^2,"") ->  | K16: =IF(ISNUMBER(A!$C16),(F16-A!$D16)^2,"") ->  | N16: =A!G6 -> 37.79761977 | O16: =A!H6 -> 37.12063429 | P16: =A!I6 -> 28.72309492 | Q16: =A!J6 -> 43.95669233 | R16: =A!K6 -> 41.73769434 | S16: 0 | T16: 0 | U16: 0 | V16: 0 | W16: 0 | X16: =A!$F$6 -> 37.85349478 | Y16: 0
A17: 13 | B17: =IF(ISNUMBER(A!C17),A!G$2+A!G$3*A!C17+A!G$4*A!C17^2,"") ->  | C17: =IF(ISNUMBER(A!C17),IF(A!C17<(A!H$3/(-2*A!H$4)),A!H$2+A!H$3*A!C17+A!H$4*A!C17^2,A!H$2+A!H$3*(A!H$3/(-2*A!H$4))+A!H$4*(A!H$3/(-2*A!H$4))^2),"") ->  | D17: =IF(ISNUMBER(A!C17),A!I$2+A!I$3*EXP(A!I$4*A!C17),"") ->  | E17: =IF(ISNUMBER(A!C17),IF((A!J$2+A!J$3*A!C17)<A!J$4,A!J$2+A!J$3*A!C17,A!J$4),"") ->  | F17: =IF(ISNUMBER(A!C17),IF(A!C17<A!K$4,A!K$2+A!K$3*(3*A!C17/(2*A!K$4)-0.5*(A!C17/A!K$4)^3),A!K$3+A!K$2),"") ->  | G17: =IF(ISNUMBER(A!$C17),(B17-A!$D17)^2,"") ->  | H17: =IF(ISNUMBER(A!$C17),(C17-A!$D17)^2,"") ->  | I17: =IF(ISNUMBER(A!$C17),(D17-A!$D17)^2,"") ->  | J17: =IF(ISNUMBER(A!$C17),(E17-A!$D17)^2,"") ->  | K17: =IF(ISNUMBER(A!$C17),(F17-A!$D17)^2,"") ->  | N17: =N16 -> 37.79761977 | O17: =A!H6 -> 37.12063429 | P17: =A!I6 -> 28.72309492 | Q17: =A!J6 -> 43.95669233 | R17: =A!K6 -> 41.73769434 | S17: =A!G7 -> 2870.956722 | T17: =A!H7 -> 2884.332298 | U17: =A!I7 -> 2838.541756 | V17: =A!J7 -> 3038.99947 | W17: =A!K7 -> 2937.456807 | X17: =X16 -> 37.85349478 | Y17: =A!$F$7 -> 2887.27323
A18: 14 | B18: =IF(ISNUMBER(A!C18),A!G$2+A!G$3*A!C18+A!G$4*A!C18^2,"") ->  | C18: =IF(ISNUMBER(A!C18),IF(A!C18<(A!H$3/(-2*A!H$4)),A!H$2+A!H$3*A!C18+A!H$4*A!C18^2,A!H$2+A!H$3*(A!H$3/(-2*A!H$4))+A!H$4*(A!H$3/(-2*A!H$4))^2),"") ->  | D18: =IF(ISNUMBER(A!C18),A!I$2+A!I$3*EXP(A!I$4*A!C18),"") ->  | E18: =IF(ISNUMBER(A!C18),IF((A!J$2+A!J$3*A!C18)<A!J$4,A!J$2+A!J$3*A!C18,A!J$4),"") ->  | F18: =IF(ISNUMBER(A!C18),IF(A!C18<A!K$4,A!K$2+A!K$3*(3*A!C18/(2*A!K$4)-0.5*(A!C18/A!K$4)^3),A!K$3+A!K$2),"") ->  | G18: =IF(ISNUMBER(A!$C18),(B18-A!$D18)^2,"") ->  | H18: =IF(ISNUMBER(A!$C18),(C18-A!$D18)^2,"") ->  | I18: =IF(ISNUMBER(A!$C18),(D18-A!$D18)^2,"") ->  | J18: =IF(ISNUMBER(A!$C18),(E18-A!$D18)^2,"") ->  | K18: =IF(ISNUMBER(A!$C18),(F18-A!$D18)^2,"") -> 
A19: 15 | B19: =IF(ISNUMBER(A!C19),A!G$2+A!G$3*A!C19+A!G$4*A!C19^2,"") ->  | C19: =IF(ISNUMBER(A!C19),IF(A!C19<(A!H$3/(-2*A!H$4)),A!H$2+A!H$3*A!C19+A!H$4*A!C19^2,A!H$2+A!H$3*(A!H$3/(-2*A!H$4))+A!H$4*(A!H$3/(-2*A!H$4))^2),"") ->  | D19: =IF(ISNUMBER(A!C19),A!I$2+A!I$3*EXP(A!I$4*A!C19),"") ->  | E19: =IF(ISNUMBER(A!C19),IF((A!J$2+A!J$3*A!C19)<A!J$4,A!J$2+A!J$3*A!C19,A!J$4),"") ->  | F19: =IF(ISNUMBER(A!C19),IF(A!C19<A!K$4,A!K$2+A!K$3*(3*A!C19/(2*A!K$4)-0.5*(A!C19/A!K$4)^3),A!K$3+A!K$2),"") ->  | G19: =IF(ISNUMBER(A!$C19),(B19-A!$D19)^2,"") ->  | H19: =IF(ISNUMBER(A!$C19),(C19-A!$D19)^2,"") ->  | I19: =IF(ISNUMBER(A!$C19),(D19-A!$D19)^2,"") ->  | J19: =IF(ISNUMBER(A!$C19),(E19-A!$D19)^2,"") ->  | K19: =IF(ISNUMBER(A!$C19),(F19-A!$D19)^2,"") -> 
A20: 16 | B20: =IF(ISNUMBER(A!C20),A!G$2+A!G$3*A!C20+A!G$4*A!C20^2,"") ->  | C20: =IF(ISNUMBER(A!C20),IF(A!C20<(A!H$3/(-2*A!H$4)),A!H$2+A!H$3*A!C20+A!H$4*A!C20^2,A!H$2+A!H$3*(A!H$3/(-2*A!H$4))+A!H$4*(A!H$3/(-2*A!H$4))^2),"") ->  | D20: =IF(ISNUMBER(A!C20),A!I$2+A!I$3*EXP(A!I$4*A!C20),"") ->  | E20: =IF(ISNUMBER(A!C20),IF((A!J$2+A!J$3*A!C20)<A!J$4,A!J$2+A!J$3*A!C20,A!J$4),"") ->  | F20: =IF(ISNUMBER(A!C20),IF(A!C20<A!K$4,A!K$2+A!K$3*(3*A!C20/(2*A!K$4)-0.5*(A!C20/A!K$4)^3),A!K$3+A!K$2),"") ->  | G20: =IF(ISNUMBER(A!$C20),(B20-A!$D20)^2,"") ->  | H20: =IF(ISNUMBER(A!$C20),(C20-A!$D20)^2,"") ->  | I20: =IF(ISNUMBER(A!$C20),(D20-A!$D20)^2,"") ->  | J20: =IF(ISNUMBER(A!$C20),(E20-A!$D20)^2,"") ->  | K20: =IF(ISNUMBER(A!$C20),(F20-A!$D20)^2,"") ->  | N20: Contenido de nutriente (kg N/kg grano): | O20: =A!B30 -> 0.02 | P20: Estas dos celdas, que provienen de la hoja A, imponen restricciones sobre la pendiente inicial
A21: 17 | B21: =IF(ISNUMBER(A!C21),A!G$2+A!G$3*A!C21+A!G$4*A!C21^2,"") ->  | C21: =IF(ISNUMBER(A!C21),IF(A!C21<(A!H$3/(-2*A!H$4)),A!H$2+A!H$3*A!C21+A!H$4*A!C21^2,A!H$2+A!H$3*(A!H$3/(-2*A!H$4))+A!H$4*(A!H$3/(-2*A!H$4))^2),"") ->  | D21: =IF(ISNUMBER(A!C21),A!I$2+A!I$3*EXP(A!I$4*A!C21),"") ->  | E21: =IF(ISNUMBER(A!C21),IF((A!J$2+A!J$3*A!C21)<A!J$4,A!J$2+A!J$3*A!C21,A!J$4),"") ->  | F21: =IF(ISNUMBER(A!C21),IF(A!C21<A!K$4,A!K$2+A!K$3*(3*A!C21/(2*A!K$4)-0.5*(A!C21/A!K$4)^3),A!K$3+A!K$2),"") ->  | G21: =IF(ISNUMBER(A!$C21),(B21-A!$D21)^2,"") ->  | H21: =IF(ISNUMBER(A!$C21),(C21-A!$D21)^2,"") ->  | I21: =IF(ISNUMBER(A!$C21),(D21-A!$D21)^2,"") ->  | J21: =IF(ISNUMBER(A!$C21),(E21-A!$D21)^2,"") ->  | K21: =IF(ISNUMBER(A!$C21),(F21-A!$D21)^2,"") ->  | N21: NHI: | O21: =A!B31 -> 0.67 | P21: Asumiendo que la máxima eficiencia es 100% + tolerancia del ajuste
A22: 18 | B22: =IF(ISNUMBER(A!C22),A!G$2+A!G$3*A!C22+A!G$4*A!C22^2,"") ->  | C22: =IF(ISNUMBER(A!C22),IF(A!C22<(A!H$3/(-2*A!H$4)),A!H$2+A!H$3*A!C22+A!H$4*A!C22^2,A!H$2+A!H$3*(A!H$3/(-2*A!H$4))+A!H$4*(A!H$3/(-2*A!H$4))^2),"") ->  | D22: =IF(ISNUMBER(A!C22),A!I$2+A!I$3*EXP(A!I$4*A!C22),"") ->  | E22: =IF(ISNUMBER(A!C22),IF((A!J$2+A!J$3*A!C22)<A!J$4,A!J$2+A!J$3*A!C22,A!J$4),"") ->  | F22: =IF(ISNUMBER(A!C22),IF(A!C22<A!K$4,A!K$2+A!K$3*(3*A!C22/(2*A!K$4)-0.5*(A!C22/A!K$4)^3),A!K$3+A!K$2),"") ->  | G22: =IF(ISNUMBER(A!$C22),(B22-A!$D22)^2,"") ->  | H22: =IF(ISNUMBER(A!$C22),(C22-A!$D22)^2,"") ->  | I22: =IF(ISNUMBER(A!$C22),(D22-A!$D22)^2,"") ->  | J22: =IF(ISNUMBER(A!$C22),(E22-A!$D22)^2,"") ->  | K22: =IF(ISNUMBER(A!$C22),(F22-A!$D22)^2,"") -> 
A23: 19 | B23: =IF(ISNUMBER(A!C23),A!G$2+A!G$3*A!C23+A!G$4*A!C23^2,"") ->  | C23: =IF(ISNUMBER(A!C23),IF(A!C23<(A!H$3/(-2*A!H$4)),A!H$2+A!H$3*A!C23+A!H$4*A!C23^2,A!H$2+A!H$3*(A!H$3/(-2*A!H$4))+A!H$4*(A!H$3/(-2*A!H$4))^2),"") ->  | D23: =IF(ISNUMBER(A!C23),A!I$2+A!I$3*EXP(A!I$4*A!C23),"") ->  | E23: =IF(ISNUMBER(A!C23),IF((A!J$2+A!J$3*A!C23)<A!J$4,A!J$2+A!J$3*A!C23,A!J$4),"") ->  | F23: =IF(ISNUMBER(A!C23),IF(A!C23<A!K$4,A!K$2+A!K$3*(3*A!C23/(2*A!K$4)-0.5*(A!C23/A!K$4)^3),A!K$3+A!K$2),"") ->  | G23: =IF(ISNUMBER(A!$C23),(B23-A!$D23)^2,"") ->  | H23: =IF(ISNUMBER(A!$C23),(C23-A!$D23)^2,"") ->  | I23: =IF(ISNUMBER(A!$C23),(D23-A!$D23)^2,"") ->  | J23: =IF(ISNUMBER(A!$C23),(E23-A!$D23)^2,"") ->  | K23: =IF(ISNUMBER(A!$C23),(F23-A!$D23)^2,"") -> 
A24: 20 | B24: =IF(ISNUMBER(A!C24),A!G$2+A!G$3*A!C24+A!G$4*A!C24^2,"") ->  | C24: =IF(ISNUMBER(A!C24),IF(A!C24<(A!H$3/(-2*A!H$4)),A!H$2+A!H$3*A!C24+A!H$4*A!C24^2,A!H$2+A!H$3*(A!H$3/(-2*A!H$4))+A!H$4*(A!H$3/(-2*A!H$4))^2),"") ->  | D24: =IF(ISNUMBER(A!C24),A!I$2+A!I$3*EXP(A!I$4*A!C24),"") ->  | E24: =IF(ISNUMBER(A!C24),IF((A!J$2+A!J$3*A!C24)<A!J$4,A!J$2+A!J$3*A!C24,A!J$4),"") ->  | F24: =IF(ISNUMBER(A!C24),IF(A!C24<A!K$4,A!K$2+A!K$3*(3*A!C24/(2*A!K$4)-0.5*(A!C24/A!K$4)^3),A!K$3+A!K$2),"") ->  | G24: =IF(ISNUMBER(A!$C24),(B24-A!$D24)^2,"") ->  | H24: =IF(ISNUMBER(A!$C24),(C24-A!$D24)^2,"") ->  | I24: =IF(ISNUMBER(A!$C24),(D24-A!$D24)^2,"") ->  | J24: =IF(ISNUMBER(A!$C24),(E24-A!$D24)^2,"") ->  | K24: =IF(ISNUMBER(A!$C24),(F24-A!$D24)^2,"") -> 
A25: 21 | B25: =IF(ISNUMBER(A!C25),A!G$2+A!G$3*A!C25+A!G$4*A!C25^2,"") ->  | C25: =IF(ISNUMBER(A!C25),IF(A!C25<(A!H$3/(-2*A!H$4)),A!H$2+A!H$3*A!C25+A!H$4*A!C25^2,A!H$2+A!H$3*(A!H$3/(-2*A!H$4))+A!H$4*(A!H$3/(-2*A!H$4))^2),"") ->  | D25: =IF(ISNUMBER(A!C25),A!I$2+A!I$3*EXP(A!I$4*A!C25),"") ->  | E25: =IF(ISNUMBER(A!C25),IF((A!J$2+A!J$3*A!C25)<A!J$4,A!J$2+A!J$3*A!C25,A!J$4),"") ->  | F25: =IF(ISNUMBER(A!C25),IF(A!C25<A!K$4,A!K$2+A!K$3*(3*A!C25/(2*A!K$4)-0.5*(A!C25/A!K$4)^3),A!K$3+A!K$2),"") ->  | G25: =IF(ISNUMBER(A!$C25),(B25-A!$D25)^2,"") ->  | H25: =IF(ISNUMBER(A!$C25),(C25-A!$D25)^2,"") ->  | I25: =IF(ISNUMBER(A!$C25),(D25-A!$D25)^2,"") ->  | J25: =IF(ISNUMBER(A!$C25),(E25-A!$D25)^2,"") ->  | K25: =IF(ISNUMBER(A!$C25),(F25-A!$D25)^2,"") ->  | N25: Inicialización
A26: 22 | B26: =IF(ISNUMBER(A!C26),A!G$2+A!G$3*A!C26+A!G$4*A!C26^2,"") ->  | C26: =IF(ISNUMBER(A!C26),IF(A!C26<(A!H$3/(-2*A!H$4)),A!H$2+A!H$3*A!C26+A!H$4*A!C26^2,A!H$2+A!H$3*(A!H$3/(-2*A!H$4))+A!H$4*(A!H$3/(-2*A!H$4))^2),"") ->  | D26: =IF(ISNUMBER(A!C26),A!I$2+A!I$3*EXP(A!I$4*A!C26),"") ->  | E26: =IF(ISNUMBER(A!C26),IF((A!J$2+A!J$3*A!C26)<A!J$4,A!J$2+A!J$3*A!C26,A!J$4),"") ->  | F26: =IF(ISNUMBER(A!C26),IF(A!C26<A!K$4,A!K$2+A!K$3*(3*A!C26/(2*A!K$4)-0.5*(A!C26/A!K$4)^3),A!K$3+A!K$2),"") ->  | G26: =IF(ISNUMBER(A!$C26),(B26-A!$D26)^2,"") ->  | H26: =IF(ISNUMBER(A!$C26),(C26-A!$D26)^2,"") ->  | I26: =IF(ISNUMBER(A!$C26),(D26-A!$D26)^2,"") ->  | J26: =IF(ISNUMBER(A!$C26),(E26-A!$D26)^2,"") ->  | K26: =IF(ISNUMBER(A!$C26),(F26-A!$D26)^2,"") ->  | N26: Media
A27: 23 | B27: =IF(ISNUMBER(A!C27),A!G$2+A!G$3*A!C27+A!G$4*A!C27^2,"") ->  | C27: =IF(ISNUMBER(A!C27),IF(A!C27<(A!H$3/(-2*A!H$4)),A!H$2+A!H$3*A!C27+A!H$4*A!C27^2,A!H$2+A!H$3*(A!H$3/(-2*A!H$4))+A!H$4*(A!H$3/(-2*A!H$4))^2),"") ->  | D27: =IF(ISNUMBER(A!C27),A!I$2+A!I$3*EXP(A!I$4*A!C27),"") ->  | E27: =IF(ISNUMBER(A!C27),IF((A!J$2+A!J$3*A!C27)<A!J$4,A!J$2+A!J$3*A!C27,A!J$4),"") ->  | F27: =IF(ISNUMBER(A!C27),IF(A!C27<A!K$4,A!K$2+A!K$3*(3*A!C27/(2*A!K$4)-0.5*(A!C27/A!K$4)^3),A!K$3+A!K$2),"") ->  | G27: =IF(ISNUMBER(A!$C27),(B27-A!$D27)^2,"") ->  | H27: =IF(ISNUMBER(A!$C27),(C27-A!$D27)^2,"") ->  | I27: =IF(ISNUMBER(A!$C27),(D27-A!$D27)^2,"") ->  | J27: =IF(ISNUMBER(A!$C27),(E27-A!$D27)^2,"") ->  | K27: =IF(ISNUMBER(A!$C27),(F27-A!$D27)^2,"") ->  | N27: Q | O27: QP | P27: M | Q27: LP | R27: S
A28: 24 | B28: =IF(ISNUMBER(A!C28),A!G$2+A!G$3*A!C28+A!G$4*A!C28^2,"") ->  | C28: =IF(ISNUMBER(A!C28),IF(A!C28<(A!H$3/(-2*A!H$4)),A!H$2+A!H$3*A!C28+A!H$4*A!C28^2,A!H$2+A!H$3*(A!H$3/(-2*A!H$4))+A!H$4*(A!H$3/(-2*A!H$4))^2),"") ->  | D28: =IF(ISNUMBER(A!C28),A!I$2+A!I$3*EXP(A!I$4*A!C28),"") ->  | E28: =IF(ISNUMBER(A!C28),IF((A!J$2+A!J$3*A!C28)<A!J$4,A!J$2+A!J$3*A!C28,A!J$4),"") ->  | F28: =IF(ISNUMBER(A!C28),IF(A!C28<A!K$4,A!K$2+A!K$3*(3*A!C28/(2*A!K$4)-0.5*(A!C28/A!K$4)^3),A!K$3+A!K$2),"") ->  | G28: =IF(ISNUMBER(A!$C28),(B28-A!$D28)^2,"") ->  | H28: =IF(ISNUMBER(A!$C28),(C28-A!$D28)^2,"") ->  | I28: =IF(ISNUMBER(A!$C28),(D28-A!$D28)^2,"") ->  | J28: =IF(ISNUMBER(A!$C28),(E28-A!$D28)^2,"") ->  | K28: =IF(ISNUMBER(A!$C28),(F28-A!$D28)^2,"") ->  | M28: A | N28: =AVERAGE(N8,S8) -> 2428 | O28: =N28 -> 2428 | P28: =AVERAGE(P8,U8) -> 3089 | Q28: 2428 | R28: 2428
A29: 25 | B29: =IF(ISNUMBER(A!C29),A!G$2+A!G$3*A!C29+A!G$4*A!C29^2,"") ->  | C29: =IF(ISNUMBER(A!C29),IF(A!C29<(A!H$3/(-2*A!H$4)),A!H$2+A!H$3*A!C29+A!H$4*A!C29^2,A!H$2+A!H$3*(A!H$3/(-2*A!H$4))+A!H$4*(A!H$3/(-2*A!H$4))^2),"") ->  | D29: =IF(ISNUMBER(A!C29),A!I$2+A!I$3*EXP(A!I$4*A!C29),"") ->  | E29: =IF(ISNUMBER(A!C29),IF((A!J$2+A!J$3*A!C29)<A!J$4,A!J$2+A!J$3*A!C29,A!J$4),"") ->  | F29: =IF(ISNUMBER(A!C29),IF(A!C29<A!K$4,A!K$2+A!K$3*(3*A!C29/(2*A!K$4)-0.5*(A!C29/A!K$4)^3),A!K$3+A!K$2),"") ->  | G29: =IF(ISNUMBER(A!$C29),(B29-A!$D29)^2,"") ->  | H29: =IF(ISNUMBER(A!$C29),(C29-A!$D29)^2,"") ->  | I29: =IF(ISNUMBER(A!$C29),(D29-A!$D29)^2,"") ->  | J29: =IF(ISNUMBER(A!$C29),(E29-A!$D29)^2,"") ->  | K29: =IF(ISNUMBER(A!$C29),(F29-A!$D29)^2,"") ->  | M29: B | N29: =AVERAGE(N9,S9) -> 31.825 | O29: =N29 -> 31.825 | P29: -694.7000001 | Q29: 24.2875 | R29: 694.7000001
A30: 26 | B30: =IF(ISNUMBER(A!C30),A!G$2+A!G$3*A!C30+A!G$4*A!C30^2,"") ->  | C30: =IF(ISNUMBER(A!C30),IF(A!C30<(A!H$3/(-2*A!H$4)),A!H$2+A!H$3*A!C30+A!H$4*A!C30^2,A!H$2+A!H$3*(A!H$3/(-2*A!H$4))+A!H$4*(A!H$3/(-2*A!H$4))^2),"") ->  | D30: =IF(ISNUMBER(A!C30),A!I$2+A!I$3*EXP(A!I$4*A!C30),"") ->  | E30: =IF(ISNUMBER(A!C30),IF((A!J$2+A!J$3*A!C30)<A!J$4,A!J$2+A!J$3*A!C30,A!J$4),"") ->  | F30: =IF(ISNUMBER(A!C30),IF(A!C30<A!K$4,A!K$2+A!K$3*(3*A!C30/(2*A!K$4)-0.5*(A!C30/A!K$4)^3),A!K$3+A!K$2),"") ->  | G30: =IF(ISNUMBER(A!$C30),(B30-A!$D30)^2,"") ->  | H30: =IF(ISNUMBER(A!$C30),(C30-A!$D30)^2,"") ->  | I30: =IF(ISNUMBER(A!$C30),(D30-A!$D30)^2,"") ->  | J30: =IF(ISNUMBER(A!$C30),(E30-A!$D30)^2,"") ->  | K30: =IF(ISNUMBER(A!$C30),(F30-A!$D30)^2,"") ->  | M30: C | N30: =AVERAGE(N10,S10) -> -0.50000005 | O30: =N30 -> -0.50000005 | P30: =AVERAGE(P10,U10) -> -0.03134451523 | Q30: =AVERAGE(Q10,V10) -> 2857.325 | R30: =M44 -> 120
A31: 27 | B31: =IF(ISNUMBER(A!C31),A!G$2+A!G$3*A!C31+A!G$4*A!C31^2,"") ->  | C31: =IF(ISNUMBER(A!C31),IF(A!C31<(A!H$3/(-2*A!H$4)),A!H$2+A!H$3*A!C31+A!H$4*A!C31^2,A!H$2+A!H$3*(A!H$3/(-2*A!H$4))+A!H$4*(A!H$3/(-2*A!H$4))^2),"") ->  | D31: =IF(ISNUMBER(A!C31),A!I$2+A!I$3*EXP(A!I$4*A!C31),"") ->  | E31: =IF(ISNUMBER(A!C31),IF((A!J$2+A!J$3*A!C31)<A!J$4,A!J$2+A!J$3*A!C31,A!J$4),"") ->  | F31: =IF(ISNUMBER(A!C31),IF(A!C31<A!K$4,A!K$2+A!K$3*(3*A!C31/(2*A!K$4)-0.5*(A!C31/A!K$4)^3),A!K$3+A!K$2),"") ->  | G31: =IF(ISNUMBER(A!$C31),(B31-A!$D31)^2,"") ->  | H31: =IF(ISNUMBER(A!$C31),(C31-A!$D31)^2,"") ->  | I31: =IF(ISNUMBER(A!$C31),(D31-A!$D31)^2,"") ->  | J31: =IF(ISNUMBER(A!$C31),(E31-A!$D31)^2,"") ->  | K31: =IF(ISNUMBER(A!$C31),(F31-A!$D31)^2,"") -> 
A32: 28 | B32: =IF(ISNUMBER(A!C32),A!G$2+A!G$3*A!C32+A!G$4*A!C32^2,"") ->  | C32: =IF(ISNUMBER(A!C32),IF(A!C32<(A!H$3/(-2*A!H$4)),A!H$2+A!H$3*A!C32+A!H$4*A!C32^2,A!H$2+A!H$3*(A!H$3/(-2*A!H$4))+A!H$4*(A!H$3/(-2*A!H$4))^2),"") ->  | D32: =IF(ISNUMBER(A!C32),A!I$2+A!I$3*EXP(A!I$4*A!C32),"") ->  | E32: =IF(ISNUMBER(A!C32),IF((A!J$2+A!J$3*A!C32)<A!J$4,A!J$2+A!J$3*A!C32,A!J$4),"") ->  | F32: =IF(ISNUMBER(A!C32),IF(A!C32<A!K$4,A!K$2+A!K$3*(3*A!C32/(2*A!K$4)-0.5*(A!C32/A!K$4)^3),A!K$3+A!K$2),"") ->  | G32: =IF(ISNUMBER(A!$C32),(B32-A!$D32)^2,"") ->  | H32: =IF(ISNUMBER(A!$C32),(C32-A!$D32)^2,"") ->  | I32: =IF(ISNUMBER(A!$C32),(D32-A!$D32)^2,"") ->  | J32: =IF(ISNUMBER(A!$C32),(E32-A!$D32)^2,"") ->  | K32: =IF(ISNUMBER(A!$C32),(F32-A!$D32)^2,"") -> 
A33: 29 | B33: =IF(ISNUMBER(A!C33),A!G$2+A!G$3*A!C33+A!G$4*A!C33^2,"") ->  | C33: =IF(ISNUMBER(A!C33),IF(A!C33<(A!H$3/(-2*A!H$4)),A!H$2+A!H$3*A!C33+A!H$4*A!C33^2,A!H$2+A!H$3*(A!H$3/(-2*A!H$4))+A!H$4*(A!H$3/(-2*A!H$4))^2),"") ->  | D33: =IF(ISNUMBER(A!C33),A!I$2+A!I$3*EXP(A!I$4*A!C33),"") ->  | E33: =IF(ISNUMBER(A!C33),IF((A!J$2+A!J$3*A!C33)<A!J$4,A!J$2+A!J$3*A!C33,A!J$4),"") ->  | F33: =IF(ISNUMBER(A!C33),IF(A!C33<A!K$4,A!K$2+A!K$3*(3*A!C33/(2*A!K$4)-0.5*(A!C33/A!K$4)^3),A!K$3+A!K$2),"") ->  | G33: =IF(ISNUMBER(A!$C33),(B33-A!$D33)^2,"") ->  | H33: =IF(ISNUMBER(A!$C33),(C33-A!$D33)^2,"") ->  | I33: =IF(ISNUMBER(A!$C33),(D33-A!$D33)^2,"") ->  | J33: =IF(ISNUMBER(A!$C33),(E33-A!$D33)^2,"") ->  | K33: =IF(ISNUMBER(A!$C33),(F33-A!$D33)^2,"") -> 
A34: 30 | B34: =IF(ISNUMBER(A!C34),A!G$2+A!G$3*A!C34+A!G$4*A!C34^2,"") ->  | C34: =IF(ISNUMBER(A!C34),IF(A!C34<(A!H$3/(-2*A!H$4)),A!H$2+A!H$3*A!C34+A!H$4*A!C34^2,A!H$2+A!H$3*(A!H$3/(-2*A!H$4))+A!H$4*(A!H$3/(-2*A!H$4))^2),"") ->  | D34: =IF(ISNUMBER(A!C34),A!I$2+A!I$3*EXP(A!I$4*A!C34),"") ->  | E34: =IF(ISNUMBER(A!C34),IF((A!J$2+A!J$3*A!C34)<A!J$4,A!J$2+A!J$3*A!C34,A!J$4),"") ->  | F34: =IF(ISNUMBER(A!C34),IF(A!C34<A!K$4,A!K$2+A!K$3*(3*A!C34/(2*A!K$4)-0.5*(A!C34/A!K$4)^3),A!K$3+A!K$2),"") ->  | G34: =IF(ISNUMBER(A!$C34),(B34-A!$D34)^2,"") ->  | H34: =IF(ISNUMBER(A!$C34),(C34-A!$D34)^2,"") ->  | I34: =IF(ISNUMBER(A!$C34),(D34-A!$D34)^2,"") ->  | J34: =IF(ISNUMBER(A!$C34),(E34-A!$D34)^2,"") ->  | K34: =IF(ISNUMBER(A!$C34),(F34-A!$D34)^2,"") -> 
A35: 31 | B35: =IF(ISNUMBER(A!C35),A!G$2+A!G$3*A!C35+A!G$4*A!C35^2,"") ->  | C35: =IF(ISNUMBER(A!C35),IF(A!C35<(A!H$3/(-2*A!H$4)),A!H$2+A!H$3*A!C35+A!H$4*A!C35^2,A!H$2+A!H$3*(A!H$3/(-2*A!H$4))+A!H$4*(A!H$3/(-2*A!H$4))^2),"") ->  | D35: =IF(ISNUMBER(A!C35),A!I$2+A!I$3*EXP(A!I$4*A!C35),"") ->  | E35: =IF(ISNUMBER(A!C35),IF((A!J$2+A!J$3*A!C35)<A!J$4,A!J$2+A!J$3*A!C35,A!J$4),"") ->  | F35: =IF(ISNUMBER(A!C35),IF(A!C35<A!K$4,A!K$2+A!K$3*(3*A!C35/(2*A!K$4)-0.5*(A!C35/A!K$4)^3),A!K$3+A!K$2),"") ->  | G35: =IF(ISNUMBER(A!$C35),(B35-A!$D35)^2,"") ->  | H35: =IF(ISNUMBER(A!$C35),(C35-A!$D35)^2,"") ->  | I35: =IF(ISNUMBER(A!$C35),(D35-A!$D35)^2,"") ->  | J35: =IF(ISNUMBER(A!$C35),(E35-A!$D35)^2,"") ->  | K35: =IF(ISNUMBER(A!$C35),(F35-A!$D35)^2,"") -> 
A36: 32 | B36: =IF(ISNUMBER(A!C36),A!G$2+A!G$3*A!C36+A!G$4*A!C36^2,"") ->  | C36: =IF(ISNUMBER(A!C36),IF(A!C36<(A!H$3/(-2*A!H$4)),A!H$2+A!H$3*A!C36+A!H$4*A!C36^2,A!H$2+A!H$3*(A!H$3/(-2*A!H$4))+A!H$4*(A!H$3/(-2*A!H$4))^2),"") ->  | D36: =IF(ISNUMBER(A!C36),A!I$2+A!I$3*EXP(A!I$4*A!C36),"") ->  | E36: =IF(ISNUMBER(A!C36),IF((A!J$2+A!J$3*A!C36)<A!J$4,A!J$2+A!J$3*A!C36,A!J$4),"") ->  | F36: =IF(ISNUMBER(A!C36),IF(A!C36<A!K$4,A!K$2+A!K$3*(3*A!C36/(2*A!K$4)-0.5*(A!C36/A!K$4)^3),A!K$3+A!K$2),"") ->  | G36: =IF(ISNUMBER(A!$C36),(B36-A!$D36)^2,"") ->  | H36: =IF(ISNUMBER(A!$C36),(C36-A!$D36)^2,"") ->  | I36: =IF(ISNUMBER(A!$C36),(D36-A!$D36)^2,"") ->  | J36: =IF(ISNUMBER(A!$C36),(E36-A!$D36)^2,"") ->  | K36: =IF(ISNUMBER(A!$C36),(F36-A!$D36)^2,"") -> 
A37: 33 | B37: =IF(ISNUMBER(A!C37),A!G$2+A!G$3*A!C37+A!G$4*A!C37^2,"") ->  | C37: =IF(ISNUMBER(A!C37),IF(A!C37<(A!H$3/(-2*A!H$4)),A!H$2+A!H$3*A!C37+A!H$4*A!C37^2,A!H$2+A!H$3*(A!H$3/(-2*A!H$4))+A!H$4*(A!H$3/(-2*A!H$4))^2),"") ->  | D37: =IF(ISNUMBER(A!C37),A!I$2+A!I$3*EXP(A!I$4*A!C37),"") ->  | E37: =IF(ISNUMBER(A!C37),IF((A!J$2+A!J$3*A!C37)<A!J$4,A!J$2+A!J$3*A!C37,A!J$4),"") ->  | F37: =IF(ISNUMBER(A!C37),IF(A!C37<A!K$4,A!K$2+A!K$3*(3*A!C37/(2*A!K$4)-0.5*(A!C37/A!K$4)^3),A!K$3+A!K$2),"") ->  | G37: =IF(ISNUMBER(A!$C37),(B37-A!$D37)^2,"") ->  | H37: =IF(ISNUMBER(A!$C37),(C37-A!$D37)^2,"") ->  | I37: =IF(ISNUMBER(A!$C37),(D37-A!$D37)^2,"") ->  | J37: =IF(ISNUMBER(A!$C37),(E37-A!$D37)^2,"") ->  | K37: =IF(ISNUMBER(A!$C37),(F37-A!$D37)^2,"") -> 
A38: 34 | B38: =IF(ISNUMBER(A!C38),A!G$2+A!G$3*A!C38+A!G$4*A!C38^2,"") ->  | C38: =IF(ISNUMBER(A!C38),IF(A!C38<(A!H$3/(-2*A!H$4)),A!H$2+A!H$3*A!C38+A!H$4*A!C38^2,A!H$2+A!H$3*(A!H$3/(-2*A!H$4))+A!H$4*(A!H$3/(-2*A!H$4))^2),"") ->  | D38: =IF(ISNUMBER(A!C38),A!I$2+A!I$3*EXP(A!I$4*A!C38),"") ->  | E38: =IF(ISNUMBER(A!C38),IF((A!J$2+A!J$3*A!C38)<A!J$4,A!J$2+A!J$3*A!C38,A!J$4),"") ->  | F38: =IF(ISNUMBER(A!C38),IF(A!C38<A!K$4,A!K$2+A!K$3*(3*A!C38/(2*A!K$4)-0.5*(A!C38/A!K$4)^3),A!K$3+A!K$2),"") ->  | G38: =IF(ISNUMBER(A!$C38),(B38-A!$D38)^2,"") ->  | H38: =IF(ISNUMBER(A!$C38),(C38-A!$D38)^2,"") ->  | I38: =IF(ISNUMBER(A!$C38),(D38-A!$D38)^2,"") ->  | J38: =IF(ISNUMBER(A!$C38),(E38-A!$D38)^2,"") ->  | K38: =IF(ISNUMBER(A!$C38),(F38-A!$D38)^2,"") -> 
A39: 35 | B39: =IF(ISNUMBER(A!C39),A!G$2+A!G$3*A!C39+A!G$4*A!C39^2,"") ->  | C39: =IF(ISNUMBER(A!C39),IF(A!C39<(A!H$3/(-2*A!H$4)),A!H$2+A!H$3*A!C39+A!H$4*A!C39^2,A!H$2+A!H$3*(A!H$3/(-2*A!H$4))+A!H$4*(A!H$3/(-2*A!H$4))^2),"") ->  | D39: =IF(ISNUMBER(A!C39),A!I$2+A!I$3*EXP(A!I$4*A!C39),"") ->  | E39: =IF(ISNUMBER(A!C39),IF((A!J$2+A!J$3*A!C39)<A!J$4,A!J$2+A!J$3*A!C39,A!J$4),"") ->  | F39: =IF(ISNUMBER(A!C39),IF(A!C39<A!K$4,A!K$2+A!K$3*(3*A!C39/(2*A!K$4)-0.5*(A!C39/A!K$4)^3),A!K$3+A!K$2),"") ->  | G39: =IF(ISNUMBER(A!$C39),(B39-A!$D39)^2,"") ->  | H39: =IF(ISNUMBER(A!$C39),(C39-A!$D39)^2,"") ->  | I39: =IF(ISNUMBER(A!$C39),(D39-A!$D39)^2,"") ->  | J39: =IF(ISNUMBER(A!$C39),(E39-A!$D39)^2,"") ->  | K39: =IF(ISNUMBER(A!$C39),(F39-A!$D39)^2,"") -> 
A40: 36 | B40: =IF(ISNUMBER(A!C40),A!G$2+A!G$3*A!C40+A!G$4*A!C40^2,"") ->  | C40: =IF(ISNUMBER(A!C40),IF(A!C40<(A!H$3/(-2*A!H$4)),A!H$2+A!H$3*A!C40+A!H$4*A!C40^2,A!H$2+A!H$3*(A!H$3/(-2*A!H$4))+A!H$4*(A!H$3/(-2*A!H$4))^2),"") ->  | D40: =IF(ISNUMBER(A!C40),A!I$2+A!I$3*EXP(A!I$4*A!C40),"") ->  | E40: =IF(ISNUMBER(A!C40),IF((A!J$2+A!J$3*A!C40)<A!J$4,A!J$2+A!J$3*A!C40,A!J$4),"") ->  | F40: =IF(ISNUMBER(A!C40),IF(A!C40<A!K$4,A!K$2+A!K$3*(3*A!C40/(2*A!K$4)-0.5*(A!C40/A!K$4)^3),A!K$3+A!K$2),"") ->  | G40: =IF(ISNUMBER(A!$C40),(B40-A!$D40)^2,"") ->  | H40: =IF(ISNUMBER(A!$C40),(C40-A!$D40)^2,"") ->  | I40: =IF(ISNUMBER(A!$C40),(D40-A!$D40)^2,"") ->  | J40: =IF(ISNUMBER(A!$C40),(E40-A!$D40)^2,"") ->  | K40: =IF(ISNUMBER(A!$C40),(F40-A!$D40)^2,"") -> 
B43: Dosis de N | C43: Q | D43: QP | E43: M | F43: LP | G43: SP | H43: Promedio | M43: Dosis máxima para curvas
A44: 0 | B44: =IF(A44<MAX($M$44),A44,MAX($M$44)) -> 0 | C44: =A!G$2+A!G$3*B44+A!G$4*B44^2 -> 2445.0852 | D44: =IF(B44<(A!H$3/(-2*A!H$4)),A!H$2+A!H$3*B44+A!H$4*B44^2,A!H$2+A!H$3*(A!H$3/(-2*A!H$4))+A!H$3*A!H$3/(4*A!H$4)) -> 2435.751486 | E44: =A!I$2+A!I$3*EXP(A!I$4*B44) -> 2426.881857 | F44: =IF((A!J$2+A!J$3*B44)<A!J$4,A!J$2+A!J$3*B44,A!J$4) -> 2428.000127 | G44: =IF(B44<A!K$4,A!K$2+A!K$3*(3*B44/(2*A!K$4)-0.5*(B44/A!K$4)^3),A!K$3+A!K$2) -> 2435.409867 | H44: =(C44*A!$G$5+'C'!D44*A!$H$5+'C'!E44*A!$I$5+'C'!F44*A!$J$5+'C'!G44*A!$K$5)/SUM(A!$G$5:$K$5) -> 2434.228453 | M44: =MAX(A!C5:C40,A!G6:K6) -> 120
A45: 2 | B45: =IF(A45<MAX($M$44),A45,MAX($M$44)) -> 2 | C45: =A!G$2+A!G$3*B45+A!G$4*B45^2 -> 2473.176664 | D45: =IF(B45<(A!H$3/(-2*A!H$4)),A!H$2+A!H$3*B45+A!H$4*B45^2,A!H$2+A!H$3*(A!H$3/(-2*A!H$4))+A!H$3*A!H$3/(4*A!H$4)) -> 2467.01824 | E45: =A!I$2+A!I$3*EXP(A!I$4*B45) -> 2470.711189 | F45: =IF((A!J$2+A!J$3*B45)<A!J$4,A!J$2+A!J$3*B45,A!J$4) -> 2455.800187 | G45: =IF(B45<A!K$4,A!K$2+A!K$3*(3*B45/(2*A!K$4)-0.5*(B45/A!K$4)^3),A!K$3+A!K$2) -> 2463.153914 | H45: =(C45*A!$G$5+'C'!D45*A!$H$5+'C'!E45*A!$I$5+'C'!F45*A!$J$5+'C'!G45*A!$K$5)/SUM(A!$G$5:$K$5) -> 2465.987379
A46: 4 | B46: 4 | C46: =A!G$2+A!G$3*B46+A!G$4*B46^2 -> 2500.647176 | D46: =IF(B46<(A!H$3/(-2*A!H$4)),A!H$2+A!H$3*B46+A!H$4*B46^2,A!H$2+A!H$3*(A!H$3/(-2*A!H$4))+A!H$3*A!H$3/(4*A!H$4)) -> 2497.476586 | E46: =A!I$2+A!I$3*EXP(A!I$4*B46) -> 2511.588056 | F46: =IF((A!J$2+A!J$3*B46)<A!J$4,A!J$2+A!J$3*B46,A!J$4) -> 2483.600247 | G46: =IF(B46<A!K$4,A!K$2+A!K$3*(3*B46/(2*A!K$4)-0.5*(B46/A!K$4)^3),A!K$3+A!K$2) -> 2490.847052 | H46: =(C46*A!$G$5+'C'!D46*A!$H$5+'C'!E46*A!$I$5+'C'!F46*A!$J$5+'C'!G46*A!$K$5)/SUM(A!$G$5:$K$5) -> 2496.857227
A47: 6 | B47: 6 | C47: =A!G$2+A!G$3*B47+A!G$4*B47^2 -> 2527.496734 | D47: =IF(B47<(A!H$3/(-2*A!H$4)),A!H$2+A!H$3*B47+A!H$4*B47^2,A!H$2+A!H$3*(A!H$3/(-2*A!H$4))+A!H$3*A!H$3/(4*A!H$4)) -> 2527.126525 | E47: =A!I$2+A!I$3*EXP(A!I$4*B47) -> 2549.711345 | F47: =IF((A!J$2+A!J$3*B47)<A!J$4,A!J$2+A!J$3*B47,A!J$4) -> 2511.400307 | G47: =IF(B47<A!K$4,A!K$2+A!K$3*(3*B47/(2*A!K$4)-0.5*(B47/A!K$4)^3),A!K$3+A!K$2) -> 2518.438369 | H47: =(C47*A!$G$5+'C'!D47*A!$H$5+'C'!E47*A!$I$5+'C'!F47*A!$J$5+'C'!G47*A!$K$5)/SUM(A!$G$5:$K$5) -> 2526.867766 | M47: 0 | N47: suma de rendimientos y dosis ingresados (para detectar nuevo ingreso de datos)
A48: 8 | B48: 8 | C48: =A!G$2+A!G$3*B48+A!G$4*B48^2 -> 2553.725339 | D48: =IF(B48<(A!H$3/(-2*A!H$4)),A!H$2+A!H$3*B48+A!H$4*B48^2,A!H$2+A!H$3*(A!H$3/(-2*A!H$4))+A!H$3*A!H$3/(4*A!H$4)) -> 2555.968058 | E48: =A!I$2+A!I$3*EXP(A!I$4*B48) -> 2585.266544 | F48: =IF((A!J$2+A!J$3*B48)<A!J$4,A!J$2+A!J$3*B48,A!J$4) -> 2539.200367 | G48: =IF(B48<A!K$4,A!K$2+A!K$3*(3*B48/(2*A!K$4)-0.5*(B48/A!K$4)^3),A!K$3+A!K$2) -> 2545.876956 | H48: =(C48*A!$G$5+'C'!D48*A!$H$5+'C'!E48*A!$I$5+'C'!F48*A!$J$5+'C'!G48*A!$K$5)/SUM(A!$G$5:$K$5) -> 2556.046078 | M48: 0 | N48: determinado por el macro FIT (Ajsutar) una vez que finaliza
A49: 10 | B49: 10 | C49: =A!G$2+A!G$3*B49+A!G$4*B49^2 -> 2579.332991 | D49: =IF(B49<(A!H$3/(-2*A!H$4)),A!H$2+A!H$3*B49+A!H$4*B49^2,A!H$2+A!H$3*(A!H$3/(-2*A!H$4))+A!H$3*A!H$3/(4*A!H$4)) -> 2584.001183 | E49: =A!I$2+A!I$3*EXP(A!I$4*B49) -> 2618.426647 | F49: =IF((A!J$2+A!J$3*B49)<A!J$4,A!J$2+A!J$3*B49,A!J$4) -> 2567.000427 | G49: =IF(B49<A!K$4,A!K$2+A!K$3*(3*B49/(2*A!K$4)-0.5*(B49/A!K$4)^3),A!K$3+A!K$2) -> 2573.111904 | H49: =(C49*A!$G$5+'C'!D49*A!$H$5+'C'!E49*A!$I$5+'C'!F49*A!$J$5+'C'!G49*A!$K$5)/SUM(A!$G$5:$K$5) -> 2584.416734 | M49: =M48=M47 -> TRUE | N49: detecta si el macro FIT ha sido ejecutado sobre los datos ingresados más recientemente
A50: 12 | B50: 12 | C50: =A!G$2+A!G$3*B50+A!G$4*B50^2 -> 2604.319689 | D50: =IF(B50<(A!H$3/(-2*A!H$4)),A!H$2+A!H$3*B50+A!H$4*B50^2,A!H$2+A!H$3*(A!H$3/(-2*A!H$4))+A!H$3*A!H$3/(4*A!H$4)) -> 2611.225902 | E50: =A!I$2+A!I$3*EXP(A!I$4*B50) -> 2649.352994 | F50: =IF((A!J$2+A!J$3*B50)<A!J$4,A!J$2+A!J$3*B50,A!J$4) -> 2594.800487 | G50: =IF(B50<A!K$4,A!K$2+A!K$3*(3*B50/(2*A!K$4)-0.5*(B50/A!K$4)^3),A!K$3+A!K$2) -> 2600.092301 | H50: =(C50*A!$G$5+'C'!D50*A!$H$5+'C'!E50*A!$I$5+'C'!F50*A!$J$5+'C'!G50*A!$K$5)/SUM(A!$G$5:$K$5) -> 2612.001969
A51: 14 | B51: 14 | C51: =A!G$2+A!G$3*B51+A!G$4*B51^2 -> 2628.685435 | D51: =IF(B51<(A!H$3/(-2*A!H$4)),A!H$2+A!H$3*B51+A!H$4*B51^2,A!H$2+A!H$3*(A!H$3/(-2*A!H$4))+A!H$3*A!H$3/(4*A!H$4)) -> 2637.642213 | E51: =A!I$2+A!I$3*EXP(A!I$4*B51) -> 2678.196056 | F51: =IF((A!J$2+A!J$3*B51)<A!J$4,A!J$2+A!J$3*B51,A!J$4) -> 2622.600547 | G51: =IF(B51<A!K$4,A!K$2+A!K$3*(3*B51/(2*A!K$4)-0.5*(B51/A!K$4)^3),A!K$3+A!K$2) -> 2626.76724 | H51: =(C51*A!$G$5+'C'!D51*A!$H$5+'C'!E51*A!$I$5+'C'!F51*A!$J$5+'C'!G51*A!$K$5)/SUM(A!$G$5:$K$5) -> 2638.821836
A52: 16 | B52: 16 | C52: =A!G$2+A!G$3*B52+A!G$4*B52^2 -> 2652.430228 | D52: =IF(B52<(A!H$3/(-2*A!H$4)),A!H$2+A!H$3*B52+A!H$4*B52^2,A!H$2+A!H$3*(A!H$3/(-2*A!H$4))+A!H$3*A!H$3/(4*A!H$4)) -> 2663.250118 | E52: =A!I$2+A!I$3*EXP(A!I$4*B52) -> 2705.096171 | F52: =IF((A!J$2+A!J$3*B52)<A!J$4,A!J$2+A!J$3*B52,A!J$4) -> 2650.400607 | G52: =IF(B52<A!K$4,A!K$2+A!K$3*(3*B52/(2*A!K$4)-0.5*(B52/A!K$4)^3),A!K$3+A!K$2) -> 2653.085808 | H52: =(C52*A!$G$5+'C'!D52*A!$H$5+'C'!E52*A!$I$5+'C'!F52*A!$J$5+'C'!G52*A!$K$5)/SUM(A!$G$5:$K$5) -> 2664.894351
A53: 18 | B53: 18 | C53: =A!G$2+A!G$3*B53+A!G$4*B53^2 -> 2675.554067 | D53: =IF(B53<(A!H$3/(-2*A!H$4)),A!H$2+A!H$3*B53+A!H$4*B53^2,A!H$2+A!H$3*(A!H$3/(-2*A!H$4))+A!H$3*A!H$3/(4*A!H$4)) -> 2688.049615 | E53: =A!I$2+A!I$3*EXP(A!I$4*B53) -> 2730.18422 | F53: =IF((A!J$2+A!J$3*B53)<A!J$4,A!J$2+A!J$3*B53,A!J$4) -> 2678.200667 | G53: =IF(B53<A!K$4,A!K$2+A!K$3*(3*B53/(2*A!K$4)-0.5*(B53/A!K$4)^3),A!K$3+A!K$2) -> 2678.997097 | H53: =(C53*A!$G$5+'C'!D53*A!$H$5+'C'!E53*A!$I$5+'C'!F53*A!$J$5+'C'!G53*A!$K$5)/SUM(A!$G$5:$K$5) -> 2690.235636
A54: 20 | B54: 20 | C54: =A!G$2+A!G$3*B54+A!G$4*B54^2 -> 2698.056954 | D54: =IF(B54<(A!H$3/(-2*A!H$4)),A!H$2+A!H$3*B54+A!H$4*B54^2,A!H$2+A!H$3*(A!H$3/(-2*A!H$4))+A!H$3*A!H$3/(4*A!H$4)) -> 2712.040706 | E54: =A!I$2+A!I$3*EXP(A!I$4*B54) -> 2753.582268 | F54: =IF((A!J$2+A!J$3*B54)<A!J$4,A!J$2+A!J$3*B54,A!J$4) -> 2706.000727 | G54: =IF(B54<A!K$4,A!K$2+A!K$3*(3*B54/(2*A!K$4)-0.5*(B54/A!K$4)^3),A!K$3+A!K$2) -> 2704.450196 | H54: =(C54*A!$G$5+'C'!D54*A!$H$5+'C'!E54*A!$I$5+'C'!F54*A!$J$5+'C'!G54*A!$K$5)/SUM(A!$G$5:$K$5) -> 2714.860043
A55: 22 | B55: 22 | C55: =A!G$2+A!G$3*B55+A!G$4*B55^2 -> 2719.938887 | D55: =IF(B55<(A!H$3/(-2*A!H$4)),A!H$2+A!H$3*B55+A!H$4*B55^2,A!H$2+A!H$3*(A!H$3/(-2*A!H$4))+A!H$3*A!H$3/(4*A!H$4)) -> 2735.223389 | E55: =A!I$2+A!I$3*EXP(A!I$4*B55) -> 2775.40416 | F55: =IF((A!J$2+A!J$3*B55)<A!J$4,A!J$2+A!J$3*B55,A!J$4) -> 2733.800787 | G55: =IF(B55<A!K$4,A!K$2+A!K$3*(3*B55/(2*A!K$4)-0.5*(B55/A!K$4)^3),A!K$3+A!K$2) -> 2729.394196 | H55: =(C55*A!$G$5+'C'!D55*A!$H$5+'C'!E55*A!$I$5+'C'!F55*A!$J$5+'C'!G55*A!$K$5)/SUM(A!$G$5:$K$5) -> 2738.780271
A56: 24 | B56: 24 | C56: =A!G$2+A!G$3*B56+A!G$4*B56^2 -> 2741.199868 | D56: =IF(B56<(A!H$3/(-2*A!H$4)),A!H$2+A!H$3*B56+A!H$4*B56^2,A!H$2+A!H$3*(A!H$3/(-2*A!H$4))+A!H$3*A!H$3/(4*A!H$4)) -> 2757.597665 | E56: =A!I$2+A!I$3*EXP(A!I$4*B56) -> 2795.756068 | F56: =IF((A!J$2+A!J$3*B56)<A!J$4,A!J$2+A!J$3*B56,A!J$4) -> 2761.600848 | G56: =IF(B56<A!K$4,A!K$2+A!K$3*(3*B56/(2*A!K$4)-0.5*(B56/A!K$4)^3),A!K$3+A!K$2) -> 2753.778186 | H56: =(C56*A!$G$5+'C'!D56*A!$H$5+'C'!E56*A!$I$5+'C'!F56*A!$J$5+'C'!G56*A!$K$5)/SUM(A!$G$5:$K$5) -> 2762.007482
A57: 26 | B57: 26 | C57: =A!G$2+A!G$3*B57+A!G$4*B57^2 -> 2761.839895 | D57: =IF(B57<(A!H$3/(-2*A!H$4)),A!H$2+A!H$3*B57+A!H$4*B57^2,A!H$2+A!H$3*(A!H$3/(-2*A!H$4))+A!H$3*A!H$3/(4*A!H$4)) -> 2779.163535 | E57: =A!I$2+A!I$3*EXP(A!I$4*B57) -> 2814.737017 | F57: =IF((A!J$2+A!J$3*B57)<A!J$4,A!J$2+A!J$3*B57,A!J$4) -> 2789.400908 | G57: =IF(B57<A!K$4,A!K$2+A!K$3*(3*B57/(2*A!K$4)-0.5*(B57/A!K$4)^3),A!K$3+A!K$2) -> 2777.551257 | H57: =(C57*A!$G$5+'C'!D57*A!$H$5+'C'!E57*A!$I$5+'C'!F57*A!$J$5+'C'!G57*A!$K$5)/SUM(A!$G$5:$K$5) -> 2784.551403
A58: 28 | B58: 28 | C58: =A!G$2+A!G$3*B58+A!G$4*B58^2 -> 2781.858969 | D58: =IF(B58<(A!H$3/(-2*A!H$4)),A!H$2+A!H$3*B58+A!H$4*B58^2,A!H$2+A!H$3*(A!H$3/(-2*A!H$4))+A!H$3*A!H$3/(4*A!H$4)) -> 2799.920997 | E58: =A!I$2+A!I$3*EXP(A!I$4*B58) -> 2832.439356 | F58: =IF((A!J$2+A!J$3*B58)<A!J$4,A!J$2+A!J$3*B58,A!J$4) -> 2817.200968 | G58: =IF(B58<A!K$4,A!K$2+A!K$3*(3*B58/(2*A!K$4)-0.5*(B58/A!K$4)^3),A!K$3+A!K$2) -> 2800.662498 | H58: =(C58*A!$G$5+'C'!D58*A!$H$5+'C'!E58*A!$I$5+'C'!F58*A!$J$5+'C'!G58*A!$K$5)/SUM(A!$G$5:$K$5) -> 2806.420421
A59: 30 | B59: 30 | C59: =A!G$2+A!G$3*B59+A!G$4*B59^2 -> 2801.257091 | D59: =IF(B59<(A!H$3/(-2*A!H$4)),A!H$2+A!H$3*B59+A!H$4*B59^2,A!H$2+A!H$3*(A!H$3/(-2*A!H$4))+A!H$3*A!H$3/(4*A!H$4)) -> 2819.870053 | E59: =A!I$2+A!I$3*EXP(A!I$4*B59) -> 2848.949216 | F59: =IF((A!J$2+A!J$3*B59)<A!J$4,A!J$2+A!J$3*B59,A!J$4) -> 2845.001028 | G59: =IF(B59<A!K$4,A!K$2+A!K$3*(3*B59/(2*A!K$4)-0.5*(B59/A!K$4)^3),A!K$3+A!K$2) -> 2823.061001 | H59: =(C59*A!$G$5+'C'!D59*A!$H$5+'C'!E59*A!$I$5+'C'!F59*A!$J$5+'C'!G59*A!$K$5)/SUM(A!$G$5:$K$5) -> 2827.621674
A60: 32 | B60: 32 | C60: =A!G$2+A!G$3*B60+A!G$4*B60^2 -> 2820.034259 | D60: =IF(B60<(A!H$3/(-2*A!H$4)),A!H$2+A!H$3*B60+A!H$4*B60^2,A!H$2+A!H$3*(A!H$3/(-2*A!H$4))+A!H$3*A!H$3/(4*A!H$4)) -> 2839.010701 | E60: =A!I$2+A!I$3*EXP(A!I$4*B60) -> 2864.346927 | F60: =IF((A!J$2+A!J$3*B60)<A!J$4,A!J$2+A!J$3*B60,A!J$4) -> 2872.801088 | G60: =IF(B60<A!K$4,A!K$2+A!K$3*(3*B60/(2*A!K$4)-0.5*(B60/A!K$4)^3),A!K$3+A!K$2) -> 2844.695854 | H60: =(C60*A!$G$5+'C'!D60*A!$H$5+'C'!E60*A!$I$5+'C'!F60*A!$J$5+'C'!G60*A!$K$5)/SUM(A!$G$5:$K$5) -> 2848.161136
A61: 34 | B61: 34 | C61: =A!G$2+A!G$3*B61+A!G$4*B61^2 -> 2838.190474 | D61: =IF(B61<(A!H$3/(-2*A!H$4)),A!H$2+A!H$3*B61+A!H$4*B61^2,A!H$2+A!H$3*(A!H$3/(-2*A!H$4))+A!H$3*A!H$3/(4*A!H$4)) -> 2857.342943 | E61: =A!I$2+A!I$3*EXP(A!I$4*B61) -> 2878.707406 | F61: =IF((A!J$2+A!J$3*B61)<A!J$4,A!J$2+A!J$3*B61,A!J$4) -> 2900.601148 | G61: =IF(B61<A!K$4,A!K$2+A!K$3*(3*B61/(2*A!K$4)-0.5*(B61/A!K$4)^3),A!K$3+A!K$2) -> 2865.516147 | H61: =(C61*A!$G$5+'C'!D61*A!$H$5+'C'!E61*A!$I$5+'C'!F61*A!$J$5+'C'!G61*A!$K$5)/SUM(A!$G$5:$K$5) -> 2868.043697
A62: 36 | B62: 36 | C62: =A!G$2+A!G$3*B62+A!G$4*B62^2 -> 2855.725736 | D62: =IF(B62<(A!H$3/(-2*A!H$4)),A!H$2+A!H$3*B62+A!H$4*B62^2,A!H$2+A!H$3*(A!H$3/(-2*A!H$4))+A!H$3*A!H$3/(4*A!H$4)) -> 2874.866777 | E62: =A!I$2+A!I$3*EXP(A!I$4*B62) -> 2892.100523 | F62: =IF((A!J$2+A!J$3*B62)<A!J$4,A!J$2+A!J$3*B62,A!J$4) -> 2928.401208 | G62: =IF(B62<A!K$4,A!K$2+A!K$3*(3*B62/(2*A!K$4)-0.5*(B62/A!K$4)^3),A!K$3+A!K$2) -> 2885.470972 | H62: =(C62*A!$G$5+'C'!D62*A!$H$5+'C'!E62*A!$I$5+'C'!F62*A!$J$5+'C'!G62*A!$K$5)/SUM(A!$G$5:$K$5) -> 2887.27323
A63: 38 | B63: 38 | C63: =A!G$2+A!G$3*B63+A!G$4*B63^2 -> 2872.640045 | D63: =IF(B63<(A!H$3/(-2*A!H$4)),A!H$2+A!H$3*B63+A!H$4*B63^2,A!H$2+A!H$3*(A!H$3/(-2*A!H$4))+A!H$3*A!H$3/(4*A!H$4)) -> 2891.582205 | E63: =A!I$2+A!I$3*EXP(A!I$4*B63) -> 2904.591443 | F63: =IF((A!J$2+A!J$3*B63)<A!J$4,A!J$2+A!J$3*B63,A!J$4) -> 2956.201268 | G63: =IF(B63<A!K$4,A!K$2+A!K$3*(3*B63/(2*A!K$4)-0.5*(B63/A!K$4)^3),A!K$3+A!K$2) -> 2904.509417 | H63: =(C63*A!$G$5+'C'!D63*A!$H$5+'C'!E63*A!$I$5+'C'!F63*A!$J$5+'C'!G63*A!$K$5)/SUM(A!$G$5:$K$5) -> 2905.852668
A64: 40 | B64: 40 | C64: =A!G$2+A!G$3*B64+A!G$4*B64^2 -> 2888.9334 | D64: =IF(B64<(A!H$3/(-2*A!H$4)),A!H$2+A!H$3*B64+A!H$4*B64^2,A!H$2+A!H$3*(A!H$3/(-2*A!H$4))+A!H$3*A!H$3/(4*A!H$4)) -> 2907.489225 | E64: =A!I$2+A!I$3*EXP(A!I$4*B64) -> 2916.24094 | F64: =IF((A!J$2+A!J$3*B64)<A!J$4,A!J$2+A!J$3*B64,A!J$4) -> 2984.001328 | G64: =IF(B64<A!K$4,A!K$2+A!K$3*(3*B64/(2*A!K$4)-0.5*(B64/A!K$4)^3),A!K$3+A!K$2) -> 2922.580574 | H64: =(C64*A!$G$5+'C'!D64*A!$H$5+'C'!E64*A!$I$5+'C'!F64*A!$J$5+'C'!G64*A!$K$5)/SUM(A!$G$5:$K$5) -> 2923.784058
A65: 42 | B65: 42 | C65: =A!G$2+A!G$3*B65+A!G$4*B65^2 -> 2904.605803 | D65: =IF(B65<(A!H$3/(-2*A!H$4)),A!H$2+A!H$3*B65+A!H$4*B65^2,A!H$2+A!H$3*(A!H$3/(-2*A!H$4))+A!H$3*A!H$3/(4*A!H$4)) -> 2922.587839 | E65: =A!I$2+A!I$3*EXP(A!I$4*B65) -> 2927.105695 | F65: =IF((A!J$2+A!J$3*B65)<A!J$4,A!J$2+A!J$3*B65,A!J$4) -> 3011.801388 | G65: =IF(B65<A!K$4,A!K$2+A!K$3*(3*B65/(2*A!K$4)-0.5*(B65/A!K$4)^3),A!K$3+A!K$2) -> 2939.633531 | H65: =(C65*A!$G$5+'C'!D65*A!$H$5+'C'!E65*A!$I$5+'C'!F65*A!$J$5+'C'!G65*A!$K$5)/SUM(A!$G$5:$K$5) -> 2941.068629
A66: 44 | B66: 44 | C66: =A!G$2+A!G$3*B66+A!G$4*B66^2 -> 2919.657253 | D66: =IF(B66<(A!H$3/(-2*A!H$4)),A!H$2+A!H$3*B66+A!H$4*B66^2,A!H$2+A!H$3*(A!H$3/(-2*A!H$4))+A!H$3*A!H$3/(4*A!H$4)) -> 2936.878045 | E66: =A!I$2+A!I$3*EXP(A!I$4*B66) -> 2937.23857 | F66: =IF((A!J$2+A!J$3*B66)<A!J$4,A!J$2+A!J$3*B66,A!J$4) -> 3038.99947 | G66: =IF(B66<A!K$4,A!K$2+A!K$3*(3*B66/(2*A!K$4)-0.5*(B66/A!K$4)^3),A!K$3+A!K$2) -> 2955.617379 | H66: =(C66*A!$G$5+'C'!D66*A!$H$5+'C'!E66*A!$I$5+'C'!F66*A!$J$5+'C'!G66*A!$K$5)/SUM(A!$G$5:$K$5) -> 2957.586878
A67: 46 | B67: 46 | C67: =A!G$2+A!G$3*B67+A!G$4*B67^2 -> 2934.087749 | D67: =IF(B67<(A!H$3/(-2*A!H$4)),A!H$2+A!H$3*B67+A!H$4*B67^2,A!H$2+A!H$3*(A!H$3/(-2*A!H$4))+A!H$3*A!H$3/(4*A!H$4)) -> 2950.359845 | E67: =A!I$2+A!I$3*EXP(A!I$4*B67) -> 2946.688867 | F67: =IF((A!J$2+A!J$3*B67)<A!J$4,A!J$2+A!J$3*B67,A!J$4) -> 3038.99947 | G67: =IF(B67<A!K$4,A!K$2+A!K$3*(3*B67/(2*A!K$4)-0.5*(B67/A!K$4)^3),A!K$3+A!K$2) -> 2970.481209 | H67: =(C67*A!$G$5+'C'!D67*A!$H$5+'C'!E67*A!$I$5+'C'!F67*A!$J$5+'C'!G67*A!$K$5)/SUM(A!$G$5:$K$5) -> 2968.038386
A68: 48 | B68: 48 | C68: =A!G$2+A!G$3*B68+A!G$4*B68^2 -> 2947.897293 | D68: =IF(B68<(A!H$3/(-2*A!H$4)),A!H$2+A!H$3*B68+A!H$4*B68^2,A!H$2+A!H$3*(A!H$3/(-2*A!H$4))+A!H$3*A!H$3/(4*A!H$4)) -> 2963.033237 | E68: =A!I$2+A!I$3*EXP(A!I$4*B68) -> 2955.502565 | F68: =IF((A!J$2+A!J$3*B68)<A!J$4,A!J$2+A!J$3*B68,A!J$4) -> 3038.99947 | G68: =IF(B68<A!K$4,A!K$2+A!K$3*(3*B68/(2*A!K$4)-0.5*(B68/A!K$4)^3),A!K$3+A!K$2) -> 2984.174109 | H68: =(C68*A!$G$5+'C'!D68*A!$H$5+'C'!E68*A!$I$5+'C'!F68*A!$J$5+'C'!G68*A!$K$5)/SUM(A!$G$5:$K$5) -> 2977.842364
A69: 50 | B69: 50 | C69: =A!G$2+A!G$3*B69+A!G$4*B69^2 -> 2961.085883 | D69: =IF(B69<(A!H$3/(-2*A!H$4)),A!H$2+A!H$3*B69+A!H$4*B69^2,A!H$2+A!H$3*(A!H$3/(-2*A!H$4))+A!H$3*A!H$3/(4*A!H$4)) -> 2974.898223 | E69: =A!I$2+A!I$3*EXP(A!I$4*B69) -> 2963.722549 | F69: =IF((A!J$2+A!J$3*B69)<A!J$4,A!J$2+A!J$3*B69,A!J$4) -> 3038.99947 | G69: =IF(B69<A!K$4,A!K$2+A!K$3*(3*B69/(2*A!K$4)-0.5*(B69/A!K$4)^3),A!K$3+A!K$2) -> 2996.645171 | H69: =(C69*A!$G$5+'C'!D69*A!$H$5+'C'!E69*A!$I$5+'C'!F69*A!$J$5+'C'!G69*A!$K$5)/SUM(A!$G$5:$K$5) -> 2986.99727
A70: 52 | B70: 52 | C70: =A!G$2+A!G$3*B70+A!G$4*B70^2 -> 2973.653521 | D70: =IF(B70<(A!H$3/(-2*A!H$4)),A!H$2+A!H$3*B70+A!H$4*B70^2,A!H$2+A!H$3*(A!H$3/(-2*A!H$4))+A!H$3*A!H$3/(4*A!H$4)) -> 2985.954801 | E70: =A!I$2+A!I$3*EXP(A!I$4*B70) -> 2971.388812 | F70: =IF((A!J$2+A!J$3*B70)<A!J$4,A!J$2+A!J$3*B70,A!J$4) -> 3038.99947 | G70: =IF(B70<A!K$4,A!K$2+A!K$3*(3*B70/(2*A!K$4)-0.5*(B70/A!K$4)^3),A!K$3+A!K$2) -> 3007.843484 | H70: =(C70*A!$G$5+'C'!D70*A!$H$5+'C'!E70*A!$I$5+'C'!F70*A!$J$5+'C'!G70*A!$K$5)/SUM(A!$G$5:$K$5) -> 2995.500983
A71: 54 | B71: 54 | C71: =A!G$2+A!G$3*B71+A!G$4*B71^2 -> 2985.600205 | D71: =IF(B71<(A!H$3/(-2*A!H$4)),A!H$2+A!H$3*B71+A!H$4*B71^2,A!H$2+A!H$3*(A!H$3/(-2*A!H$4))+A!H$3*A!H$3/(4*A!H$4)) -> 2996.202973 | E71: =A!I$2+A!I$3*EXP(A!I$4*B71) -> 2978.538654 | F71: =IF((A!J$2+A!J$3*B71)<A!J$4,A!J$2+A!J$3*B71,A!J$4) -> 3038.99947 | G71: =IF(B71<A!K$4,A!K$2+A!K$3*(3*B71/(2*A!K$4)-0.5*(B71/A!K$4)^3),A!K$3+A!K$2) -> 3017.718138 | H71: =(C71*A!$G$5+'C'!D71*A!$H$5+'C'!E71*A!$I$5+'C'!F71*A!$J$5+'C'!G71*A!$K$5)/SUM(A!$G$5:$K$5) -> 3003.35084
A72: 56 | B72: 56 | C72: =A!G$2+A!G$3*B72+A!G$4*B72^2 -> 2996.925936 | D72: =IF(B72<(A!H$3/(-2*A!H$4)),A!H$2+A!H$3*B72+A!H$4*B72^2,A!H$2+A!H$3*(A!H$3/(-2*A!H$4))+A!H$3*A!H$3/(4*A!H$4)) -> 3005.642737 | E72: =A!I$2+A!I$3*EXP(A!I$4*B72) -> 2985.206863 | F72: =IF((A!J$2+A!J$3*B72)<A!J$4,A!J$2+A!J$3*B72,A!J$4) -> 3038.99947 | G72: =IF(B72<A!K$4,A!K$2+A!K$3*(3*B72/(2*A!K$4)-0.5*(B72/A!K$4)^3),A!K$3+A!K$2) -> 3026.218224 | H72: =(C72*A!$G$5+'C'!D72*A!$H$5+'C'!E72*A!$I$5+'C'!F72*A!$J$5+'C'!G72*A!$K$5)/SUM(A!$G$5:$K$5) -> 3010.543676
A73: 58 | B73: 58 | C73: =A!G$2+A!G$3*B73+A!G$4*B73^2 -> 3007.630715 | D73: =IF(B73<(A!H$3/(-2*A!H$4)),A!H$2+A!H$3*B73+A!H$4*B73^2,A!H$2+A!H$3*(A!H$3/(-2*A!H$4))+A!H$3*A!H$3/(4*A!H$4)) -> 3014.274095 | E73: =A!I$2+A!I$3*EXP(A!I$4*B73) -> 2991.425883 | F73: =IF((A!J$2+A!J$3*B73)<A!J$4,A!J$2+A!J$3*B73,A!J$4) -> 3038.99947 | G73: =IF(B73<A!K$4,A!K$2+A!K$3*(3*B73/(2*A!K$4)-0.5*(B73/A!K$4)^3),A!K$3+A!K$2) -> 3033.292831 | H73: =(C73*A!$G$5+'C'!D73*A!$H$5+'C'!E73*A!$I$5+'C'!F73*A!$J$5+'C'!G73*A!$K$5)/SUM(A!$G$5:$K$5) -> 3017.075854
A74: 60 | B74: 60 | C74: =A!G$2+A!G$3*B74+A!G$4*B74^2 -> 3017.71454 | D74: =IF(B74<(A!H$3/(-2*A!H$4)),A!H$2+A!H$3*B74+A!H$4*B74^2,A!H$2+A!H$3*(A!H$3/(-2*A!H$4))+A!H$3*A!H$3/(4*A!H$4)) -> 3022.097045 | E74: =A!I$2+A!I$3*EXP(A!I$4*B74) -> 2997.225973 | F74: =IF((A!J$2+A!J$3*B74)<A!J$4,A!J$2+A!J$3*B74,A!J$4) -> 3038.99947 | G74: =IF(B74<A!K$4,A!K$2+A!K$3*(3*B74/(2*A!K$4)-0.5*(B74/A!K$4)^3),A!K$3+A!K$2) -> 3038.891049 | H74: =(C74*A!$G$5+'C'!D74*A!$H$5+'C'!E74*A!$I$5+'C'!F74*A!$J$5+'C'!G74*A!$K$5)/SUM(A!$G$5:$K$5) -> 3022.943299
A75: 62 | B75: 62 | C75: =A!G$2+A!G$3*B75+A!G$4*B75^2 -> 3027.177412 | D75: =IF(B75<(A!H$3/(-2*A!H$4)),A!H$2+A!H$3*B75+A!H$4*B75^2,A!H$2+A!H$3*(A!H$3/(-2*A!H$4))+A!H$3*A!H$3/(4*A!H$4)) -> 3029.111588 | E75: =A!I$2+A!I$3*EXP(A!I$4*B75) -> 3002.635353 | F75: =IF((A!J$2+A!J$3*B75)<A!J$4,A!J$2+A!J$3*B75,A!J$4) -> 3038.99947 | G75: =IF(B75<A!K$4,A!K$2+A!K$3*(3*B75/(2*A!K$4)-0.5*(B75/A!K$4)^3),A!K$3+A!K$2) -> 3042.961969 | H75: =(C75*A!$G$5+'C'!D75*A!$H$5+'C'!E75*A!$I$5+'C'!F75*A!$J$5+'C'!G75*A!$K$5)/SUM(A!$G$5:$K$5) -> 3028.141526
A76: 64 | B76: 64 | C76: =A!G$2+A!G$3*B76+A!G$4*B76^2 -> 3036.019331 | D76: =IF(B76<(A!H$3/(-2*A!H$4)),A!H$2+A!H$3*B76+A!H$4*B76^2,A!H$2+A!H$3*(A!H$3/(-2*A!H$4))+A!H$3*A!H$3/(4*A!H$4)) -> 3035.317725 | E76: =A!I$2+A!I$3*EXP(A!I$4*B76) -> 3007.680342 | F76: =IF((A!J$2+A!J$3*B76)<A!J$4,A!J$2+A!J$3*B76,A!J$4) -> 3038.99947 | G76: =IF(B76<A!K$4,A!K$2+A!K$3*(3*B76/(2*A!K$4)-0.5*(B76/A!K$4)^3),A!K$3+A!K$2) -> 3045.454681 | H76: =(C76*A!$G$5+'C'!D76*A!$H$5+'C'!E76*A!$I$5+'C'!F76*A!$J$5+'C'!G76*A!$K$5)/SUM(A!$G$5:$K$5) -> 3032.66567
A77: 66 | B77: 66 | C77: =A!G$2+A!G$3*B77+A!G$4*B77^2 -> 3044.240296 | D77: =IF(B77<(A!H$3/(-2*A!H$4)),A!H$2+A!H$3*B77+A!H$4*B77^2,A!H$2+A!H$3*(A!H$3/(-2*A!H$4))+A!H$3*A!H$3/(4*A!H$4)) -> 3040.715454 | E77: =A!I$2+A!I$3*EXP(A!I$4*B77) -> 3012.385486 | F77: =IF((A!J$2+A!J$3*B77)<A!J$4,A!J$2+A!J$3*B77,A!J$4) -> 3038.99947 | G77: =IF(B77<A!K$4,A!K$2+A!K$3*(3*B77/(2*A!K$4)-0.5*(B77/A!K$4)^3),A!K$3+A!K$2) -> 3046.318273 | H77: =(C77*A!$G$5+'C'!D77*A!$H$5+'C'!E77*A!$I$5+'C'!F77*A!$J$5+'C'!G77*A!$K$5)/SUM(A!$G$5:$K$5) -> 3036.510508
A78: 68 | B78: 68 | C78: =A!G$2+A!G$3*B78+A!G$4*B78^2 -> 3051.840309 | D78: =IF(B78<(A!H$3/(-2*A!H$4)),A!H$2+A!H$3*B78+A!H$4*B78^2,A!H$2+A!H$3*(A!H$3/(-2*A!H$4))+A!H$3*A!H$3/(4*A!H$4)) -> 3045.304777 | E78: =A!I$2+A!I$3*EXP(A!I$4*B78) -> 3016.773679 | F78: =IF((A!J$2+A!J$3*B78)<A!J$4,A!J$2+A!J$3*B78,A!J$4) -> 3038.99947 | G78: =IF(B78<A!K$4,A!K$2+A!K$3*(3*B78/(2*A!K$4)-0.5*(B78/A!K$4)^3),A!K$3+A!K$2) -> 3046.318579 | H78: =(C78*A!$G$5+'C'!D78*A!$H$5+'C'!E78*A!$I$5+'C'!F78*A!$J$5+'C'!G78*A!$K$5)/SUM(A!$G$5:$K$5) -> 3039.833296
A79: 70 | B79: 70 | C79: =A!G$2+A!G$3*B79+A!G$4*B79^2 -> 3058.819369 | D79: =IF(B79<(A!H$3/(-2*A!H$4)),A!H$2+A!H$3*B79+A!H$4*B79^2,A!H$2+A!H$3*(A!H$3/(-2*A!H$4))+A!H$3*A!H$3/(4*A!H$4)) -> 3049.085692 | E79: =A!I$2+A!I$3*EXP(A!I$4*B79) -> 3020.866272 | F79: =IF((A!J$2+A!J$3*B79)<A!J$4,A!J$2+A!J$3*B79,A!J$4) -> 3038.99947 | G79: =IF(B79<A!K$4,A!K$2+A!K$3*(3*B79/(2*A!K$4)-0.5*(B79/A!K$4)^3),A!K$3+A!K$2) -> 3046.318579 | H79: =(C79*A!$G$5+'C'!D79*A!$H$5+'C'!E79*A!$I$5+'C'!F79*A!$J$5+'C'!G79*A!$K$5)/SUM(A!$G$5:$K$5) -> 3042.810347
A80: 72 | B80: 72 | C80: =A!G$2+A!G$3*B80+A!G$4*B80^2 -> 3065.177476 | D80: =IF(B80<(A!H$3/(-2*A!H$4)),A!H$2+A!H$3*B80+A!H$4*B80^2,A!H$2+A!H$3*(A!H$3/(-2*A!H$4))+A!H$3*A!H$3/(4*A!H$4)) -> 3052.058201 | E80: =A!I$2+A!I$3*EXP(A!I$4*B80) -> 3024.683176 | F80: =IF((A!J$2+A!J$3*B80)<A!J$4,A!J$2+A!J$3*B80,A!J$4) -> 3038.99947 | G80: =IF(B80<A!K$4,A!K$2+A!K$3*(3*B80/(2*A!K$4)-0.5*(B80/A!K$4)^3),A!K$3+A!K$2) -> 3046.318579 | H80: =(C80*A!$G$5+'C'!D80*A!$H$5+'C'!E80*A!$I$5+'C'!F80*A!$J$5+'C'!G80*A!$K$5)/SUM(A!$G$5:$K$5) -> 3045.445716
A81: 74 | B81: 74 | C81: =A!G$2+A!G$3*B81+A!G$4*B81^2 -> 3070.914629 | D81: =IF(B81<(A!H$3/(-2*A!H$4)),A!H$2+A!H$3*B81+A!H$4*B81^2,A!H$2+A!H$3*(A!H$3/(-2*A!H$4))+A!H$3*A!H$3/(4*A!H$4)) -> 3054.222302 | E81: =A!I$2+A!I$3*EXP(A!I$4*B81) -> 3028.242963 | F81: =IF((A!J$2+A!J$3*B81)<A!J$4,A!J$2+A!J$3*B81,A!J$4) -> 3038.99947 | G81: =IF(B81<A!K$4,A!K$2+A!K$3*(3*B81/(2*A!K$4)-0.5*(B81/A!K$4)^3),A!K$3+A!K$2) -> 3046.318579 | H81: =(C81*A!$G$5+'C'!D81*A!$H$5+'C'!E81*A!$I$5+'C'!F81*A!$J$5+'C'!G81*A!$K$5)/SUM(A!$G$5:$K$5) -> 3047.743132
A82: 76 | B82: 76 | C82: =A!G$2+A!G$3*B82+A!G$4*B82^2 -> 3076.03083 | D82: =IF(B82<(A!H$3/(-2*A!H$4)),A!H$2+A!H$3*B82+A!H$4*B82^2,A!H$2+A!H$3*(A!H$3/(-2*A!H$4))+A!H$3*A!H$3/(4*A!H$4)) -> 3055.577997 | E82: =A!I$2+A!I$3*EXP(A!I$4*B82) -> 3031.562953 | F82: =IF((A!J$2+A!J$3*B82)<A!J$4,A!J$2+A!J$3*B82,A!J$4) -> 3038.99947 | G82: =IF(B82<A!K$4,A!K$2+A!K$3*(3*B82/(2*A!K$4)-0.5*(B82/A!K$4)^3),A!K$3+A!K$2) -> 3046.318579 | H82: =(C82*A!$G$5+'C'!D82*A!$H$5+'C'!E82*A!$I$5+'C'!F82*A!$J$5+'C'!G82*A!$K$5)/SUM(A!$G$5:$K$5) -> 3049.706071
A83: 78 | B83: 78 | C83: =A!G$2+A!G$3*B83+A!G$4*B83^2 -> 3080.526077 | D83: =IF(B83<(A!H$3/(-2*A!H$4)),A!H$2+A!H$3*B83+A!H$4*B83^2,A!H$2+A!H$3*(A!H$3/(-2*A!H$4))+A!H$3*A!H$3/(4*A!H$4)) -> 3056.125284 | E83: =A!I$2+A!I$3*EXP(A!I$4*B83) -> 3034.659299 | F83: =IF((A!J$2+A!J$3*B83)<A!J$4,A!J$2+A!J$3*B83,A!J$4) -> 3038.99947 | G83: =IF(B83<A!K$4,A!K$2+A!K$3*(3*B83/(2*A!K$4)-0.5*(B83/A!K$4)^3),A!K$3+A!K$2) -> 3046.318579 | H83: =(C83*A!$G$5+'C'!D83*A!$H$5+'C'!E83*A!$I$5+'C'!F83*A!$J$5+'C'!G83*A!$K$5)/SUM(A!$G$5:$K$5) -> 3051.337775
A84: 80 | B84: 80 | C84: =A!G$2+A!G$3*B84+A!G$4*B84^2 -> 3084.400371 | D84: =IF(B84<(A!H$3/(-2*A!H$4)),A!H$2+A!H$3*B84+A!H$4*B84^2,A!H$2+A!H$3*(A!H$3/(-2*A!H$4))+A!H$3*A!H$3/(4*A!H$4)) -> 3056.137947 | E84: =A!I$2+A!I$3*EXP(A!I$4*B84) -> 3037.547066 | F84: =IF((A!J$2+A!J$3*B84)<A!J$4,A!J$2+A!J$3*B84,A!J$4) -> 3038.99947 | G84: =IF(B84<A!K$4,A!K$2+A!K$3*(3*B84/(2*A!K$4)-0.5*(B84/A!K$4)^3),A!K$3+A!K$2) -> 3046.318579 | H84: =(C84*A!$G$5+'C'!D84*A!$H$5+'C'!E84*A!$I$5+'C'!F84*A!$J$5+'C'!G84*A!$K$5)/SUM(A!$G$5:$K$5) -> 3052.696112
A85: 82 | B85: 82 | C85: =A!G$2+A!G$3*B85+A!G$4*B85^2 -> 3087.653713 | D85: =IF(B85<(A!H$3/(-2*A!H$4)),A!H$2+A!H$3*B85+A!H$4*B85^2,A!H$2+A!H$3*(A!H$3/(-2*A!H$4))+A!H$3*A!H$3/(4*A!H$4)) -> 3056.137947 | E85: =A!I$2+A!I$3*EXP(A!I$4*B85) -> 3040.240306 | F85: =IF((A!J$2+A!J$3*B85)<A!J$4,A!J$2+A!J$3*B85,A!J$4) -> 3038.99947 | G85: =IF(B85<A!K$4,A!K$2+A!K$3*(3*B85/(2*A!K$4)-0.5*(B85/A!K$4)^3),A!K$3+A!K$2) -> 3046.318579 | H85: =(C85*A!$G$5+'C'!D85*A!$H$5+'C'!E85*A!$I$5+'C'!F85*A!$J$5+'C'!G85*A!$K$5)/SUM(A!$G$5:$K$5) -> 3053.888464
A86: 84 | B86: 84 | C86: =A!G$2+A!G$3*B86+A!G$4*B86^2 -> 3090.286101 | D86: =IF(B86<(A!H$3/(-2*A!H$4)),A!H$2+A!H$3*B86+A!H$4*B86^2,A!H$2+A!H$3*(A!H$3/(-2*A!H$4))+A!H$3*A!H$3/(4*A!H$4)) -> 3056.137947 | E86: =A!I$2+A!I$3*EXP(A!I$4*B86) -> 3042.752122 | F86: =IF((A!J$2+A!J$3*B86)<A!J$4,A!J$2+A!J$3*B86,A!J$4) -> 3038.99947 | G86: =IF(B86<A!K$4,A!K$2+A!K$3*(3*B86/(2*A!K$4)-0.5*(B86/A!K$4)^3),A!K$3+A!K$2) -> 3046.318579 | H86: =(C86*A!$G$5+'C'!D86*A!$H$5+'C'!E86*A!$I$5+'C'!F86*A!$J$5+'C'!G86*A!$K$5)/SUM(A!$G$5:$K$5) -> 3054.919995
A87: 86 | B87: 86 | C87: =A!G$2+A!G$3*B87+A!G$4*B87^2 -> 3092.297536 | D87: =IF(B87<(A!H$3/(-2*A!H$4)),A!H$2+A!H$3*B87+A!H$4*B87^2,A!H$2+A!H$3*(A!H$3/(-2*A!H$4))+A!H$3*A!H$3/(4*A!H$4)) -> 3056.137947 | E87: =A!I$2+A!I$3*EXP(A!I$4*B87) -> 3045.094735 | F87: =IF((A!J$2+A!J$3*B87)<A!J$4,A!J$2+A!J$3*B87,A!J$4) -> 3038.99947 | G87: =IF(B87<A!K$4,A!K$2+A!K$3*(3*B87/(2*A!K$4)-0.5*(B87/A!K$4)^3),A!K$3+A!K$2) -> 3046.318579 | H87: =(C87*A!$G$5+'C'!D87*A!$H$5+'C'!E87*A!$I$5+'C'!F87*A!$J$5+'C'!G87*A!$K$5)/SUM(A!$G$5:$K$5) -> 3055.793161
A88: 88 | B88: 88 | C88: =A!G$2+A!G$3*B88+A!G$4*B88^2 -> 3093.688018 | D88: =IF(B88<(A!H$3/(-2*A!H$4)),A!H$2+A!H$3*B88+A!H$4*B88^2,A!H$2+A!H$3*(A!H$3/(-2*A!H$4))+A!H$3*A!H$3/(4*A!H$4)) -> 3056.137947 | E88: =A!I$2+A!I$3*EXP(A!I$4*B88) -> 3047.279543 | F88: =IF((A!J$2+A!J$3*B88)<A!J$4,A!J$2+A!J$3*B88,A!J$4) -> 3038.99947 | G88: =IF(B88<A!K$4,A!K$2+A!K$3*(3*B88/(2*A!K$4)-0.5*(B88/A!K$4)^3),A!K$3+A!K$2) -> 3046.318579 | H88: =(C88*A!$G$5+'C'!D88*A!$H$5+'C'!E88*A!$I$5+'C'!F88*A!$J$5+'C'!G88*A!$K$5)/SUM(A!$G$5:$K$5) -> 3056.510247
A89: 90 | B89: 90 | C89: =A!G$2+A!G$3*B89+A!G$4*B89^2 -> 3094.457547 | D89: =IF(B89<(A!H$3/(-2*A!H$4)),A!H$2+A!H$3*B89+A!H$4*B89^2,A!H$2+A!H$3*(A!H$3/(-2*A!H$4))+A!H$3*A!H$3/(4*A!H$4)) -> 3056.137947 | E89: =A!I$2+A!I$3*EXP(A!I$4*B89) -> 3049.317176 | F89: =IF((A!J$2+A!J$3*B89)<A!J$4,A!J$2+A!J$3*B89,A!J$4) -> 3038.99947 | G89: =IF(B89<A!K$4,A!K$2+A!K$3*(3*B89/(2*A!K$4)-0.5*(B89/A!K$4)^3),A!K$3+A!K$2) -> 3046.318579 | H89: =(C89*A!$G$5+'C'!D89*A!$H$5+'C'!E89*A!$I$5+'C'!F89*A!$J$5+'C'!G89*A!$K$5)/SUM(A!$G$5:$K$5) -> 3057.073388
A90: 92 | B90: 92 | C90: =A!G$2+A!G$3*B90+A!G$4*B90^2 -> 3094.606123 | D90: =IF(B90<(A!H$3/(-2*A!H$4)),A!H$2+A!H$3*B90+A!H$4*B90^2,A!H$2+A!H$3*(A!H$3/(-2*A!H$4))+A!H$3*A!H$3/(4*A!H$4)) -> 3056.137947 | E90: =A!I$2+A!I$3*EXP(A!I$4*B90) -> 3051.217549 | F90: =IF((A!J$2+A!J$3*B90)<A!J$4,A!J$2+A!J$3*B90,A!J$4) -> 3038.99947 | G90: =IF(B90<A!K$4,A!K$2+A!K$3*(3*B90/(2*A!K$4)-0.5*(B90/A!K$4)^3),A!K$3+A!K$2) -> 3046.318579 | H90: =(C90*A!$G$5+'C'!D90*A!$H$5+'C'!E90*A!$I$5+'C'!F90*A!$J$5+'C'!G90*A!$K$5)/SUM(A!$G$5:$K$5) -> 3057.484574
A91: 94 | B91: 94 | C91: =A!G$2+A!G$3*B91+A!G$4*B91^2 -> 3094.133746 | D91: =IF(B91<(A!H$3/(-2*A!H$4)),A!H$2+A!H$3*B91+A!H$4*B91^2,A!H$2+A!H$3*(A!H$3/(-2*A!H$4))+A!H$3*A!H$3/(4*A!H$4)) -> 3056.137947 | E91: =A!I$2+A!I$3*EXP(A!I$4*B91) -> 3052.989907 | F91: =IF((A!J$2+A!J$3*B91)<A!J$4,A!J$2+A!J$3*B91,A!J$4) -> 3038.99947 | G91: =IF(B91<A!K$4,A!K$2+A!K$3*(3*B91/(2*A!K$4)-0.5*(B91/A!K$4)^3),A!K$3+A!K$2) -> 3046.318579 | H91: =(C91*A!$G$5+'C'!D91*A!$H$5+'C'!E91*A!$I$5+'C'!F91*A!$J$5+'C'!G91*A!$K$5)/SUM(A!$G$5:$K$5) -> 3057.74566
A92: 96 | B92: 96 | C92: =A!G$2+A!G$3*B92+A!G$4*B92^2 -> 3093.040415 | D92: =IF(B92<(A!H$3/(-2*A!H$4)),A!H$2+A!H$3*B92+A!H$4*B92^2,A!H$2+A!H$3*(A!H$3/(-2*A!H$4))+A!H$3*A!H$3/(4*A!H$4)) -> 3056.137947 | E92: =A!I$2+A!I$3*EXP(A!I$4*B92) -> 3054.642874 | F92: =IF((A!J$2+A!J$3*B92)<A!J$4,A!J$2+A!J$3*B92,A!J$4) -> 3038.99947 | G92: =IF(B92<A!K$4,A!K$2+A!K$3*(3*B92/(2*A!K$4)-0.5*(B92/A!K$4)^3),A!K$3+A!K$2) -> 3046.318579 | H92: =(C92*A!$G$5+'C'!D92*A!$H$5+'C'!E92*A!$I$5+'C'!F92*A!$J$5+'C'!G92*A!$K$5)/SUM(A!$G$5:$K$5) -> 3057.858377
A93: 98 | B93: 98 | C93: =A!G$2+A!G$3*B93+A!G$4*B93^2 -> 3091.326132 | D93: =IF(B93<(A!H$3/(-2*A!H$4)),A!H$2+A!H$3*B93+A!H$4*B93^2,A!H$2+A!H$3*(A!H$3/(-2*A!H$4))+A!H$3*A!H$3/(4*A!H$4)) -> 3056.137947 | E93: =A!I$2+A!I$3*EXP(A!I$4*B93) -> 3056.184493 | F93: =IF((A!J$2+A!J$3*B93)<A!J$4,A!J$2+A!J$3*B93,A!J$4) -> 3038.99947 | G93: =IF(B93<A!K$4,A!K$2+A!K$3*(3*B93/(2*A!K$4)-0.5*(B93/A!K$4)^3),A!K$3+A!K$2) -> 3046.318579 | H93: =(C93*A!$G$5+'C'!D93*A!$H$5+'C'!E93*A!$I$5+'C'!F93*A!$J$5+'C'!G93*A!$K$5)/SUM(A!$G$5:$K$5) -> 3057.82434
A94: 100 | B94: 100 | C94: =A!G$2+A!G$3*B94+A!G$4*B94^2 -> 3088.990896 | D94: =IF(B94<(A!H$3/(-2*A!H$4)),A!H$2+A!H$3*B94+A!H$4*B94^2,A!H$2+A!H$3*(A!H$3/(-2*A!H$4))+A!H$3*A!H$3/(4*A!H$4)) -> 3056.137947 | E94: =A!I$2+A!I$3*EXP(A!I$4*B94) -> 3057.622265 | F94: =IF((A!J$2+A!J$3*B94)<A!J$4,A!J$2+A!J$3*B94,A!J$4) -> 3038.99947 | G94: =IF(B94<A!K$4,A!K$2+A!K$3*(3*B94/(2*A!K$4)-0.5*(B94/A!K$4)^3),A!K$3+A!K$2) -> 3046.318579 | H94: =(C94*A!$G$5+'C'!D94*A!$H$5+'C'!E94*A!$I$5+'C'!F94*A!$J$5+'C'!G94*A!$K$5)/SUM(A!$G$5:$K$5) -> 3057.645053
A95: 102 | B95: 102 | C95: =A!G$2+A!G$3*B95+A!G$4*B95^2 -> 3086.034706 | D95: =IF(B95<(A!H$3/(-2*A!H$4)),A!H$2+A!H$3*B95+A!H$4*B95^2,A!H$2+A!H$3*(A!H$3/(-2*A!H$4))+A!H$3*A!H$3/(4*A!H$4)) -> 3056.137947 | E95: =A!I$2+A!I$3*EXP(A!I$4*B95) -> 3058.963184 | F95: =IF((A!J$2+A!J$3*B95)<A!J$4,A!J$2+A!J$3*B95,A!J$4) -> 3038.99947 | G95: =IF(B95<A!K$4,A!K$2+A!K$3*(3*B95/(2*A!K$4)-0.5*(B95/A!K$4)^3),A!K$3+A!K$2) -> 3046.318579 | H95: =(C95*A!$G$5+'C'!D95*A!$H$5+'C'!E95*A!$I$5+'C'!F95*A!$J$5+'C'!G95*A!$K$5)/SUM(A!$G$5:$K$5) -> 3057.321921
A96: 104 | B96: 104 | C96: =A!G$2+A!G$3*B96+A!G$4*B96^2 -> 3082.457564 | D96: =IF(B96<(A!H$3/(-2*A!H$4)),A!H$2+A!H$3*B96+A!H$4*B96^2,A!H$2+A!H$3*(A!H$3/(-2*A!H$4))+A!H$3*A!H$3/(4*A!H$4)) -> 3056.137947 | E96: =A!I$2+A!I$3*EXP(A!I$4*B96) -> 3060.213775 | F96: =IF((A!J$2+A!J$3*B96)<A!J$4,A!J$2+A!J$3*B96,A!J$4) -> 3038.99947 | G96: =IF(B96<A!K$4,A!K$2+A!K$3*(3*B96/(2*A!K$4)-0.5*(B96/A!K$4)^3),A!K$3+A!K$2) -> 3046.318579 | H96: =(C96*A!$G$5+'C'!D96*A!$H$5+'C'!E96*A!$I$5+'C'!F96*A!$J$5+'C'!G96*A!$K$5)/SUM(A!$G$5:$K$5) -> 3056.856253
A97: 106 | B97: 106 | C97: =A!G$2+A!G$3*B97+A!G$4*B97^2 -> 3078.259468 | D97: =IF(B97<(A!H$3/(-2*A!H$4)),A!H$2+A!H$3*B97+A!H$4*B97^2,A!H$2+A!H$3*(A!H$3/(-2*A!H$4))+A!H$3*A!H$3/(4*A!H$4)) -> 3056.137947 | E97: =A!I$2+A!I$3*EXP(A!I$4*B97) -> 3061.380122 | F97: =IF((A!J$2+A!J$3*B97)<A!J$4,A!J$2+A!J$3*B97,A!J$4) -> 3038.99947 | G97: =IF(B97<A!K$4,A!K$2+A!K$3*(3*B97/(2*A!K$4)-0.5*(B97/A!K$4)^3),A!K$3+A!K$2) -> 3046.318579 | H97: =(C97*A!$G$5+'C'!D97*A!$H$5+'C'!E97*A!$I$5+'C'!F97*A!$J$5+'C'!G97*A!$K$5)/SUM(A!$G$5:$K$5) -> 3056.249271
A98: 108 | B98: 108 | C98: =A!G$2+A!G$3*B98+A!G$4*B98^2 -> 3073.440419 | D98: =IF(B98<(A!H$3/(-2*A!H$4)),A!H$2+A!H$3*B98+A!H$4*B98^2,A!H$2+A!H$3*(A!H$3/(-2*A!H$4))+A!H$3*A!H$3/(4*A!H$4)) -> 3056.137947 | E98: =A!I$2+A!I$3*EXP(A!I$4*B98) -> 3062.467902 | F98: =IF((A!J$2+A!J$3*B98)<A!J$4,A!J$2+A!J$3*B98,A!J$4) -> 3038.99947 | G98: =IF(B98<A!K$4,A!K$2+A!K$3*(3*B98/(2*A!K$4)-0.5*(B98/A!K$4)^3),A!K$3+A!K$2) -> 3046.318579 | H98: =(C98*A!$G$5+'C'!D98*A!$H$5+'C'!E98*A!$I$5+'C'!F98*A!$J$5+'C'!G98*A!$K$5)/SUM(A!$G$5:$K$5) -> 3055.502113
A99: 110 | B99: 110 | C99: =A!G$2+A!G$3*B99+A!G$4*B99^2 -> 3068.000418 | D99: =IF(B99<(A!H$3/(-2*A!H$4)),A!H$2+A!H$3*B99+A!H$4*B99^2,A!H$2+A!H$3*(A!H$3/(-2*A!H$4))+A!H$3*A!H$3/(4*A!H$4)) -> 3056.137947 | E99: =A!I$2+A!I$3*EXP(A!I$4*B99) -> 3063.482405 | F99: =IF((A!J$2+A!J$3*B99)<A!J$4,A!J$2+A!J$3*B99,A!J$4) -> 3038.99947 | G99: =IF(B99<A!K$4,A!K$2+A!K$3*(3*B99/(2*A!K$4)-0.5*(B99/A!K$4)^3),A!K$3+A!K$2) -> 3046.318579 | H99: =(C99*A!$G$5+'C'!D99*A!$H$5+'C'!E99*A!$I$5+'C'!F99*A!$J$5+'C'!G99*A!$K$5)/SUM(A!$G$5:$K$5) -> 3054.615842
A100: 112 | B100: 112 | C100: =A!G$2+A!G$3*B100+A!G$4*B100^2 -> 3061.939463 | D100: =IF(B100<(A!H$3/(-2*A!H$4)),A!H$2+A!H$3*B100+A!H$4*B100^2,A!H$2+A!H$3*(A!H$3/(-2*A!H$4))+A!H$3*A!H$3/(4*A!H$4)) -> 3056.137947 | E100: =A!I$2+A!I$3*EXP(A!I$4*B100) -> 3064.428569 | F100: =IF((A!J$2+A!J$3*B100)<A!J$4,A!J$2+A!J$3*B100,A!J$4) -> 3038.99947 | G100: =IF(B100<A!K$4,A!K$2+A!K$3*(3*B100/(2*A!K$4)-0.5*(B100/A!K$4)^3),A!K$3+A!K$2) -> 3046.318579 | H100: =(C100*A!$G$5+'C'!D100*A!$H$5+'C'!E100*A!$I$5+'C'!F100*A!$J$5+'C'!G100*A!$K$5)/SUM(A!$G$5:$K$5) -> 3053.591449
A101: 114 | B101: 114 | C101: =A!G$2+A!G$3*B101+A!G$4*B101^2 -> 3055.257555 | D101: =IF(B101<(A!H$3/(-2*A!H$4)),A!H$2+A!H$3*B101+A!H$4*B101^2,A!H$2+A!H$3*(A!H$3/(-2*A!H$4))+A!H$3*A!H$3/(4*A!H$4)) -> 3056.137947 | E101: =A!I$2+A!I$3*EXP(A!I$4*B101) -> 3065.310997 | F101: =IF((A!J$2+A!J$3*B101)<A!J$4,A!J$2+A!J$3*B101,A!J$4) -> 3038.99947 | G101: =IF(B101<A!K$4,A!K$2+A!K$3*(3*B101/(2*A!K$4)-0.5*(B101/A!K$4)^3),A!K$3+A!K$2) -> 3046.318579 | H101: =(C101*A!$G$5+'C'!D101*A!$H$5+'C'!E101*A!$I$5+'C'!F101*A!$J$5+'C'!G101*A!$K$5)/SUM(A!$G$5:$K$5) -> 3052.429857
A102: 116 | B102: 116 | C102: =A!G$2+A!G$3*B102+A!G$4*B102^2 -> 3047.954694 | D102: =IF(B102<(A!H$3/(-2*A!H$4)),A!H$2+A!H$3*B102+A!H$4*B102^2,A!H$2+A!H$3*(A!H$3/(-2*A!H$4))+A!H$3*A!H$3/(4*A!H$4)) -> 3056.137947 | E102: =A!I$2+A!I$3*EXP(A!I$4*B102) -> 3066.133982 | F102: =IF((A!J$2+A!J$3*B102)<A!J$4,A!J$2+A!J$3*B102,A!J$4) -> 3038.99947 | G102: =IF(B102<A!K$4,A!K$2+A!K$3*(3*B102/(2*A!K$4)-0.5*(B102/A!K$4)^3),A!K$3+A!K$2) -> 3046.318579 | H102: =(C102*A!$G$5+'C'!D102*A!$H$5+'C'!E102*A!$I$5+'C'!F102*A!$J$5+'C'!G102*A!$K$5)/SUM(A!$G$5:$K$5) -> 3051.131928
A103: 118 | B103: 118 | C103: =A!G$2+A!G$3*B103+A!G$4*B103^2 -> 3040.03088 | D103: =IF(B103<(A!H$3/(-2*A!H$4)),A!H$2+A!H$3*B103+A!H$4*B103^2,A!H$2+A!H$3*(A!H$3/(-2*A!H$4))+A!H$3*A!H$3/(4*A!H$4)) -> 3056.137947 | E103: =A!I$2+A!I$3*EXP(A!I$4*B103) -> 3066.901528 | F103: =IF((A!J$2+A!J$3*B103)<A!J$4,A!J$2+A!J$3*B103,A!J$4) -> 3038.99947 | G103: =IF(B103<A!K$4,A!K$2+A!K$3*(3*B103/(2*A!K$4)-0.5*(B103/A!K$4)^3),A!K$3+A!K$2) -> 3046.318579 | H103: =(C103*A!$G$5+'C'!D103*A!$H$5+'C'!E103*A!$I$5+'C'!F103*A!$J$5+'C'!G103*A!$K$5)/SUM(A!$G$5:$K$5) -> 3049.698466
A104: 120 | B104: 120 | C104: =A!G$2+A!G$3*B104+A!G$4*B104^2 -> 3031.486113 | D104: =IF(B104<(A!H$3/(-2*A!H$4)),A!H$2+A!H$3*B104+A!H$4*B104^2,A!H$2+A!H$3*(A!H$3/(-2*A!H$4))+A!H$3*A!H$3/(4*A!H$4)) -> 3056.137947 | E104: =A!I$2+A!I$3*EXP(A!I$4*B104) -> 3067.61737 | F104: =IF((A!J$2+A!J$3*B104)<A!J$4,A!J$2+A!J$3*B104,A!J$4) -> 3038.99947 | G104: =IF(B104<A!K$4,A!K$2+A!K$3*(3*B104/(2*A!K$4)-0.5*(B104/A!K$4)^3),A!K$3+A!K$2) -> 3046.318579 | H104: =(C104*A!$G$5+'C'!D104*A!$H$5+'C'!E104*A!$I$5+'C'!F104*A!$J$5+'C'!G104*A!$K$5)/SUM(A!$G$5:$K$5) -> 3048.13022
A105: 122 | B105: 120 | C105: =A!G$2+A!G$3*B105+A!G$4*B105^2 -> 3031.486113 | D105: =IF(B105<(A!H$3/(-2*A!H$4)),A!H$2+A!H$3*B105+A!H$4*B105^2,A!H$2+A!H$3*(A!H$3/(-2*A!H$4))+A!H$3*A!H$3/(4*A!H$4)) -> 3056.137947 | E105: =A!I$2+A!I$3*EXP(A!I$4*B105) -> 3067.61737 | F105: =IF((A!J$2+A!J$3*B105)<A!J$4,A!J$2+A!J$3*B105,A!J$4) -> 3038.99947 | G105: =IF(B105<A!K$4,A!K$2+A!K$3*(3*B105/(2*A!K$4)-0.5*(B105/A!K$4)^3),A!K$3+A!K$2) -> 3046.318579 | H105: =(C105*A!$G$5+'C'!D105*A!$H$5+'C'!E105*A!$I$5+'C'!F105*A!$J$5+'C'!G105*A!$K$5)/SUM(A!$G$5:$K$5) -> 3048.13022
A106: 124 | B106: 120 | C106: =A!G$2+A!G$3*B106+A!G$4*B106^2 -> 3031.486113 | D106: =IF(B106<(A!H$3/(-2*A!H$4)),A!H$2+A!H$3*B106+A!H$4*B106^2,A!H$2+A!H$3*(A!H$3/(-2*A!H$4))+A!H$3*A!H$3/(4*A!H$4)) -> 3056.137947 | E106: =A!I$2+A!I$3*EXP(A!I$4*B106) -> 3067.61737 | F106: =IF((A!J$2+A!J$3*B106)<A!J$4,A!J$2+A!J$3*B106,A!J$4) -> 3038.99947 | G106: =IF(B106<A!K$4,A!K$2+A!K$3*(3*B106/(2*A!K$4)-0.5*(B106/A!K$4)^3),A!K$3+A!K$2) -> 3046.318579 | H106: =(C106*A!$G$5+'C'!D106*A!$H$5+'C'!E106*A!$I$5+'C'!F106*A!$J$5+'C'!G106*A!$K$5)/SUM(A!$G$5:$K$5) -> 3048.13022
A107: 126 | B107: 120 | C107: =A!G$2+A!G$3*B107+A!G$4*B107^2 -> 3031.486113 | D107: =IF(B107<(A!H$3/(-2*A!H$4)),A!H$2+A!H$3*B107+A!H$4*B107^2,A!H$2+A!H$3*(A!H$3/(-2*A!H$4))+A!H$3*A!H$3/(4*A!H$4)) -> 3056.137947 | E107: =A!I$2+A!I$3*EXP(A!I$4*B107) -> 3067.61737 | F107: =IF((A!J$2+A!J$3*B107)<A!J$4,A!J$2+A!J$3*B107,A!J$4) -> 3038.99947 | G107: =IF(B107<A!K$4,A!K$2+A!K$3*(3*B107/(2*A!K$4)-0.5*(B107/A!K$4)^3),A!K$3+A!K$2) -> 3046.318579 | H107: =(C107*A!$G$5+'C'!D107*A!$H$5+'C'!E107*A!$I$5+'C'!F107*A!$J$5+'C'!G107*A!$K$5)/SUM(A!$G$5:$K$5) -> 3048.13022
A108: 128 | B108: 120 | C108: =A!G$2+A!G$3*B108+A!G$4*B108^2 -> 3031.486113 | D108: =IF(B108<(A!H$3/(-2*A!H$4)),A!H$2+A!H$3*B108+A!H$4*B108^2,A!H$2+A!H$3*(A!H$3/(-2*A!H$4))+A!H$3*A!H$3/(4*A!H$4)) -> 3056.137947 | E108: =A!I$2+A!I$3*EXP(A!I$4*B108) -> 3067.61737 | F108: =IF((A!J$2+A!J$3*B108)<A!J$4,A!J$2+A!J$3*B108,A!J$4) -> 3038.99947 | G108: =IF(B108<A!K$4,A!K$2+A!K$3*(3*B108/(2*A!K$4)-0.5*(B108/A!K$4)^3),A!K$3+A!K$2) -> 3046.318579 | H108: =(C108*A!$G$5+'C'!D108*A!$H$5+'C'!E108*A!$I$5+'C'!F108*A!$J$5+'C'!G108*A!$K$5)/SUM(A!$G$5:$K$5) -> 3048.13022
A109: 130 | B109: =IF(A109<MAX($M$44),A109,MAX($M$44)) -> 120 | C109: =A!G$2+A!G$3*B109+A!G$4*B109^2 -> 3031.486113 | D109: =IF(B109<(A!H$3/(-2*A!H$4)),A!H$2+A!H$3*B109+A!H$4*B109^2,A!H$2+A!H$3*(A!H$3/(-2*A!H$4))+A!H$3*A!H$3/(4*A!H$4)) -> 3056.137947 | E109: =A!I$2+A!I$3*EXP(A!I$4*B109) -> 3067.61737 | F109: =IF((A!J$2+A!J$3*B109)<A!J$4,A!J$2+A!J$3*B109,A!J$4) -> 3038.99947 | G109: =IF(B109<A!K$4,A!K$2+A!K$3*(3*B109/(2*A!K$4)-0.5*(B109/A!K$4)^3),A!K$3+A!K$2) -> 3046.318579 | H109: =(C109*A!$G$5+'C'!D109*A!$H$5+'C'!E109*A!$I$5+'C'!F109*A!$J$5+'C'!G109*A!$K$5)/SUM(A!$G$5:$K$5) -> 3048.13022
A110: 132 | B110: 120 | C110: =A!G$2+A!G$3*B110+A!G$4*B110^2 -> 3031.486113 | D110: =IF(B110<(A!H$3/(-2*A!H$4)),A!H$2+A!H$3*B110+A!H$4*B110^2,A!H$2+A!H$3*(A!H$3/(-2*A!H$4))+A!H$3*A!H$3/(4*A!H$4)) -> 3056.137947 | E110: =A!I$2+A!I$3*EXP(A!I$4*B110) -> 3067.61737 | F110: =IF((A!J$2+A!J$3*B110)<A!J$4,A!J$2+A!J$3*B110,A!J$4) -> 3038.99947 | G110: =IF(B110<A!K$4,A!K$2+A!K$3*(3*B110/(2*A!K$4)-0.5*(B110/A!K$4)^3),A!K$3+A!K$2) -> 3046.318579 | H110: =(C110*A!$G$5+'C'!D110*A!$H$5+'C'!E110*A!$I$5+'C'!F110*A!$J$5+'C'!G110*A!$K$5)/SUM(A!$G$5:$K$5) -> 3048.13022
A111: 134 | B111: 120 | C111: =A!G$2+A!G$3*B111+A!G$4*B111^2 -> 3031.486113 | D111: =IF(B111<(A!H$3/(-2*A!H$4)),A!H$2+A!H$3*B111+A!H$4*B111^2,A!H$2+A!H$3*(A!H$3/(-2*A!H$4))+A!H$3*A!H$3/(4*A!H$4)) -> 3056.137947 | E111: =A!I$2+A!I$3*EXP(A!I$4*B111) -> 3067.61737 | F111: =IF((A!J$2+A!J$3*B111)<A!J$4,A!J$2+A!J$3*B111,A!J$4) -> 3038.99947 | G111: =IF(B111<A!K$4,A!K$2+A!K$3*(3*B111/(2*A!K$4)-0.5*(B111/A!K$4)^3),A!K$3+A!K$2) -> 3046.318579 | H111: =(C111*A!$G$5+'C'!D111*A!$H$5+'C'!E111*A!$I$5+'C'!F111*A!$J$5+'C'!G111*A!$K$5)/SUM(A!$G$5:$K$5) -> 3048.13022
A112: 136 | B112: 120 | C112: =A!G$2+A!G$3*B112+A!G$4*B112^2 -> 3031.486113 | D112: =IF(B112<(A!H$3/(-2*A!H$4)),A!H$2+A!H$3*B112+A!H$4*B112^2,A!H$2+A!H$3*(A!H$3/(-2*A!H$4))+A!H$3*A!H$3/(4*A!H$4)) -> 3056.137947 | E112: =A!I$2+A!I$3*EXP(A!I$4*B112) -> 3067.61737 | F112: =IF((A!J$2+A!J$3*B112)<A!J$4,A!J$2+A!J$3*B112,A!J$4) -> 3038.99947 | G112: =IF(B112<A!K$4,A!K$2+A!K$3*(3*B112/(2*A!K$4)-0.5*(B112/A!K$4)^3),A!K$3+A!K$2) -> 3046.318579 | H112: =(C112*A!$G$5+'C'!D112*A!$H$5+'C'!E112*A!$I$5+'C'!F112*A!$J$5+'C'!G112*A!$K$5)/SUM(A!$G$5:$K$5) -> 3048.13022
A113: 138 | B113: 120 | C113: =A!G$2+A!G$3*B113+A!G$4*B113^2 -> 3031.486113 | D113: =IF(B113<(A!H$3/(-2*A!H$4)),A!H$2+A!H$3*B113+A!H$4*B113^2,A!H$2+A!H$3*(A!H$3/(-2*A!H$4))+A!H$3*A!H$3/(4*A!H$4)) -> 3056.137947 | E113: =A!I$2+A!I$3*EXP(A!I$4*B113) -> 3067.61737 | F113: =IF((A!J$2+A!J$3*B113)<A!J$4,A!J$2+A!J$3*B113,A!J$4) -> 3038.99947 | G113: =IF(B113<A!K$4,A!K$2+A!K$3*(3*B113/(2*A!K$4)-0.5*(B113/A!K$4)^3),A!K$3+A!K$2) -> 3046.318579 | H113: =(C113*A!$G$5+'C'!D113*A!$H$5+'C'!E113*A!$I$5+'C'!F113*A!$J$5+'C'!G113*A!$K$5)/SUM(A!$G$5:$K$5) -> 3048.13022
A114: 140 | B114: 120 | C114: =A!G$2+A!G$3*B114+A!G$4*B114^2 -> 3031.486113 | D114: =IF(B114<(A!H$3/(-2*A!H$4)),A!H$2+A!H$3*B114+A!H$4*B114^2,A!H$2+A!H$3*(A!H$3/(-2*A!H$4))+A!H$3*A!H$3/(4*A!H$4)) -> 3056.137947 | E114: =A!I$2+A!I$3*EXP(A!I$4*B114) -> 3067.61737 | F114: =IF((A!J$2+A!J$3*B114)<A!J$4,A!J$2+A!J$3*B114,A!J$4) -> 3038.99947 | G114: =IF(B114<A!K$4,A!K$2+A!K$3*(3*B114/(2*A!K$4)-0.5*(B114/A!K$4)^3),A!K$3+A!K$2) -> 3046.318579 | H114: =(C114*A!$G$5+'C'!D114*A!$H$5+'C'!E114*A!$I$5+'C'!F114*A!$J$5+'C'!G114*A!$K$5)/SUM(A!$G$5:$K$5) -> 3048.13022
A115: 142 | B115: 120 | C115: =A!G$2+A!G$3*B115+A!G$4*B115^2 -> 3031.486113 | D115: =IF(B115<(A!H$3/(-2*A!H$4)),A!H$2+A!H$3*B115+A!H$4*B115^2,A!H$2+A!H$3*(A!H$3/(-2*A!H$4))+A!H$3*A!H$3/(4*A!H$4)) -> 3056.137947 | E115: =A!I$2+A!I$3*EXP(A!I$4*B115) -> 3067.61737 | F115: =IF((A!J$2+A!J$3*B115)<A!J$4,A!J$2+A!J$3*B115,A!J$4) -> 3038.99947 | G115: =IF(B115<A!K$4,A!K$2+A!K$3*(3*B115/(2*A!K$4)-0.5*(B115/A!K$4)^3),A!K$3+A!K$2) -> 3046.318579 | H115: =(C115*A!$G$5+'C'!D115*A!$H$5+'C'!E115*A!$I$5+'C'!F115*A!$J$5+'C'!G115*A!$K$5)/SUM(A!$G$5:$K$5) -> 3048.13022
A116: 144 | B116: 120 | C116: =A!G$2+A!G$3*B116+A!G$4*B116^2 -> 3031.486113 | D116: =IF(B116<(A!H$3/(-2*A!H$4)),A!H$2+A!H$3*B116+A!H$4*B116^2,A!H$2+A!H$3*(A!H$3/(-2*A!H$4))+A!H$3*A!H$3/(4*A!H$4)) -> 3056.137947 | E116: =A!I$2+A!I$3*EXP(A!I$4*B116) -> 3067.61737 | F116: =IF((A!J$2+A!J$3*B116)<A!J$4,A!J$2+A!J$3*B116,A!J$4) -> 3038.99947 | G116: =IF(B116<A!K$4,A!K$2+A!K$3*(3*B116/(2*A!K$4)-0.5*(B116/A!K$4)^3),A!K$3+A!K$2) -> 3046.318579 | H116: =(C116*A!$G$5+'C'!D116*A!$H$5+'C'!E116*A!$I$5+'C'!F116*A!$J$5+'C'!G116*A!$K$5)/SUM(A!$G$5:$K$5) -> 3048.13022
A117: 146 | B117: 120 | C117: =A!G$2+A!G$3*B117+A!G$4*B117^2 -> 3031.486113 | D117: =IF(B117<(A!H$3/(-2*A!H$4)),A!H$2+A!H$3*B117+A!H$4*B117^2,A!H$2+A!H$3*(A!H$3/(-2*A!H$4))+A!H$3*A!H$3/(4*A!H$4)) -> 3056.137947 | E117: =A!I$2+A!I$3*EXP(A!I$4*B117) -> 3067.61737 | F117: =IF((A!J$2+A!J$3*B117)<A!J$4,A!J$2+A!J$3*B117,A!J$4) -> 3038.99947 | G117: =IF(B117<A!K$4,A!K$2+A!K$3*(3*B117/(2*A!K$4)-0.5*(B117/A!K$4)^3),A!K$3+A!K$2) -> 3046.318579 | H117: =(C117*A!$G$5+'C'!D117*A!$H$5+'C'!E117*A!$I$5+'C'!F117*A!$J$5+'C'!G117*A!$K$5)/SUM(A!$G$5:$K$5) -> 3048.13022
A118: 148 | B118: 120 | C118: =A!G$2+A!G$3*B118+A!G$4*B118^2 -> 3031.486113 | D118: =IF(B118<(A!H$3/(-2*A!H$4)),A!H$2+A!H$3*B118+A!H$4*B118^2,A!H$2+A!H$3*(A!H$3/(-2*A!H$4))+A!H$3*A!H$3/(4*A!H$4)) -> 3056.137947 | E118: =A!I$2+A!I$3*EXP(A!I$4*B118) -> 3067.61737 | F118: =IF((A!J$2+A!J$3*B118)<A!J$4,A!J$2+A!J$3*B118,A!J$4) -> 3038.99947 | G118: =IF(B118<A!K$4,A!K$2+A!K$3*(3*B118/(2*A!K$4)-0.5*(B118/A!K$4)^3),A!K$3+A!K$2) -> 3046.318579 | H118: =(C118*A!$G$5+'C'!D118*A!$H$5+'C'!E118*A!$I$5+'C'!F118*A!$J$5+'C'!G118*A!$K$5)/SUM(A!$G$5:$K$5) -> 3048.13022
A119: 150 | B119: 120 | C119: =A!G$2+A!G$3*B119+A!G$4*B119^2 -> 3031.486113 | D119: =IF(B119<(A!H$3/(-2*A!H$4)),A!H$2+A!H$3*B119+A!H$4*B119^2,A!H$2+A!H$3*(A!H$3/(-2*A!H$4))+A!H$3*A!H$3/(4*A!H$4)) -> 3056.137947 | E119: =A!I$2+A!I$3*EXP(A!I$4*B119) -> 3067.61737 | F119: =IF((A!J$2+A!J$3*B119)<A!J$4,A!J$2+A!J$3*B119,A!J$4) -> 3038.99947 | G119: =IF(B119<A!K$4,A!K$2+A!K$3*(3*B119/(2*A!K$4)-0.5*(B119/A!K$4)^3),A!K$3+A!K$2) -> 3046.318579 | H119: =(C119*A!$G$5+'C'!D119*A!$H$5+'C'!E119*A!$I$5+'C'!F119*A!$J$5+'C'!G119*A!$K$5)/SUM(A!$G$5:$K$5) -> 3048.13022
A120: 152 | B120: 120 | C120: =A!G$2+A!G$3*B120+A!G$4*B120^2 -> 3031.486113 | D120: =IF(B120<(A!H$3/(-2*A!H$4)),A!H$2+A!H$3*B120+A!H$4*B120^2,A!H$2+A!H$3*(A!H$3/(-2*A!H$4))+A!H$3*A!H$3/(4*A!H$4)) -> 3056.137947 | E120: =A!I$2+A!I$3*EXP(A!I$4*B120) -> 3067.61737 | F120: =IF((A!J$2+A!J$3*B120)<A!J$4,A!J$2+A!J$3*B120,A!J$4) -> 3038.99947 | G120: =IF(B120<A!K$4,A!K$2+A!K$3*(3*B120/(2*A!K$4)-0.5*(B120/A!K$4)^3),A!K$3+A!K$2) -> 3046.318579 | H120: =(C120*A!$G$5+'C'!D120*A!$H$5+'C'!E120*A!$I$5+'C'!F120*A!$J$5+'C'!G120*A!$K$5)/SUM(A!$G$5:$K$5) -> 3048.13022
A121: 154 | B121: 120 | C121: =A!G$2+A!G$3*B121+A!G$4*B121^2 -> 3031.486113 | D121: =IF(B121<(A!H$3/(-2*A!H$4)),A!H$2+A!H$3*B121+A!H$4*B121^2,A!H$2+A!H$3*(A!H$3/(-2*A!H$4))+A!H$3*A!H$3/(4*A!H$4)) -> 3056.137947 | E121: =A!I$2+A!I$3*EXP(A!I$4*B121) -> 3067.61737 | F121: =IF((A!J$2+A!J$3*B121)<A!J$4,A!J$2+A!J$3*B121,A!J$4) -> 3038.99947 | G121: =IF(B121<A!K$4,A!K$2+A!K$3*(3*B121/(2*A!K$4)-0.5*(B121/A!K$4)^3),A!K$3+A!K$2) -> 3046.318579 | H121: =(C121*A!$G$5+'C'!D121*A!$H$5+'C'!E121*A!$I$5+'C'!F121*A!$J$5+'C'!G121*A!$K$5)/SUM(A!$G$5:$K$5) -> 3048.13022
A122: 156 | B122: 120 | C122: =A!G$2+A!G$3*B122+A!G$4*B122^2 -> 3031.486113 | D122: =IF(B122<(A!H$3/(-2*A!H$4)),A!H$2+A!H$3*B122+A!H$4*B122^2,A!H$2+A!H$3*(A!H$3/(-2*A!H$4))+A!H$3*A!H$3/(4*A!H$4)) -> 3056.137947 | E122: =A!I$2+A!I$3*EXP(A!I$4*B122) -> 3067.61737 | F122: =IF((A!J$2+A!J$3*B122)<A!J$4,A!J$2+A!J$3*B122,A!J$4) -> 3038.99947 | G122: =IF(B122<A!K$4,A!K$2+A!K$3*(3*B122/(2*A!K$4)-0.5*(B122/A!K$4)^3),A!K$3+A!K$2) -> 3046.318579 | H122: =(C122*A!$G$5+'C'!D122*A!$H$5+'C'!E122*A!$I$5+'C'!F122*A!$J$5+'C'!G122*A!$K$5)/SUM(A!$G$5:$K$5) -> 3048.13022
A123: 158 | B123: 120 | C123: =A!G$2+A!G$3*B123+A!G$4*B123^2 -> 3031.486113 | D123: =IF(B123<(A!H$3/(-2*A!H$4)),A!H$2+A!H$3*B123+A!H$4*B123^2,A!H$2+A!H$3*(A!H$3/(-2*A!H$4))+A!H$3*A!H$3/(4*A!H$4)) -> 3056.137947 | E123: =A!I$2+A!I$3*EXP(A!I$4*B123) -> 3067.61737 | F123: =IF((A!J$2+A!J$3*B123)<A!J$4,A!J$2+A!J$3*B123,A!J$4) -> 3038.99947 | G123: =IF(B123<A!K$4,A!K$2+A!K$3*(3*B123/(2*A!K$4)-0.5*(B123/A!K$4)^3),A!K$3+A!K$2) -> 3046.318579 | H123: =(C123*A!$G$5+'C'!D123*A!$H$5+'C'!E123*A!$I$5+'C'!F123*A!$J$5+'C'!G123*A!$K$5)/SUM(A!$G$5:$K$5) -> 3048.13022
A124: 160 | B124: 120 | C124: =A!G$2+A!G$3*B124+A!G$4*B124^2 -> 3031.486113 | D124: =IF(B124<(A!H$3/(-2*A!H$4)),A!H$2+A!H$3*B124+A!H$4*B124^2,A!H$2+A!H$3*(A!H$3/(-2*A!H$4))+A!H$3*A!H$3/(4*A!H$4)) -> 3056.137947 | E124: =A!I$2+A!I$3*EXP(A!I$4*B124) -> 3067.61737 | F124: =IF((A!J$2+A!J$3*B124)<A!J$4,A!J$2+A!J$3*B124,A!J$4) -> 3038.99947 | G124: =IF(B124<A!K$4,A!K$2+A!K$3*(3*B124/(2*A!K$4)-0.5*(B124/A!K$4)^3),A!K$3+A!K$2) -> 3046.318579 | H124: =(C124*A!$G$5+'C'!D124*A!$H$5+'C'!E124*A!$I$5+'C'!F124*A!$J$5+'C'!G124*A!$K$5)/SUM(A!$G$5:$K$5) -> 3048.13022
A125: 162 | B125: 120 | C125: =A!G$2+A!G$3*B125+A!G$4*B125^2 -> 3031.486113 | D125: =IF(B125<(A!H$3/(-2*A!H$4)),A!H$2+A!H$3*B125+A!H$4*B125^2,A!H$2+A!H$3*(A!H$3/(-2*A!H$4))+A!H$3*A!H$3/(4*A!H$4)) -> 3056.137947 | E125: =A!I$2+A!I$3*EXP(A!I$4*B125) -> 3067.61737 | F125: =IF((A!J$2+A!J$3*B125)<A!J$4,A!J$2+A!J$3*B125,A!J$4) -> 3038.99947 | G125: =IF(B125<A!K$4,A!K$2+A!K$3*(3*B125/(2*A!K$4)-0.5*(B125/A!K$4)^3),A!K$3+A!K$2) -> 3046.318579 | H125: =(C125*A!$G$5+'C'!D125*A!$H$5+'C'!E125*A!$I$5+'C'!F125*A!$J$5+'C'!G125*A!$K$5)/SUM(A!$G$5:$K$5) -> 3048.13022
A126: 164 | B126: 120 | C126: =A!G$2+A!G$3*B126+A!G$4*B126^2 -> 3031.486113 | D126: =IF(B126<(A!H$3/(-2*A!H$4)),A!H$2+A!H$3*B126+A!H$4*B126^2,A!H$2+A!H$3*(A!H$3/(-2*A!H$4))+A!H$3*A!H$3/(4*A!H$4)) -> 3056.137947 | E126: =A!I$2+A!I$3*EXP(A!I$4*B126) -> 3067.61737 | F126: =IF((A!J$2+A!J$3*B126)<A!J$4,A!J$2+A!J$3*B126,A!J$4) -> 3038.99947 | G126: =IF(B126<A!K$4,A!K$2+A!K$3*(3*B126/(2*A!K$4)-0.5*(B126/A!K$4)^3),A!K$3+A!K$2) -> 3046.318579 | H126: =(C126*A!$G$5+'C'!D126*A!$H$5+'C'!E126*A!$I$5+'C'!F126*A!$J$5+'C'!G126*A!$K$5)/SUM(A!$G$5:$K$5) -> 3048.13022
A127: 166 | B127: 120 | C127: =A!G$2+A!G$3*B127+A!G$4*B127^2 -> 3031.486113 | D127: =IF(B127<(A!H$3/(-2*A!H$4)),A!H$2+A!H$3*B127+A!H$4*B127^2,A!H$2+A!H$3*(A!H$3/(-2*A!H$4))+A!H$3*A!H$3/(4*A!H$4)) -> 3056.137947 | E127: =A!I$2+A!I$3*EXP(A!I$4*B127) -> 3067.61737 | F127: =IF((A!J$2+A!J$3*B127)<A!J$4,A!J$2+A!J$3*B127,A!J$4) -> 3038.99947 | G127: =IF(B127<A!K$4,A!K$2+A!K$3*(3*B127/(2*A!K$4)-0.5*(B127/A!K$4)^3),A!K$3+A!K$2) -> 3046.318579 | H127: =(C127*A!$G$5+'C'!D127*A!$H$5+'C'!E127*A!$I$5+'C'!F127*A!$J$5+'C'!G127*A!$K$5)/SUM(A!$G$5:$K$5) -> 3048.13022
A128: 168 | B128: 120 | C128: =A!G$2+A!G$3*B128+A!G$4*B128^2 -> 3031.486113 | D128: =IF(B128<(A!H$3/(-2*A!H$4)),A!H$2+A!H$3*B128+A!H$4*B128^2,A!H$2+A!H$3*(A!H$3/(-2*A!H$4))+A!H$3*A!H$3/(4*A!H$4)) -> 3056.137947 | E128: =A!I$2+A!I$3*EXP(A!I$4*B128) -> 3067.61737 | F128: =IF((A!J$2+A!J$3*B128)<A!J$4,A!J$2+A!J$3*B128,A!J$4) -> 3038.99947 | G128: =IF(B128<A!K$4,A!K$2+A!K$3*(3*B128/(2*A!K$4)-0.5*(B128/A!K$4)^3),A!K$3+A!K$2) -> 3046.318579 | H128: =(C128*A!$G$5+'C'!D128*A!$H$5+'C'!E128*A!$I$5+'C'!F128*A!$J$5+'C'!G128*A!$K$5)/SUM(A!$G$5:$K$5) -> 3048.13022
A129: 170 | B129: 120 | C129: =A!G$2+A!G$3*B129+A!G$4*B129^2 -> 3031.486113 | D129: =IF(B129<(A!H$3/(-2*A!H$4)),A!H$2+A!H$3*B129+A!H$4*B129^2,A!H$2+A!H$3*(A!H$3/(-2*A!H$4))+A!H$3*A!H$3/(4*A!H$4)) -> 3056.137947 | E129: =A!I$2+A!I$3*EXP(A!I$4*B129) -> 3067.61737 | F129: =IF((A!J$2+A!J$3*B129)<A!J$4,A!J$2+A!J$3*B129,A!J$4) -> 3038.99947 | G129: =IF(B129<A!K$4,A!K$2+A!K$3*(3*B129/(2*A!K$4)-0.5*(B129/A!K$4)^3),A!K$3+A!K$2) -> 3046.318579 | H129: =(C129*A!$G$5+'C'!D129*A!$H$5+'C'!E129*A!$I$5+'C'!F129*A!$J$5+'C'!G129*A!$K$5)/SUM(A!$G$5:$K$5) -> 3048.13022
A130: 172 | B130: 120 | C130: =A!G$2+A!G$3*B130+A!G$4*B130^2 -> 3031.486113 | D130: =IF(B130<(A!H$3/(-2*A!H$4)),A!H$2+A!H$3*B130+A!H$4*B130^2,A!H$2+A!H$3*(A!H$3/(-2*A!H$4))+A!H$3*A!H$3/(4*A!H$4)) -> 3056.137947 | E130: =A!I$2+A!I$3*EXP(A!I$4*B130) -> 3067.61737 | F130: =IF((A!J$2+A!J$3*B130)<A!J$4,A!J$2+A!J$3*B130,A!J$4) -> 3038.99947 | G130: =IF(B130<A!K$4,A!K$2+A!K$3*(3*B130/(2*A!K$4)-0.5*(B130/A!K$4)^3),A!K$3+A!K$2) -> 3046.318579 | H130: =(C130*A!$G$5+'C'!D130*A!$H$5+'C'!E130*A!$I$5+'C'!F130*A!$J$5+'C'!G130*A!$K$5)/SUM(A!$G$5:$K$5) -> 3048.13022
A131: 174 | B131: 120 | C131: =A!G$2+A!G$3*B131+A!G$4*B131^2 -> 3031.486113 | D131: =IF(B131<(A!H$3/(-2*A!H$4)),A!H$2+A!H$3*B131+A!H$4*B131^2,A!H$2+A!H$3*(A!H$3/(-2*A!H$4))+A!H$3*A!H$3/(4*A!H$4)) -> 3056.137947 | E131: =A!I$2+A!I$3*EXP(A!I$4*B131) -> 3067.61737 | F131: =IF((A!J$2+A!J$3*B131)<A!J$4,A!J$2+A!J$3*B131,A!J$4) -> 3038.99947 | G131: =IF(B131<A!K$4,A!K$2+A!K$3*(3*B131/(2*A!K$4)-0.5*(B131/A!K$4)^3),A!K$3+A!K$2) -> 3046.318579 | H131: =(C131*A!$G$5+'C'!D131*A!$H$5+'C'!E131*A!$I$5+'C'!F131*A!$J$5+'C'!G131*A!$K$5)/SUM(A!$G$5:$K$5) -> 3048.13022
A132: 176 | B132: 120 | C132: =A!G$2+A!G$3*B132+A!G$4*B132^2 -> 3031.486113 | D132: =IF(B132<(A!H$3/(-2*A!H$4)),A!H$2+A!H$3*B132+A!H$4*B132^2,A!H$2+A!H$3*(A!H$3/(-2*A!H$4))+A!H$3*A!H$3/(4*A!H$4)) -> 3056.137947 | E132: =A!I$2+A!I$3*EXP(A!I$4*B132) -> 3067.61737 | F132: =IF((A!J$2+A!J$3*B132)<A!J$4,A!J$2+A!J$3*B132,A!J$4) -> 3038.99947 | G132: =IF(B132<A!K$4,A!K$2+A!K$3*(3*B132/(2*A!K$4)-0.5*(B132/A!K$4)^3),A!K$3+A!K$2) -> 3046.318579 | H132: =(C132*A!$G$5+'C'!D132*A!$H$5+'C'!E132*A!$I$5+'C'!F132*A!$J$5+'C'!G132*A!$K$5)/SUM(A!$G$5:$K$5) -> 3048.13022
A133: 178 | B133: 120 | C133: =A!G$2+A!G$3*B133+A!G$4*B133^2 -> 3031.486113 | D133: =IF(B133<(A!H$3/(-2*A!H$4)),A!H$2+A!H$3*B133+A!H$4*B133^2,A!H$2+A!H$3*(A!H$3/(-2*A!H$4))+A!H$3*A!H$3/(4*A!H$4)) -> 3056.137947 | E133: =A!I$2+A!I$3*EXP(A!I$4*B133) -> 3067.61737 | F133: =IF((A!J$2+A!J$3*B133)<A!J$4,A!J$2+A!J$3*B133,A!J$4) -> 3038.99947 | G133: =IF(B133<A!K$4,A!K$2+A!K$3*(3*B133/(2*A!K$4)-0.5*(B133/A!K$4)^3),A!K$3+A!K$2) -> 3046.318579 | H133: =(C133*A!$G$5+'C'!D133*A!$H$5+'C'!E133*A!$I$5+'C'!F133*A!$J$5+'C'!G133*A!$K$5)/SUM(A!$G$5:$K$5) -> 3048.13022
A134: 180 | B134: 120 | C134: =A!G$2+A!G$3*B134+A!G$4*B134^2 -> 3031.486113 | D134: =IF(B134<(A!H$3/(-2*A!H$4)),A!H$2+A!H$3*B134+A!H$4*B134^2,A!H$2+A!H$3*(A!H$3/(-2*A!H$4))+A!H$3*A!H$3/(4*A!H$4)) -> 3056.137947 | E134: =A!I$2+A!I$3*EXP(A!I$4*B134) -> 3067.61737 | F134: =IF((A!J$2+A!J$3*B134)<A!J$4,A!J$2+A!J$3*B134,A!J$4) -> 3038.99947 | G134: =IF(B134<A!K$4,A!K$2+A!K$3*(3*B134/(2*A!K$4)-0.5*(B134/A!K$4)^3),A!K$3+A!K$2) -> 3046.318579 | H134: =(C134*A!$G$5+'C'!D134*A!$H$5+'C'!E134*A!$I$5+'C'!F134*A!$J$5+'C'!G134*A!$K$5)/SUM(A!$G$5:$K$5) -> 3048.13022
A135: 182 | B135: 120 | C135: =A!G$2+A!G$3*B135+A!G$4*B135^2 -> 3031.486113 | D135: =IF(B135<(A!H$3/(-2*A!H$4)),A!H$2+A!H$3*B135+A!H$4*B135^2,A!H$2+A!H$3*(A!H$3/(-2*A!H$4))+A!H$3*A!H$3/(4*A!H$4)) -> 3056.137947 | E135: =A!I$2+A!I$3*EXP(A!I$4*B135) -> 3067.61737 | F135: =IF((A!J$2+A!J$3*B135)<A!J$4,A!J$2+A!J$3*B135,A!J$4) -> 3038.99947 | G135: =IF(B135<A!K$4,A!K$2+A!K$3*(3*B135/(2*A!K$4)-0.5*(B135/A!K$4)^3),A!K$3+A!K$2) -> 3046.318579 | H135: =(C135*A!$G$5+'C'!D135*A!$H$5+'C'!E135*A!$I$5+'C'!F135*A!$J$5+'C'!G135*A!$K$5)/SUM(A!$G$5:$K$5) -> 3048.13022
A136: 184 | B136: 120 | C136: =A!G$2+A!G$3*B136+A!G$4*B136^2 -> 3031.486113 | D136: =IF(B136<(A!H$3/(-2*A!H$4)),A!H$2+A!H$3*B136+A!H$4*B136^2,A!H$2+A!H$3*(A!H$3/(-2*A!H$4))+A!H$3*A!H$3/(4*A!H$4)) -> 3056.137947 | E136: =A!I$2+A!I$3*EXP(A!I$4*B136) -> 3067.61737 | F136: =IF((A!J$2+A!J$3*B136)<A!J$4,A!J$2+A!J$3*B136,A!J$4) -> 3038.99947 | G136: =IF(B136<A!K$4,A!K$2+A!K$3*(3*B136/(2*A!K$4)-0.5*(B136/A!K$4)^3),A!K$3+A!K$2) -> 3046.318579 | H136: =(C136*A!$G$5+'C'!D136*A!$H$5+'C'!E136*A!$I$5+'C'!F136*A!$J$5+'C'!G136*A!$K$5)/SUM(A!$G$5:$K$5) -> 3048.13022
A137: 186 | B137: 120 | C137: =A!G$2+A!G$3*B137+A!G$4*B137^2 -> 3031.486113 | D137: =IF(B137<(A!H$3/(-2*A!H$4)),A!H$2+A!H$3*B137+A!H$4*B137^2,A!H$2+A!H$3*(A!H$3/(-2*A!H$4))+A!H$3*A!H$3/(4*A!H$4)) -> 3056.137947 | E137: =A!I$2+A!I$3*EXP(A!I$4*B137) -> 3067.61737 | F137: =IF((A!J$2+A!J$3*B137)<A!J$4,A!J$2+A!J$3*B137,A!J$4) -> 3038.99947 | G137: =IF(B137<A!K$4,A!K$2+A!K$3*(3*B137/(2*A!K$4)-0.5*(B137/A!K$4)^3),A!K$3+A!K$2) -> 3046.318579 | H137: =(C137*A!$G$5+'C'!D137*A!$H$5+'C'!E137*A!$I$5+'C'!F137*A!$J$5+'C'!G137*A!$K$5)/SUM(A!$G$5:$K$5) -> 3048.13022
A138: 188 | B138: 120 | C138: =A!G$2+A!G$3*B138+A!G$4*B138^2 -> 3031.486113 | D138: =IF(B138<(A!H$3/(-2*A!H$4)),A!H$2+A!H$3*B138+A!H$4*B138^2,A!H$2+A!H$3*(A!H$3/(-2*A!H$4))+A!H$3*A!H$3/(4*A!H$4)) -> 3056.137947 | E138: =A!I$2+A!I$3*EXP(A!I$4*B138) -> 3067.61737 | F138: =IF((A!J$2+A!J$3*B138)<A!J$4,A!J$2+A!J$3*B138,A!J$4) -> 3038.99947 | G138: =IF(B138<A!K$4,A!K$2+A!K$3*(3*B138/(2*A!K$4)-0.5*(B138/A!K$4)^3),A!K$3+A!K$2) -> 3046.318579 | H138: =(C138*A!$G$5+'C'!D138*A!$H$5+'C'!E138*A!$I$5+'C'!F138*A!$J$5+'C'!G138*A!$K$5)/SUM(A!$G$5:$K$5) -> 3048.13022
A139: 190 | B139: 120 | C139: =A!G$2+A!G$3*B139+A!G$4*B139^2 -> 3031.486113 | D139: =IF(B139<(A!H$3/(-2*A!H$4)),A!H$2+A!H$3*B139+A!H$4*B139^2,A!H$2+A!H$3*(A!H$3/(-2*A!H$4))+A!H$3*A!H$3/(4*A!H$4)) -> 3056.137947 | E139: =A!I$2+A!I$3*EXP(A!I$4*B139) -> 3067.61737 | F139: =IF((A!J$2+A!J$3*B139)<A!J$4,A!J$2+A!J$3*B139,A!J$4) -> 3038.99947 | G139: =IF(B139<A!K$4,A!K$2+A!K$3*(3*B139/(2*A!K$4)-0.5*(B139/A!K$4)^3),A!K$3+A!K$2) -> 3046.318579 | H139: =(C139*A!$G$5+'C'!D139*A!$H$5+'C'!E139*A!$I$5+'C'!F139*A!$J$5+'C'!G139*A!$K$5)/SUM(A!$G$5:$K$5) -> 3048.13022
A140: 192 | B140: 120 | C140: =A!G$2+A!G$3*B140+A!G$4*B140^2 -> 3031.486113 | D140: =IF(B140<(A!H$3/(-2*A!H$4)),A!H$2+A!H$3*B140+A!H$4*B140^2,A!H$2+A!H$3*(A!H$3/(-2*A!H$4))+A!H$3*A!H$3/(4*A!H$4)) -> 3056.137947 | E140: =A!I$2+A!I$3*EXP(A!I$4*B140) -> 3067.61737 | F140: =IF((A!J$2+A!J$3*B140)<A!J$4,A!J$2+A!J$3*B140,A!J$4) -> 3038.99947 | G140: =IF(B140<A!K$4,A!K$2+A!K$3*(3*B140/(2*A!K$4)-0.5*(B140/A!K$4)^3),A!K$3+A!K$2) -> 3046.318579 | H140: =(C140*A!$G$5+'C'!D140*A!$H$5+'C'!E140*A!$I$5+'C'!F140*A!$J$5+'C'!G140*A!$K$5)/SUM(A!$G$5:$K$5) -> 3048.13022
A141: 194 | B141: 120 | C141: =A!G$2+A!G$3*B141+A!G$4*B141^2 -> 3031.486113 | D141: =IF(B141<(A!H$3/(-2*A!H$4)),A!H$2+A!H$3*B141+A!H$4*B141^2,A!H$2+A!H$3*(A!H$3/(-2*A!H$4))+A!H$3*A!H$3/(4*A!H$4)) -> 3056.137947 | E141: =A!I$2+A!I$3*EXP(A!I$4*B141) -> 3067.61737 | F141: =IF((A!J$2+A!J$3*B141)<A!J$4,A!J$2+A!J$3*B141,A!J$4) -> 3038.99947 | G141: =IF(B141<A!K$4,A!K$2+A!K$3*(3*B141/(2*A!K$4)-0.5*(B141/A!K$4)^3),A!K$3+A!K$2) -> 3046.318579 | H141: =(C141*A!$G$5+'C'!D141*A!$H$5+'C'!E141*A!$I$5+'C'!F141*A!$J$5+'C'!G141*A!$K$5)/SUM(A!$G$5:$K$5) -> 3048.13022
A142: 196 | B142: 120 | C142: =A!G$2+A!G$3*B142+A!G$4*B142^2 -> 3031.486113 | D142: =IF(B142<(A!H$3/(-2*A!H$4)),A!H$2+A!H$3*B142+A!H$4*B142^2,A!H$2+A!H$3*(A!H$3/(-2*A!H$4))+A!H$3*A!H$3/(4*A!H$4)) -> 3056.137947 | E142: =A!I$2+A!I$3*EXP(A!I$4*B142) -> 3067.61737 | F142: =IF((A!J$2+A!J$3*B142)<A!J$4,A!J$2+A!J$3*B142,A!J$4) -> 3038.99947 | G142: =IF(B142<A!K$4,A!K$2+A!K$3*(3*B142/(2*A!K$4)-0.5*(B142/A!K$4)^3),A!K$3+A!K$2) -> 3046.318579 | H142: =(C142*A!$G$5+'C'!D142*A!$H$5+'C'!E142*A!$I$5+'C'!F142*A!$J$5+'C'!G142*A!$K$5)/SUM(A!$G$5:$K$5) -> 3048.13022
A143: 198 | B143: 120 | C143: =A!G$2+A!G$3*B143+A!G$4*B143^2 -> 3031.486113 | D143: =IF(B143<(A!H$3/(-2*A!H$4)),A!H$2+A!H$3*B143+A!H$4*B143^2,A!H$2+A!H$3*(A!H$3/(-2*A!H$4))+A!H$3*A!H$3/(4*A!H$4)) -> 3056.137947 | E143: =A!I$2+A!I$3*EXP(A!I$4*B143) -> 3067.61737 | F143: =IF((A!J$2+A!J$3*B143)<A!J$4,A!J$2+A!J$3*B143,A!J$4) -> 3038.99947 | G143: =IF(B143<A!K$4,A!K$2+A!K$3*(3*B143/(2*A!K$4)-0.5*(B143/A!K$4)^3),A!K$3+A!K$2) -> 3046.318579 | H143: =(C143*A!$G$5+'C'!D143*A!$H$5+'C'!E143*A!$I$5+'C'!F143*A!$J$5+'C'!G143*A!$K$5)/SUM(A!$G$5:$K$5) -> 3048.13022
A144: 200 | B144: 120 | C144: =A!G$2+A!G$3*B144+A!G$4*B144^2 -> 3031.486113 | D144: =IF(B144<(A!H$3/(-2*A!H$4)),A!H$2+A!H$3*B144+A!H$4*B144^2,A!H$2+A!H$3*(A!H$3/(-2*A!H$4))+A!H$3*A!H$3/(4*A!H$4)) -> 3056.137947 | E144: =A!I$2+A!I$3*EXP(A!I$4*B144) -> 3067.61737 | F144: =IF((A!J$2+A!J$3*B144)<A!J$4,A!J$2+A!J$3*B144,A!J$4) -> 3038.99947 | G144: =IF(B144<A!K$4,A!K$2+A!K$3*(3*B144/(2*A!K$4)-0.5*(B144/A!K$4)^3),A!K$3+A!K$2) -> 3046.318579 | H144: =(C144*A!$G$5+'C'!D144*A!$H$5+'C'!E144*A!$I$5+'C'!F144*A!$J$5+'C'!G144*A!$K$5)/SUM(A!$G$5:$K$5) -> 3048.13022
A145: 202 | B145: 120 | C145: =A!G$2+A!G$3*B145+A!G$4*B145^2 -> 3031.486113 | D145: =IF(B145<(A!H$3/(-2*A!H$4)),A!H$2+A!H$3*B145+A!H$4*B145^2,A!H$2+A!H$3*(A!H$3/(-2*A!H$4))+A!H$3*A!H$3/(4*A!H$4)) -> 3056.137947 | E145: =A!I$2+A!I$3*EXP(A!I$4*B145) -> 3067.61737 | F145: =IF((A!J$2+A!J$3*B145)<A!J$4,A!J$2+A!J$3*B145,A!J$4) -> 3038.99947 | G145: =IF(B145<A!K$4,A!K$2+A!K$3*(3*B145/(2*A!K$4)-0.5*(B145/A!K$4)^3),A!K$3+A!K$2) -> 3046.318579 | H145: =(C145*A!$G$5+'C'!D145*A!$H$5+'C'!E145*A!$I$5+'C'!F145*A!$J$5+'C'!G145*A!$K$5)/SUM(A!$G$5:$K$5) -> 3048.13022
A146: 204 | B146: 120 | C146: =A!G$2+A!G$3*B146+A!G$4*B146^2 -> 3031.486113 | D146: =IF(B146<(A!H$3/(-2*A!H$4)),A!H$2+A!H$3*B146+A!H$4*B146^2,A!H$2+A!H$3*(A!H$3/(-2*A!H$4))+A!H$3*A!H$3/(4*A!H$4)) -> 3056.137947 | E146: =A!I$2+A!I$3*EXP(A!I$4*B146) -> 3067.61737 | F146: =IF((A!J$2+A!J$3*B146)<A!J$4,A!J$2+A!J$3*B146,A!J$4) -> 3038.99947 | G146: =IF(B146<A!K$4,A!K$2+A!K$3*(3*B146/(2*A!K$4)-0.5*(B146/A!K$4)^3),A!K$3+A!K$2) -> 3046.318579 | H146: =(C146*A!$G$5+'C'!D146*A!$H$5+'C'!E146*A!$I$5+'C'!F146*A!$J$5+'C'!G146*A!$K$5)/SUM(A!$G$5:$K$5) -> 3048.13022
A147: 206 | B147: 120 | C147: =A!G$2+A!G$3*B147+A!G$4*B147^2 -> 3031.486113 | D147: =IF(B147<(A!H$3/(-2*A!H$4)),A!H$2+A!H$3*B147+A!H$4*B147^2,A!H$2+A!H$3*(A!H$3/(-2*A!H$4))+A!H$3*A!H$3/(4*A!H$4)) -> 3056.137947 | E147: =A!I$2+A!I$3*EXP(A!I$4*B147) -> 3067.61737 | F147: =IF((A!J$2+A!J$3*B147)<A!J$4,A!J$2+A!J$3*B147,A!J$4) -> 3038.99947 | G147: =IF(B147<A!K$4,A!K$2+A!K$3*(3*B147/(2*A!K$4)-0.5*(B147/A!K$4)^3),A!K$3+A!K$2) -> 3046.318579 | H147: =(C147*A!$G$5+'C'!D147*A!$H$5+'C'!E147*A!$I$5+'C'!F147*A!$J$5+'C'!G147*A!$K$5)/SUM(A!$G$5:$K$5) -> 3048.13022
A148: 208 | B148: 120 | C148: =A!G$2+A!G$3*B148+A!G$4*B148^2 -> 3031.486113 | D148: =IF(B148<(A!H$3/(-2*A!H$4)),A!H$2+A!H$3*B148+A!H$4*B148^2,A!H$2+A!H$3*(A!H$3/(-2*A!H$4))+A!H$3*A!H$3/(4*A!H$4)) -> 3056.137947 | E148: =A!I$2+A!I$3*EXP(A!I$4*B148) -> 3067.61737 | F148: =IF((A!J$2+A!J$3*B148)<A!J$4,A!J$2+A!J$3*B148,A!J$4) -> 3038.99947 | G148: =IF(B148<A!K$4,A!K$2+A!K$3*(3*B148/(2*A!K$4)-0.5*(B148/A!K$4)^3),A!K$3+A!K$2) -> 3046.318579 | H148: =(C148*A!$G$5+'C'!D148*A!$H$5+'C'!E148*A!$I$5+'C'!F148*A!$J$5+'C'!G148*A!$K$5)/SUM(A!$G$5:$K$5) -> 3048.13022
A149: 210 | B149: 120 | C149: =A!G$2+A!G$3*B149+A!G$4*B149^2 -> 3031.486113 | D149: =IF(B149<(A!H$3/(-2*A!H$4)),A!H$2+A!H$3*B149+A!H$4*B149^2,A!H$2+A!H$3*(A!H$3/(-2*A!H$4))+A!H$3*A!H$3/(4*A!H$4)) -> 3056.137947 | E149: =A!I$2+A!I$3*EXP(A!I$4*B149) -> 3067.61737 | F149: =IF((A!J$2+A!J$3*B149)<A!J$4,A!J$2+A!J$3*B149,A!J$4) -> 3038.99947 | G149: =IF(B149<A!K$4,A!K$2+A!K$3*(3*B149/(2*A!K$4)-0.5*(B149/A!K$4)^3),A!K$3+A!K$2) -> 3046.318579 | H149: =(C149*A!$G$5+'C'!D149*A!$H$5+'C'!E149*A!$I$5+'C'!F149*A!$J$5+'C'!G149*A!$K$5)/SUM(A!$G$5:$K$5) -> 3048.13022
A150: 212 | B150: 120 | C150: =A!G$2+A!G$3*B150+A!G$4*B150^2 -> 3031.486113 | D150: =IF(B150<(A!H$3/(-2*A!H$4)),A!H$2+A!H$3*B150+A!H$4*B150^2,A!H$2+A!H$3*(A!H$3/(-2*A!H$4))+A!H$3*A!H$3/(4*A!H$4)) -> 3056.137947 | E150: =A!I$2+A!I$3*EXP(A!I$4*B150) -> 3067.61737 | F150: =IF((A!J$2+A!J$3*B150)<A!J$4,A!J$2+A!J$3*B150,A!J$4) -> 3038.99947 | G150: =IF(B150<A!K$4,A!K$2+A!K$3*(3*B150/(2*A!K$4)-0.5*(B150/A!K$4)^3),A!K$3+A!K$2) -> 3046.318579 | H150: =(C150*A!$G$5+'C'!D150*A!$H$5+'C'!E150*A!$I$5+'C'!F150*A!$J$5+'C'!G150*A!$K$5)/SUM(A!$G$5:$K$5) -> 3048.13022
A151: 214 | B151: 120 | C151: =A!G$2+A!G$3*B151+A!G$4*B151^2 -> 3031.486113 | D151: =IF(B151<(A!H$3/(-2*A!H$4)),A!H$2+A!H$3*B151+A!H$4*B151^2,A!H$2+A!H$3*(A!H$3/(-2*A!H$4))+A!H$3*A!H$3/(4*A!H$4)) -> 3056.137947 | E151: =A!I$2+A!I$3*EXP(A!I$4*B151) -> 3067.61737 | F151: =IF((A!J$2+A!J$3*B151)<A!J$4,A!J$2+A!J$3*B151,A!J$4) -> 3038.99947 | G151: =IF(B151<A!K$4,A!K$2+A!K$3*(3*B151/(2*A!K$4)-0.5*(B151/A!K$4)^3),A!K$3+A!K$2) -> 3046.318579 | H151: =(C151*A!$G$5+'C'!D151*A!$H$5+'C'!E151*A!$I$5+'C'!F151*A!$J$5+'C'!G151*A!$K$5)/SUM(A!$G$5:$K$5) -> 3048.13022
A152: 216 | B152: 120 | C152: =A!G$2+A!G$3*B152+A!G$4*B152^2 -> 3031.486113 | D152: =IF(B152<(A!H$3/(-2*A!H$4)),A!H$2+A!H$3*B152+A!H$4*B152^2,A!H$2+A!H$3*(A!H$3/(-2*A!H$4))+A!H$3*A!H$3/(4*A!H$4)) -> 3056.137947 | E152: =A!I$2+A!I$3*EXP(A!I$4*B152) -> 3067.61737 | F152: =IF((A!J$2+A!J$3*B152)<A!J$4,A!J$2+A!J$3*B152,A!J$4) -> 3038.99947 | G152: =IF(B152<A!K$4,A!K$2+A!K$3*(3*B152/(2*A!K$4)-0.5*(B152/A!K$4)^3),A!K$3+A!K$2) -> 3046.318579 | H152: =(C152*A!$G$5+'C'!D152*A!$H$5+'C'!E152*A!$I$5+'C'!F152*A!$J$5+'C'!G152*A!$K$5)/SUM(A!$G$5:$K$5) -> 3048.13022
A153: 218 | B153: 120 | C153: =A!G$2+A!G$3*B153+A!G$4*B153^2 -> 3031.486113 | D153: =IF(B153<(A!H$3/(-2*A!H$4)),A!H$2+A!H$3*B153+A!H$4*B153^2,A!H$2+A!H$3*(A!H$3/(-2*A!H$4))+A!H$3*A!H$3/(4*A!H$4)) -> 3056.137947 | E153: =A!I$2+A!I$3*EXP(A!I$4*B153) -> 3067.61737 | F153: =IF((A!J$2+A!J$3*B153)<A!J$4,A!J$2+A!J$3*B153,A!J$4) -> 3038.99947 | G153: =IF(B153<A!K$4,A!K$2+A!K$3*(3*B153/(2*A!K$4)-0.5*(B153/A!K$4)^3),A!K$3+A!K$2) -> 3046.318579 | H153: =(C153*A!$G$5+'C'!D153*A!$H$5+'C'!E153*A!$I$5+'C'!F153*A!$J$5+'C'!G153*A!$K$5)/SUM(A!$G$5:$K$5) -> 3048.13022
A154: 220 | B154: 120 | C154: =A!G$2+A!G$3*B154+A!G$4*B154^2 -> 3031.486113 | D154: =IF(B154<(A!H$3/(-2*A!H$4)),A!H$2+A!H$3*B154+A!H$4*B154^2,A!H$2+A!H$3*(A!H$3/(-2*A!H$4))+A!H$3*A!H$3/(4*A!H$4)) -> 3056.137947 | E154: =A!I$2+A!I$3*EXP(A!I$4*B154) -> 3067.61737 | F154: =IF((A!J$2+A!J$3*B154)<A!J$4,A!J$2+A!J$3*B154,A!J$4) -> 3038.99947 | G154: =IF(B154<A!K$4,A!K$2+A!K$3*(3*B154/(2*A!K$4)-0.5*(B154/A!K$4)^3),A!K$3+A!K$2) -> 3046.318579 | H154: =(C154*A!$G$5+'C'!D154*A!$H$5+'C'!E154*A!$I$5+'C'!F154*A!$J$5+'C'!G154*A!$K$5)/SUM(A!$G$5:$K$5) -> 3048.13022
A155: 222 | B155: 120 | C155: =A!G$2+A!G$3*B155+A!G$4*B155^2 -> 3031.486113 | D155: =IF(B155<(A!H$3/(-2*A!H$4)),A!H$2+A!H$3*B155+A!H$4*B155^2,A!H$2+A!H$3*(A!H$3/(-2*A!H$4))+A!H$3*A!H$3/(4*A!H$4)) -> 3056.137947 | E155: =A!I$2+A!I$3*EXP(A!I$4*B155) -> 3067.61737 | F155: =IF((A!J$2+A!J$3*B155)<A!J$4,A!J$2+A!J$3*B155,A!J$4) -> 3038.99947 | G155: =IF(B155<A!K$4,A!K$2+A!K$3*(3*B155/(2*A!K$4)-0.5*(B155/A!K$4)^3),A!K$3+A!K$2) -> 3046.318579 | H155: =(C155*A!$G$5+'C'!D155*A!$H$5+'C'!E155*A!$I$5+'C'!F155*A!$J$5+'C'!G155*A!$K$5)/SUM(A!$G$5:$K$5) -> 3048.13022
A156: 224 | B156: 120 | C156: =A!G$2+A!G$3*B156+A!G$4*B156^2 -> 3031.486113 | D156: =IF(B156<(A!H$3/(-2*A!H$4)),A!H$2+A!H$3*B156+A!H$4*B156^2,A!H$2+A!H$3*(A!H$3/(-2*A!H$4))+A!H$3*A!H$3/(4*A!H$4)) -> 3056.137947 | E156: =A!I$2+A!I$3*EXP(A!I$4*B156) -> 3067.61737 | F156: =IF((A!J$2+A!J$3*B156)<A!J$4,A!J$2+A!J$3*B156,A!J$4) -> 3038.99947 | G156: =IF(B156<A!K$4,A!K$2+A!K$3*(3*B156/(2*A!K$4)-0.5*(B156/A!K$4)^3),A!K$3+A!K$2) -> 3046.318579 | H156: =(C156*A!$G$5+'C'!D156*A!$H$5+'C'!E156*A!$I$5+'C'!F156*A!$J$5+'C'!G156*A!$K$5)/SUM(A!$G$5:$K$5) -> 3048.13022
A157: 226 | B157: 120 | C157: =A!G$2+A!G$3*B157+A!G$4*B157^2 -> 3031.486113 | D157: =IF(B157<(A!H$3/(-2*A!H$4)),A!H$2+A!H$3*B157+A!H$4*B157^2,A!H$2+A!H$3*(A!H$3/(-2*A!H$4))+A!H$3*A!H$3/(4*A!H$4)) -> 3056.137947 | E157: =A!I$2+A!I$3*EXP(A!I$4*B157) -> 3067.61737 | F157: =IF((A!J$2+A!J$3*B157)<A!J$4,A!J$2+A!J$3*B157,A!J$4) -> 3038.99947 | G157: =IF(B157<A!K$4,A!K$2+A!K$3*(3*B157/(2*A!K$4)-0.5*(B157/A!K$4)^3),A!K$3+A!K$2) -> 3046.318579 | H157: =(C157*A!$G$5+'C'!D157*A!$H$5+'C'!E157*A!$I$5+'C'!F157*A!$J$5+'C'!G157*A!$K$5)/SUM(A!$G$5:$K$5) -> 3048.13022
A158: 228 | B158: 120 | C158: =A!G$2+A!G$3*B158+A!G$4*B158^2 -> 3031.486113 | D158: =IF(B158<(A!H$3/(-2*A!H$4)),A!H$2+A!H$3*B158+A!H$4*B158^2,A!H$2+A!H$3*(A!H$3/(-2*A!H$4))+A!H$3*A!H$3/(4*A!H$4)) -> 3056.137947 | E158: =A!I$2+A!I$3*EXP(A!I$4*B158) -> 3067.61737 | F158: =IF((A!J$2+A!J$3*B158)<A!J$4,A!J$2+A!J$3*B158,A!J$4) -> 3038.99947 | G158: =IF(B158<A!K$4,A!K$2+A!K$3*(3*B158/(2*A!K$4)-0.5*(B158/A!K$4)^3),A!K$3+A!K$2) -> 3046.318579 | H158: =(C158*A!$G$5+'C'!D158*A!$H$5+'C'!E158*A!$I$5+'C'!F158*A!$J$5+'C'!G158*A!$K$5)/SUM(A!$G$5:$K$5) -> 3048.13022
A159: 230 | B159: 120 | C159: =A!G$2+A!G$3*B159+A!G$4*B159^2 -> 3031.486113 | D159: =IF(B159<(A!H$3/(-2*A!H$4)),A!H$2+A!H$3*B159+A!H$4*B159^2,A!H$2+A!H$3*(A!H$3/(-2*A!H$4))+A!H$3*A!H$3/(4*A!H$4)) -> 3056.137947 | E159: =A!I$2+A!I$3*EXP(A!I$4*B159) -> 3067.61737 | F159: =IF((A!J$2+A!J$3*B159)<A!J$4,A!J$2+A!J$3*B159,A!J$4) -> 3038.99947 | G159: =IF(B159<A!K$4,A!K$2+A!K$3*(3*B159/(2*A!K$4)-0.5*(B159/A!K$4)^3),A!K$3+A!K$2) -> 3046.318579 | H159: =(C159*A!$G$5+'C'!D159*A!$H$5+'C'!E159*A!$I$5+'C'!F159*A!$J$5+'C'!G159*A!$K$5)/SUM(A!$G$5:$K$5) -> 3048.13022
A160: 232 | B160: 120 | C160: =A!G$2+A!G$3*B160+A!G$4*B160^2 -> 3031.486113 | D160: =IF(B160<(A!H$3/(-2*A!H$4)),A!H$2+A!H$3*B160+A!H$4*B160^2,A!H$2+A!H$3*(A!H$3/(-2*A!H$4))+A!H$3*A!H$3/(4*A!H$4)) -> 3056.137947 | E160: =A!I$2+A!I$3*EXP(A!I$4*B160) -> 3067.61737 | F160: =IF((A!J$2+A!J$3*B160)<A!J$4,A!J$2+A!J$3*B160,A!J$4) -> 3038.99947 | G160: =IF(B160<A!K$4,A!K$2+A!K$3*(3*B160/(2*A!K$4)-0.5*(B160/A!K$4)^3),A!K$3+A!K$2) -> 3046.318579 | H160: =(C160*A!$G$5+'C'!D160*A!$H$5+'C'!E160*A!$I$5+'C'!F160*A!$J$5+'C'!G160*A!$K$5)/SUM(A!$G$5:$K$5) -> 3048.13022
A161: 234 | B161: 120 | C161: =A!G$2+A!G$3*B161+A!G$4*B161^2 -> 3031.486113 | D161: =IF(B161<(A!H$3/(-2*A!H$4)),A!H$2+A!H$3*B161+A!H$4*B161^2,A!H$2+A!H$3*(A!H$3/(-2*A!H$4))+A!H$3*A!H$3/(4*A!H$4)) -> 3056.137947 | E161: =A!I$2+A!I$3*EXP(A!I$4*B161) -> 3067.61737 | F161: =IF((A!J$2+A!J$3*B161)<A!J$4,A!J$2+A!J$3*B161,A!J$4) -> 3038.99947 | G161: =IF(B161<A!K$4,A!K$2+A!K$3*(3*B161/(2*A!K$4)-0.5*(B161/A!K$4)^3),A!K$3+A!K$2) -> 3046.318579 | H161: =(C161*A!$G$5+'C'!D161*A!$H$5+'C'!E161*A!$I$5+'C'!F161*A!$J$5+'C'!G161*A!$K$5)/SUM(A!$G$5:$K$5) -> 3048.13022
A162: 236 | B162: 120 | C162: =A!G$2+A!G$3*B162+A!G$4*B162^2 -> 3031.486113 | D162: =IF(B162<(A!H$3/(-2*A!H$4)),A!H$2+A!H$3*B162+A!H$4*B162^2,A!H$2+A!H$3*(A!H$3/(-2*A!H$4))+A!H$3*A!H$3/(4*A!H$4)) -> 3056.137947 | E162: =A!I$2+A!I$3*EXP(A!I$4*B162) -> 3067.61737 | F162: =IF((A!J$2+A!J$3*B162)<A!J$4,A!J$2+A!J$3*B162,A!J$4) -> 3038.99947 | G162: =IF(B162<A!K$4,A!K$2+A!K$3*(3*B162/(2*A!K$4)-0.5*(B162/A!K$4)^3),A!K$3+A!K$2) -> 3046.318579 | H162: =(C162*A!$G$5+'C'!D162*A!$H$5+'C'!E162*A!$I$5+'C'!F162*A!$J$5+'C'!G162*A!$K$5)/SUM(A!$G$5:$K$5) -> 3048.13022
A163: 238 | B163: 120 | C163: =A!G$2+A!G$3*B163+A!G$4*B163^2 -> 3031.486113 | D163: =IF(B163<(A!H$3/(-2*A!H$4)),A!H$2+A!H$3*B163+A!H$4*B163^2,A!H$2+A!H$3*(A!H$3/(-2*A!H$4))+A!H$3*A!H$3/(4*A!H$4)) -> 3056.137947 | E163: =A!I$2+A!I$3*EXP(A!I$4*B163) -> 3067.61737 | F163: =IF((A!J$2+A!J$3*B163)<A!J$4,A!J$2+A!J$3*B163,A!J$4) -> 3038.99947 | G163: =IF(B163<A!K$4,A!K$2+A!K$3*(3*B163/(2*A!K$4)-0.5*(B163/A!K$4)^3),A!K$3+A!K$2) -> 3046.318579 | H163: =(C163*A!$G$5+'C'!D163*A!$H$5+'C'!E163*A!$I$5+'C'!F163*A!$J$5+'C'!G163*A!$K$5)/SUM(A!$G$5:$K$5) -> 3048.13022
A164: 240 | B164: 120 | C164: =A!G$2+A!G$3*B164+A!G$4*B164^2 -> 3031.486113 | D164: =IF(B164<(A!H$3/(-2*A!H$4)),A!H$2+A!H$3*B164+A!H$4*B164^2,A!H$2+A!H$3*(A!H$3/(-2*A!H$4))+A!H$3*A!H$3/(4*A!H$4)) -> 3056.137947 | E164: =A!I$2+A!I$3*EXP(A!I$4*B164) -> 3067.61737 | F164: =IF((A!J$2+A!J$3*B164)<A!J$4,A!J$2+A!J$3*B164,A!J$4) -> 3038.99947 | G164: =IF(B164<A!K$4,A!K$2+A!K$3*(3*B164/(2*A!K$4)-0.5*(B164/A!K$4)^3),A!K$3+A!K$2) -> 3046.318579 | H164: =(C164*A!$G$5+'C'!D164*A!$H$5+'C'!E164*A!$I$5+'C'!F164*A!$J$5+'C'!G164*A!$K$5)/SUM(A!$G$5:$K$5) -> 3048.13022
A165: 242 | B165: 120 | C165: =A!G$2+A!G$3*B165+A!G$4*B165^2 -> 3031.486113 | D165: =IF(B165<(A!H$3/(-2*A!H$4)),A!H$2+A!H$3*B165+A!H$4*B165^2,A!H$2+A!H$3*(A!H$3/(-2*A!H$4))+A!H$3*A!H$3/(4*A!H$4)) -> 3056.137947 | E165: =A!I$2+A!I$3*EXP(A!I$4*B165) -> 3067.61737 | F165: =IF((A!J$2+A!J$3*B165)<A!J$4,A!J$2+A!J$3*B165,A!J$4) -> 3038.99947 | G165: =IF(B165<A!K$4,A!K$2+A!K$3*(3*B165/(2*A!K$4)-0.5*(B165/A!K$4)^3),A!K$3+A!K$2) -> 3046.318579 | H165: =(C165*A!$G$5+'C'!D165*A!$H$5+'C'!E165*A!$I$5+'C'!F165*A!$J$5+'C'!G165*A!$K$5)/SUM(A!$G$5:$K$5) -> 3048.13022
A166: 244 | B166: 120 | C166: =A!G$2+A!G$3*B166+A!G$4*B166^2 -> 3031.486113 | D166: =IF(B166<(A!H$3/(-2*A!H$4)),A!H$2+A!H$3*B166+A!H$4*B166^2,A!H$2+A!H$3*(A!H$3/(-2*A!H$4))+A!H$3*A!H$3/(4*A!H$4)) -> 3056.137947 | E166: =A!I$2+A!I$3*EXP(A!I$4*B166) -> 3067.61737 | F166: =IF((A!J$2+A!J$3*B166)<A!J$4,A!J$2+A!J$3*B166,A!J$4) -> 3038.99947 | G166: =IF(B166<A!K$4,A!K$2+A!K$3*(3*B166/(2*A!K$4)-0.5*(B166/A!K$4)^3),A!K$3+A!K$2) -> 3046.318579 | H166: =(C166*A!$G$5+'C'!D166*A!$H$5+'C'!E166*A!$I$5+'C'!F166*A!$J$5+'C'!G166*A!$K$5)/SUM(A!$G$5:$K$5) -> 3048.13022
A167: 246 | B167: 120 | C167: =A!G$2+A!G$3*B167+A!G$4*B167^2 -> 3031.486113 | D167: =IF(B167<(A!H$3/(-2*A!H$4)),A!H$2+A!H$3*B167+A!H$4*B167^2,A!H$2+A!H$3*(A!H$3/(-2*A!H$4))+A!H$3*A!H$3/(4*A!H$4)) -> 3056.137947 | E167: =A!I$2+A!I$3*EXP(A!I$4*B167) -> 3067.61737 | F167: =IF((A!J$2+A!J$3*B167)<A!J$4,A!J$2+A!J$3*B167,A!J$4) -> 3038.99947 | G167: =IF(B167<A!K$4,A!K$2+A!K$3*(3*B167/(2*A!K$4)-0.5*(B167/A!K$4)^3),A!K$3+A!K$2) -> 3046.318579 | H167: =(C167*A!$G$5+'C'!D167*A!$H$5+'C'!E167*A!$I$5+'C'!F167*A!$J$5+'C'!G167*A!$K$5)/SUM(A!$G$5:$K$5) -> 3048.13022
A168: 248 | B168: 120 | C168: =A!G$2+A!G$3*B168+A!G$4*B168^2 -> 3031.486113 | D168: =IF(B168<(A!H$3/(-2*A!H$4)),A!H$2+A!H$3*B168+A!H$4*B168^2,A!H$2+A!H$3*(A!H$3/(-2*A!H$4))+A!H$3*A!H$3/(4*A!H$4)) -> 3056.137947 | E168: =A!I$2+A!I$3*EXP(A!I$4*B168) -> 3067.61737 | F168: =IF((A!J$2+A!J$3*B168)<A!J$4,A!J$2+A!J$3*B168,A!J$4) -> 3038.99947 | G168: =IF(B168<A!K$4,A!K$2+A!K$3*(3*B168/(2*A!K$4)-0.5*(B168/A!K$4)^3),A!K$3+A!K$2) -> 3046.318579 | H168: =(C168*A!$G$5+'C'!D168*A!$H$5+'C'!E168*A!$I$5+'C'!F168*A!$J$5+'C'!G168*A!$K$5)/SUM(A!$G$5:$K$5) -> 3048.13022
A169: 250 | B169: 120 | C169: =A!G$2+A!G$3*B169+A!G$4*B169^2 -> 3031.486113 | D169: =IF(B169<(A!H$3/(-2*A!H$4)),A!H$2+A!H$3*B169+A!H$4*B169^2,A!H$2+A!H$3*(A!H$3/(-2*A!H$4))+A!H$3*A!H$3/(4*A!H$4)) -> 3056.137947 | E169: =A!I$2+A!I$3*EXP(A!I$4*B169) -> 3067.61737 | F169: =IF((A!J$2+A!J$3*B169)<A!J$4,A!J$2+A!J$3*B169,A!J$4) -> 3038.99947 | G169: =IF(B169<A!K$4,A!K$2+A!K$3*(3*B169/(2*A!K$4)-0.5*(B169/A!K$4)^3),A!K$3+A!K$2) -> 3046.318579 | H169: =(C169*A!$G$5+'C'!D169*A!$H$5+'C'!E169*A!$I$5+'C'!F169*A!$J$5+'C'!G169*A!$K$5)/SUM(A!$G$5:$K$5) -> 3048.13022
A170: 252 | B170: 120 | C170: =A!G$2+A!G$3*B170+A!G$4*B170^2 -> 3031.486113 | D170: =IF(B170<(A!H$3/(-2*A!H$4)),A!H$2+A!H$3*B170+A!H$4*B170^2,A!H$2+A!H$3*(A!H$3/(-2*A!H$4))+A!H$3*A!H$3/(4*A!H$4)) -> 3056.137947 | E170: =A!I$2+A!I$3*EXP(A!I$4*B170) -> 3067.61737 | F170: =IF((A!J$2+A!J$3*B170)<A!J$4,A!J$2+A!J$3*B170,A!J$4) -> 3038.99947 | G170: =IF(B170<A!K$4,A!K$2+A!K$3*(3*B170/(2*A!K$4)-0.5*(B170/A!K$4)^3),A!K$3+A!K$2) -> 3046.318579 | H170: =(C170*A!$G$5+'C'!D170*A!$H$5+'C'!E170*A!$I$5+'C'!F170*A!$J$5+'C'!G170*A!$K$5)/SUM(A!$G$5:$K$5) -> 3048.13022
A171: 254 | B171: 120 | C171: =A!G$2+A!G$3*B171+A!G$4*B171^2 -> 3031.486113 | D171: =IF(B171<(A!H$3/(-2*A!H$4)),A!H$2+A!H$3*B171+A!H$4*B171^2,A!H$2+A!H$3*(A!H$3/(-2*A!H$4))+A!H$3*A!H$3/(4*A!H$4)) -> 3056.137947 | E171: =A!I$2+A!I$3*EXP(A!I$4*B171) -> 3067.61737 | F171: =IF((A!J$2+A!J$3*B171)<A!J$4,A!J$2+A!J$3*B171,A!J$4) -> 3038.99947 | G171: =IF(B171<A!K$4,A!K$2+A!K$3*(3*B171/(2*A!K$4)-0.5*(B171/A!K$4)^3),A!K$3+A!K$2) -> 3046.318579 | H171: =(C171*A!$G$5+'C'!D171*A!$H$5+'C'!E171*A!$I$5+'C'!F171*A!$J$5+'C'!G171*A!$K$5)/SUM(A!$G$5:$K$5) -> 3048.13022
A172: 256 | B172: 120 | C172: =A!G$2+A!G$3*B172+A!G$4*B172^2 -> 3031.486113 | D172: =IF(B172<(A!H$3/(-2*A!H$4)),A!H$2+A!H$3*B172+A!H$4*B172^2,A!H$2+A!H$3*(A!H$3/(-2*A!H$4))+A!H$3*A!H$3/(4*A!H$4)) -> 3056.137947 | E172: =A!I$2+A!I$3*EXP(A!I$4*B172) -> 3067.61737 | F172: =IF((A!J$2+A!J$3*B172)<A!J$4,A!J$2+A!J$3*B172,A!J$4) -> 3038.99947 | G172: =IF(B172<A!K$4,A!K$2+A!K$3*(3*B172/(2*A!K$4)-0.5*(B172/A!K$4)^3),A!K$3+A!K$2) -> 3046.318579 | H172: =(C172*A!$G$5+'C'!D172*A!$H$5+'C'!E172*A!$I$5+'C'!F172*A!$J$5+'C'!G172*A!$K$5)/SUM(A!$G$5:$K$5) -> 3048.13022
A173: 258 | B173: =IF(A173<MAX($M$44),A173,MAX($M$44)) -> 120 | C173: =A!G$2+A!G$3*B173+A!G$4*B173^2 -> 3031.486113 | D173: =IF(B173<(A!H$3/(-2*A!H$4)),A!H$2+A!H$3*B173+A!H$4*B173^2,A!H$2+A!H$3*(A!H$3/(-2*A!H$4))+A!H$3*A!H$3/(4*A!H$4)) -> 3056.137947 | E173: =A!I$2+A!I$3*EXP(A!I$4*B173) -> 3067.61737 | F173: =IF((A!J$2+A!J$3*B173)<A!J$4,A!J$2+A!J$3*B173,A!J$4) -> 3038.99947 | G173: =IF(B173<A!K$4,A!K$2+A!K$3*(3*B173/(2*A!K$4)-0.5*(B173/A!K$4)^3),A!K$3+A!K$2) -> 3046.318579 | H173: =(C173*A!$G$5+'C'!D173*A!$H$5+'C'!E173*A!$I$5+'C'!F173*A!$J$5+'C'!G173*A!$K$5)/SUM(A!$G$5:$K$5) -> 3048.13022
A174: 260 | B174: 120 | C174: =A!G$2+A!G$3*B174+A!G$4*B174^2 -> 3031.486113 | D174: =IF(B174<(A!H$3/(-2*A!H$4)),A!H$2+A!H$3*B174+A!H$4*B174^2,A!H$2+A!H$3*(A!H$3/(-2*A!H$4))+A!H$3*A!H$3/(4*A!H$4)) -> 3056.137947 | E174: =A!I$2+A!I$3*EXP(A!I$4*B174) -> 3067.61737 | F174: =IF((A!J$2+A!J$3*B174)<A!J$4,A!J$2+A!J$3*B174,A!J$4) -> 3038.99947 | G174: =IF(B174<A!K$4,A!K$2+A!K$3*(3*B174/(2*A!K$4)-0.5*(B174/A!K$4)^3),A!K$3+A!K$2) -> 3046.318579 | H174: =(C174*A!$G$5+'C'!D174*A!$H$5+'C'!E174*A!$I$5+'C'!F174*A!$J$5+'C'!G174*A!$K$5)/SUM(A!$G$5:$K$5) -> 3048.13022
A175: 262 | B175: 120 | C175: =A!G$2+A!G$3*B175+A!G$4*B175^2 -> 3031.486113 | D175: =IF(B175<(A!H$3/(-2*A!H$4)),A!H$2+A!H$3*B175+A!H$4*B175^2,A!H$2+A!H$3*(A!H$3/(-2*A!H$4))+A!H$3*A!H$3/(4*A!H$4)) -> 3056.137947 | E175: =A!I$2+A!I$3*EXP(A!I$4*B175) -> 3067.61737 | F175: =IF((A!J$2+A!J$3*B175)<A!J$4,A!J$2+A!J$3*B175,A!J$4) -> 3038.99947 | G175: =IF(B175<A!K$4,A!K$2+A!K$3*(3*B175/(2*A!K$4)-0.5*(B175/A!K$4)^3),A!K$3+A!K$2) -> 3046.318579 | H175: =(C175*A!$G$5+'C'!D175*A!$H$5+'C'!E175*A!$I$5+'C'!F175*A!$J$5+'C'!G175*A!$K$5)/SUM(A!$G$5:$K$5) -> 3048.13022
A176: 264 | B176: 120 | C176: =A!G$2+A!G$3*B176+A!G$4*B176^2 -> 3031.486113 | D176: =IF(B176<(A!H$3/(-2*A!H$4)),A!H$2+A!H$3*B176+A!H$4*B176^2,A!H$2+A!H$3*(A!H$3/(-2*A!H$4))+A!H$3*A!H$3/(4*A!H$4)) -> 3056.137947 | E176: =A!I$2+A!I$3*EXP(A!I$4*B176) -> 3067.61737 | F176: =IF((A!J$2+A!J$3*B176)<A!J$4,A!J$2+A!J$3*B176,A!J$4) -> 3038.99947 | G176: =IF(B176<A!K$4,A!K$2+A!K$3*(3*B176/(2*A!K$4)-0.5*(B176/A!K$4)^3),A!K$3+A!K$2) -> 3046.318579 | H176: =(C176*A!$G$5+'C'!D176*A!$H$5+'C'!E176*A!$I$5+'C'!F176*A!$J$5+'C'!G176*A!$K$5)/SUM(A!$G$5:$K$5) -> 3048.13022
A177: 266 | B177: 120 | C177: =A!G$2+A!G$3*B177+A!G$4*B177^2 -> 3031.486113 | D177: =IF(B177<(A!H$3/(-2*A!H$4)),A!H$2+A!H$3*B177+A!H$4*B177^2,A!H$2+A!H$3*(A!H$3/(-2*A!H$4))+A!H$3*A!H$3/(4*A!H$4)) -> 3056.137947 | E177: =A!I$2+A!I$3*EXP(A!I$4*B177) -> 3067.61737 | F177: =IF((A!J$2+A!J$3*B177)<A!J$4,A!J$2+A!J$3*B177,A!J$4) -> 3038.99947 | G177: =IF(B177<A!K$4,A!K$2+A!K$3*(3*B177/(2*A!K$4)-0.5*(B177/A!K$4)^3),A!K$3+A!K$2) -> 3046.318579 | H177: =(C177*A!$G$5+'C'!D177*A!$H$5+'C'!E177*A!$I$5+'C'!F177*A!$J$5+'C'!G177*A!$K$5)/SUM(A!$G$5:$K$5) -> 3048.13022
A178: 268 | B178: 120 | C178: =A!G$2+A!G$3*B178+A!G$4*B178^2 -> 3031.486113 | D178: =IF(B178<(A!H$3/(-2*A!H$4)),A!H$2+A!H$3*B178+A!H$4*B178^2,A!H$2+A!H$3*(A!H$3/(-2*A!H$4))+A!H$3*A!H$3/(4*A!H$4)) -> 3056.137947 | E178: =A!I$2+A!I$3*EXP(A!I$4*B178) -> 3067.61737 | F178: =IF((A!J$2+A!J$3*B178)<A!J$4,A!J$2+A!J$3*B178,A!J$4) -> 3038.99947 | G178: =IF(B178<A!K$4,A!K$2+A!K$3*(3*B178/(2*A!K$4)-0.5*(B178/A!K$4)^3),A!K$3+A!K$2) -> 3046.318579 | H178: =(C178*A!$G$5+'C'!D178*A!$H$5+'C'!E178*A!$I$5+'C'!F178*A!$J$5+'C'!G178*A!$K$5)/SUM(A!$G$5:$K$5) -> 3048.13022
A179: 270 | B179: 120 | C179: =A!G$2+A!G$3*B179+A!G$4*B179^2 -> 3031.486113 | D179: =IF(B179<(A!H$3/(-2*A!H$4)),A!H$2+A!H$3*B179+A!H$4*B179^2,A!H$2+A!H$3*(A!H$3/(-2*A!H$4))+A!H$3*A!H$3/(4*A!H$4)) -> 3056.137947 | E179: =A!I$2+A!I$3*EXP(A!I$4*B179) -> 3067.61737 | F179: =IF((A!J$2+A!J$3*B179)<A!J$4,A!J$2+A!J$3*B179,A!J$4) -> 3038.99947 | G179: =IF(B179<A!K$4,A!K$2+A!K$3*(3*B179/(2*A!K$4)-0.5*(B179/A!K$4)^3),A!K$3+A!K$2) -> 3046.318579 | H179: =(C179*A!$G$5+'C'!D179*A!$H$5+'C'!E179*A!$I$5+'C'!F179*A!$J$5+'C'!G179*A!$K$5)/SUM(A!$G$5:$K$5) -> 3048.13022
A180: 272 | B180: 120 | C180: =A!G$2+A!G$3*B180+A!G$4*B180^2 -> 3031.486113 | D180: =IF(B180<(A!H$3/(-2*A!H$4)),A!H$2+A!H$3*B180+A!H$4*B180^2,A!H$2+A!H$3*(A!H$3/(-2*A!H$4))+A!H$3*A!H$3/(4*A!H$4)) -> 3056.137947 | E180: =A!I$2+A!I$3*EXP(A!I$4*B180) -> 3067.61737 | F180: =IF((A!J$2+A!J$3*B180)<A!J$4,A!J$2+A!J$3*B180,A!J$4) -> 3038.99947 | G180: =IF(B180<A!K$4,A!K$2+A!K$3*(3*B180/(2*A!K$4)-0.5*(B180/A!K$4)^3),A!K$3+A!K$2) -> 3046.318579 | H180: =(C180*A!$G$5+'C'!D180*A!$H$5+'C'!E180*A!$I$5+'C'!F180*A!$J$5+'C'!G180*A!$K$5)/SUM(A!$G$5:$K$5) -> 3048.13022
A181: 274 | B181: 120 | C181: =A!G$2+A!G$3*B181+A!G$4*B181^2 -> 3031.486113 | D181: =IF(B181<(A!H$3/(-2*A!H$4)),A!H$2+A!H$3*B181+A!H$4*B181^2,A!H$2+A!H$3*(A!H$3/(-2*A!H$4))+A!H$3*A!H$3/(4*A!H$4)) -> 3056.137947 | E181: =A!I$2+A!I$3*EXP(A!I$4*B181) -> 3067.61737 | F181: =IF((A!J$2+A!J$3*B181)<A!J$4,A!J$2+A!J$3*B181,A!J$4) -> 3038.99947 | G181: =IF(B181<A!K$4,A!K$2+A!K$3*(3*B181/(2*A!K$4)-0.5*(B181/A!K$4)^3),A!K$3+A!K$2) -> 3046.318579 | H181: =(C181*A!$G$5+'C'!D181*A!$H$5+'C'!E181*A!$I$5+'C'!F181*A!$J$5+'C'!G181*A!$K$5)/SUM(A!$G$5:$K$5) -> 3048.13022
A182: 276 | B182: 120 | C182: =A!G$2+A!G$3*B182+A!G$4*B182^2 -> 3031.486113 | D182: =IF(B182<(A!H$3/(-2*A!H$4)),A!H$2+A!H$3*B182+A!H$4*B182^2,A!H$2+A!H$3*(A!H$3/(-2*A!H$4))+A!H$3*A!H$3/(4*A!H$4)) -> 3056.137947 | E182: =A!I$2+A!I$3*EXP(A!I$4*B182) -> 3067.61737 | F182: =IF((A!J$2+A!J$3*B182)<A!J$4,A!J$2+A!J$3*B182,A!J$4) -> 3038.99947 | G182: =IF(B182<A!K$4,A!K$2+A!K$3*(3*B182/(2*A!K$4)-0.5*(B182/A!K$4)^3),A!K$3+A!K$2) -> 3046.318579 | H182: =(C182*A!$G$5+'C'!D182*A!$H$5+'C'!E182*A!$I$5+'C'!F182*A!$J$5+'C'!G182*A!$K$5)/SUM(A!$G$5:$K$5) -> 3048.13022
A183: 278 | B183: 120 | C183: =A!G$2+A!G$3*B183+A!G$4*B183^2 -> 3031.486113 | D183: =IF(B183<(A!H$3/(-2*A!H$4)),A!H$2+A!H$3*B183+A!H$4*B183^2,A!H$2+A!H$3*(A!H$3/(-2*A!H$4))+A!H$3*A!H$3/(4*A!H$4)) -> 3056.137947 | E183: =A!I$2+A!I$3*EXP(A!I$4*B183) -> 3067.61737 | F183: =IF((A!J$2+A!J$3*B183)<A!J$4,A!J$2+A!J$3*B183,A!J$4) -> 3038.99947 | G183: =IF(B183<A!K$4,A!K$2+A!K$3*(3*B183/(2*A!K$4)-0.5*(B183/A!K$4)^3),A!K$3+A!K$2) -> 3046.318579 | H183: =(C183*A!$G$5+'C'!D183*A!$H$5+'C'!E183*A!$I$5+'C'!F183*A!$J$5+'C'!G183*A!$K$5)/SUM(A!$G$5:$K$5) -> 3048.13022
A184: 280 | B184: 120 | C184: =A!G$2+A!G$3*B184+A!G$4*B184^2 -> 3031.486113 | D184: =IF(B184<(A!H$3/(-2*A!H$4)),A!H$2+A!H$3*B184+A!H$4*B184^2,A!H$2+A!H$3*(A!H$3/(-2*A!H$4))+A!H$3*A!H$3/(4*A!H$4)) -> 3056.137947 | E184: =A!I$2+A!I$3*EXP(A!I$4*B184) -> 3067.61737 | F184: =IF((A!J$2+A!J$3*B184)<A!J$4,A!J$2+A!J$3*B184,A!J$4) -> 3038.99947 | G184: =IF(B184<A!K$4,A!K$2+A!K$3*(3*B184/(2*A!K$4)-0.5*(B184/A!K$4)^3),A!K$3+A!K$2) -> 3046.318579 | H184: =(C184*A!$G$5+'C'!D184*A!$H$5+'C'!E184*A!$I$5+'C'!F184*A!$J$5+'C'!G184*A!$K$5)/SUM(A!$G$5:$K$5) -> 3048.13022
A185: 282 | B185: 120 | C185: =A!G$2+A!G$3*B185+A!G$4*B185^2 -> 3031.486113 | D185: =IF(B185<(A!H$3/(-2*A!H$4)),A!H$2+A!H$3*B185+A!H$4*B185^2,A!H$2+A!H$3*(A!H$3/(-2*A!H$4))+A!H$3*A!H$3/(4*A!H$4)) -> 3056.137947 | E185: =A!I$2+A!I$3*EXP(A!I$4*B185) -> 3067.61737 | F185: =IF((A!J$2+A!J$3*B185)<A!J$4,A!J$2+A!J$3*B185,A!J$4) -> 3038.99947 | G185: =IF(B185<A!K$4,A!K$2+A!K$3*(3*B185/(2*A!K$4)-0.5*(B185/A!K$4)^3),A!K$3+A!K$2) -> 3046.318579 | H185: =(C185*A!$G$5+'C'!D185*A!$H$5+'C'!E185*A!$I$5+'C'!F185*A!$J$5+'C'!G185*A!$K$5)/SUM(A!$G$5:$K$5) -> 3048.13022
A186: 284 | B186: 120 | C186: =A!G$2+A!G$3*B186+A!G$4*B186^2 -> 3031.486113 | D186: =IF(B186<(A!H$3/(-2*A!H$4)),A!H$2+A!H$3*B186+A!H$4*B186^2,A!H$2+A!H$3*(A!H$3/(-2*A!H$4))+A!H$3*A!H$3/(4*A!H$4)) -> 3056.137947 | E186: =A!I$2+A!I$3*EXP(A!I$4*B186) -> 3067.61737 | F186: =IF((A!J$2+A!J$3*B186)<A!J$4,A!J$2+A!J$3*B186,A!J$4) -> 3038.99947 | G186: =IF(B186<A!K$4,A!K$2+A!K$3*(3*B186/(2*A!K$4)-0.5*(B186/A!K$4)^3),A!K$3+A!K$2) -> 3046.318579 | H186: =(C186*A!$G$5+'C'!D186*A!$H$5+'C'!E186*A!$I$5+'C'!F186*A!$J$5+'C'!G186*A!$K$5)/SUM(A!$G$5:$K$5) -> 3048.13022
A187: 286 | B187: 120 | C187: =A!G$2+A!G$3*B187+A!G$4*B187^2 -> 3031.486113 | D187: =IF(B187<(A!H$3/(-2*A!H$4)),A!H$2+A!H$3*B187+A!H$4*B187^2,A!H$2+A!H$3*(A!H$3/(-2*A!H$4))+A!H$3*A!H$3/(4*A!H$4)) -> 3056.137947 | E187: =A!I$2+A!I$3*EXP(A!I$4*B187) -> 3067.61737 | F187: =IF((A!J$2+A!J$3*B187)<A!J$4,A!J$2+A!J$3*B187,A!J$4) -> 3038.99947 | G187: =IF(B187<A!K$4,A!K$2+A!K$3*(3*B187/(2*A!K$4)-0.5*(B187/A!K$4)^3),A!K$3+A!K$2) -> 3046.318579 | H187: =(C187*A!$G$5+'C'!D187*A!$H$5+'C'!E187*A!$I$5+'C'!F187*A!$J$5+'C'!G187*A!$K$5)/SUM(A!$G$5:$K$5) -> 3048.13022
A188: 288 | B188: 120 | C188: =A!G$2+A!G$3*B188+A!G$4*B188^2 -> 3031.486113 | D188: =IF(B188<(A!H$3/(-2*A!H$4)),A!H$2+A!H$3*B188+A!H$4*B188^2,A!H$2+A!H$3*(A!H$3/(-2*A!H$4))+A!H$3*A!H$3/(4*A!H$4)) -> 3056.137947 | E188: =A!I$2+A!I$3*EXP(A!I$4*B188) -> 3067.61737 | F188: =IF((A!J$2+A!J$3*B188)<A!J$4,A!J$2+A!J$3*B188,A!J$4) -> 3038.99947 | G188: =IF(B188<A!K$4,A!K$2+A!K$3*(3*B188/(2*A!K$4)-0.5*(B188/A!K$4)^3),A!K$3+A!K$2) -> 3046.318579 | H188: =(C188*A!$G$5+'C'!D188*A!$H$5+'C'!E188*A!$I$5+'C'!F188*A!$J$5+'C'!G188*A!$K$5)/SUM(A!$G$5:$K$5) -> 3048.13022
A189: 290 | B189: 120 | C189: =A!G$2+A!G$3*B189+A!G$4*B189^2 -> 3031.486113 | D189: =IF(B189<(A!H$3/(-2*A!H$4)),A!H$2+A!H$3*B189+A!H$4*B189^2,A!H$2+A!H$3*(A!H$3/(-2*A!H$4))+A!H$3*A!H$3/(4*A!H$4)) -> 3056.137947 | E189: =A!I$2+A!I$3*EXP(A!I$4*B189) -> 3067.61737 | F189: =IF((A!J$2+A!J$3*B189)<A!J$4,A!J$2+A!J$3*B189,A!J$4) -> 3038.99947 | G189: =IF(B189<A!K$4,A!K$2+A!K$3*(3*B189/(2*A!K$4)-0.5*(B189/A!K$4)^3),A!K$3+A!K$2) -> 3046.318579 | H189: =(C189*A!$G$5+'C'!D189*A!$H$5+'C'!E189*A!$I$5+'C'!F189*A!$J$5+'C'!G189*A!$K$5)/SUM(A!$G$5:$K$5) -> 3048.13022
A190: 292 | B190: 120 | C190: =A!G$2+A!G$3*B190+A!G$4*B190^2 -> 3031.486113 | D190: =IF(B190<(A!H$3/(-2*A!H$4)),A!H$2+A!H$3*B190+A!H$4*B190^2,A!H$2+A!H$3*(A!H$3/(-2*A!H$4))+A!H$3*A!H$3/(4*A!H$4)) -> 3056.137947 | E190: =A!I$2+A!I$3*EXP(A!I$4*B190) -> 3067.61737 | F190: =IF((A!J$2+A!J$3*B190)<A!J$4,A!J$2+A!J$3*B190,A!J$4) -> 3038.99947 | G190: =IF(B190<A!K$4,A!K$2+A!K$3*(3*B190/(2*A!K$4)-0.5*(B190/A!K$4)^3),A!K$3+A!K$2) -> 3046.318579 | H190: =(C190*A!$G$5+'C'!D190*A!$H$5+'C'!E190*A!$I$5+'C'!F190*A!$J$5+'C'!G190*A!$K$5)/SUM(A!$G$5:$K$5) -> 3048.13022
A191: 294 | B191: 120 | C191: =A!G$2+A!G$3*B191+A!G$4*B191^2 -> 3031.486113 | D191: =IF(B191<(A!H$3/(-2*A!H$4)),A!H$2+A!H$3*B191+A!H$4*B191^2,A!H$2+A!H$3*(A!H$3/(-2*A!H$4))+A!H$3*A!H$3/(4*A!H$4)) -> 3056.137947 | E191: =A!I$2+A!I$3*EXP(A!I$4*B191) -> 3067.61737 | F191: =IF((A!J$2+A!J$3*B191)<A!J$4,A!J$2+A!J$3*B191,A!J$4) -> 3038.99947 | G191: =IF(B191<A!K$4,A!K$2+A!K$3*(3*B191/(2*A!K$4)-0.5*(B191/A!K$4)^3),A!K$3+A!K$2) -> 3046.318579 | H191: =(C191*A!$G$5+'C'!D191*A!$H$5+'C'!E191*A!$I$5+'C'!F191*A!$J$5+'C'!G191*A!$K$5)/SUM(A!$G$5:$K$5) -> 3048.13022
A192: 296 | B192: 120 | C192: =A!G$2+A!G$3*B192+A!G$4*B192^2 -> 3031.486113 | D192: =IF(B192<(A!H$3/(-2*A!H$4)),A!H$2+A!H$3*B192+A!H$4*B192^2,A!H$2+A!H$3*(A!H$3/(-2*A!H$4))+A!H$3*A!H$3/(4*A!H$4)) -> 3056.137947 | E192: =A!I$2+A!I$3*EXP(A!I$4*B192) -> 3067.61737 | F192: =IF((A!J$2+A!J$3*B192)<A!J$4,A!J$2+A!J$3*B192,A!J$4) -> 3038.99947 | G192: =IF(B192<A!K$4,A!K$2+A!K$3*(3*B192/(2*A!K$4)-0.5*(B192/A!K$4)^3),A!K$3+A!K$2) -> 3046.318579 | H192: =(C192*A!$G$5+'C'!D192*A!$H$5+'C'!E192*A!$I$5+'C'!F192*A!$J$5+'C'!G192*A!$K$5)/SUM(A!$G$5:$K$5) -> 3048.13022
A193: 298 | B193: 120 | C193: =A!G$2+A!G$3*B193+A!G$4*B193^2 -> 3031.486113 | D193: =IF(B193<(A!H$3/(-2*A!H$4)),A!H$2+A!H$3*B193+A!H$4*B193^2,A!H$2+A!H$3*(A!H$3/(-2*A!H$4))+A!H$3*A!H$3/(4*A!H$4)) -> 3056.137947 | E193: =A!I$2+A!I$3*EXP(A!I$4*B193) -> 3067.61737 | F193: =IF((A!J$2+A!J$3*B193)<A!J$4,A!J$2+A!J$3*B193,A!J$4) -> 3038.99947 | G193: =IF(B193<A!K$4,A!K$2+A!K$3*(3*B193/(2*A!K$4)-0.5*(B193/A!K$4)^3),A!K$3+A!K$2) -> 3046.318579 | H193: =(C193*A!$G$5+'C'!D193*A!$H$5+'C'!E193*A!$I$5+'C'!F193*A!$J$5+'C'!G193*A!$K$5)/SUM(A!$G$5:$K$5) -> 3048.13022
A194: 300 | B194: 120 | C194: =A!G$2+A!G$3*B194+A!G$4*B194^2 -> 3031.486113 | D194: =IF(B194<(A!H$3/(-2*A!H$4)),A!H$2+A!H$3*B194+A!H$4*B194^2,A!H$2+A!H$3*(A!H$3/(-2*A!H$4))+A!H$3*A!H$3/(4*A!H$4)) -> 3056.137947 | E194: =A!I$2+A!I$3*EXP(A!I$4*B194) -> 3067.61737 | F194: =IF((A!J$2+A!J$3*B194)<A!J$4,A!J$2+A!J$3*B194,A!J$4) -> 3038.99947 | G194: =IF(B194<A!K$4,A!K$2+A!K$3*(3*B194/(2*A!K$4)-0.5*(B194/A!K$4)^3),A!K$3+A!K$2) -> 3046.318579 | H194: =(C194*A!$G$5+'C'!D194*A!$H$5+'C'!E194*A!$I$5+'C'!F194*A!$J$5+'C'!G194*A!$K$5)/SUM(A!$G$5:$K$5) -> 3048.13022
A195: 302 | B195: 120 | C195: =A!G$2+A!G$3*B195+A!G$4*B195^2 -> 3031.486113 | D195: =IF(B195<(A!H$3/(-2*A!H$4)),A!H$2+A!H$3*B195+A!H$4*B195^2,A!H$2+A!H$3*(A!H$3/(-2*A!H$4))+A!H$3*A!H$3/(4*A!H$4)) -> 3056.137947 | E195: =A!I$2+A!I$3*EXP(A!I$4*B195) -> 3067.61737 | F195: =IF((A!J$2+A!J$3*B195)<A!J$4,A!J$2+A!J$3*B195,A!J$4) -> 3038.99947 | G195: =IF(B195<A!K$4,A!K$2+A!K$3*(3*B195/(2*A!K$4)-0.5*(B195/A!K$4)^3),A!K$3+A!K$2) -> 3046.318579 | H195: =(C195*A!$G$5+'C'!D195*A!$H$5+'C'!E195*A!$I$5+'C'!F195*A!$J$5+'C'!G195*A!$K$5)/SUM(A!$G$5:$K$5) -> 3048.13022
A196: 304 | B196: 120 | C196: =A!G$2+A!G$3*B196+A!G$4*B196^2 -> 3031.486113 | D196: =IF(B196<(A!H$3/(-2*A!H$4)),A!H$2+A!H$3*B196+A!H$4*B196^2,A!H$2+A!H$3*(A!H$3/(-2*A!H$4))+A!H$3*A!H$3/(4*A!H$4)) -> 3056.137947 | E196: =A!I$2+A!I$3*EXP(A!I$4*B196) -> 3067.61737 | F196: =IF((A!J$2+A!J$3*B196)<A!J$4,A!J$2+A!J$3*B196,A!J$4) -> 3038.99947 | G196: =IF(B196<A!K$4,A!K$2+A!K$3*(3*B196/(2*A!K$4)-0.5*(B196/A!K$4)^3),A!K$3+A!K$2) -> 3046.318579 | H196: =(C196*A!$G$5+'C'!D196*A!$H$5+'C'!E196*A!$I$5+'C'!F196*A!$J$5+'C'!G196*A!$K$5)/SUM(A!$G$5:$K$5) -> 3048.13022
A197: 306 | B197: 120 | C197: =A!G$2+A!G$3*B197+A!G$4*B197^2 -> 3031.486113 | D197: =IF(B197<(A!H$3/(-2*A!H$4)),A!H$2+A!H$3*B197+A!H$4*B197^2,A!H$2+A!H$3*(A!H$3/(-2*A!H$4))+A!H$3*A!H$3/(4*A!H$4)) -> 3056.137947 | E197: =A!I$2+A!I$3*EXP(A!I$4*B197) -> 3067.61737 | F197: =IF((A!J$2+A!J$3*B197)<A!J$4,A!J$2+A!J$3*B197,A!J$4) -> 3038.99947 | G197: =IF(B197<A!K$4,A!K$2+A!K$3*(3*B197/(2*A!K$4)-0.5*(B197/A!K$4)^3),A!K$3+A!K$2) -> 3046.318579 | H197: =(C197*A!$G$5+'C'!D197*A!$H$5+'C'!E197*A!$I$5+'C'!F197*A!$J$5+'C'!G197*A!$K$5)/SUM(A!$G$5:$K$5) -> 3048.13022
A198: 308 | B198: 120 | C198: =A!G$2+A!G$3*B198+A!G$4*B198^2 -> 3031.486113 | D198: =IF(B198<(A!H$3/(-2*A!H$4)),A!H$2+A!H$3*B198+A!H$4*B198^2,A!H$2+A!H$3*(A!H$3/(-2*A!H$4))+A!H$3*A!H$3/(4*A!H$4)) -> 3056.137947 | E198: =A!I$2+A!I$3*EXP(A!I$4*B198) -> 3067.61737 | F198: =IF((A!J$2+A!J$3*B198)<A!J$4,A!J$2+A!J$3*B198,A!J$4) -> 3038.99947 | G198: =IF(B198<A!K$4,A!K$2+A!K$3*(3*B198/(2*A!K$4)-0.5*(B198/A!K$4)^3),A!K$3+A!K$2) -> 3046.318579 | H198: =(C198*A!$G$5+'C'!D198*A!$H$5+'C'!E198*A!$I$5+'C'!F198*A!$J$5+'C'!G198*A!$K$5)/SUM(A!$G$5:$K$5) -> 3048.13022
A199: 310 | B199: 120 | C199: =A!G$2+A!G$3*B199+A!G$4*B199^2 -> 3031.486113 | D199: =IF(B199<(A!H$3/(-2*A!H$4)),A!H$2+A!H$3*B199+A!H$4*B199^2,A!H$2+A!H$3*(A!H$3/(-2*A!H$4))+A!H$3*A!H$3/(4*A!H$4)) -> 3056.137947 | E199: =A!I$2+A!I$3*EXP(A!I$4*B199) -> 3067.61737 | F199: =IF((A!J$2+A!J$3*B199)<A!J$4,A!J$2+A!J$3*B199,A!J$4) -> 3038.99947 | G199: =IF(B199<A!K$4,A!K$2+A!K$3*(3*B199/(2*A!K$4)-0.5*(B199/A!K$4)^3),A!K$3+A!K$2) -> 3046.318579 | H199: =(C199*A!$G$5+'C'!D199*A!$H$5+'C'!E199*A!$I$5+'C'!F199*A!$J$5+'C'!G199*A!$K$5)/SUM(A!$G$5:$K$5) -> 3048.13022
A200: 312 | B200: 120 | C200: =A!G$2+A!G$3*B200+A!G$4*B200^2 -> 3031.486113 | D200: =IF(B200<(A!H$3/(-2*A!H$4)),A!H$2+A!H$3*B200+A!H$4*B200^2,A!H$2+A!H$3*(A!H$3/(-2*A!H$4))+A!H$3*A!H$3/(4*A!H$4)) -> 3056.137947 | E200: =A!I$2+A!I$3*EXP(A!I$4*B200) -> 3067.61737 | F200: =IF((A!J$2+A!J$3*B200)<A!J$4,A!J$2+A!J$3*B200,A!J$4) -> 3038.99947 | G200: =IF(B200<A!K$4,A!K$2+A!K$3*(3*B200/(2*A!K$4)-0.5*(B200/A!K$4)^3),A!K$3+A!K$2) -> 3046.318579 | H200: =(C200*A!$G$5+'C'!D200*A!$H$5+'C'!E200*A!$I$5+'C'!F200*A!$J$5+'C'!G200*A!$K$5)/SUM(A!$G$5:$K$5) -> 3048.13022
A201: 314 | B201: 120 | C201: =A!G$2+A!G$3*B201+A!G$4*B201^2 -> 3031.486113 | D201: =IF(B201<(A!H$3/(-2*A!H$4)),A!H$2+A!H$3*B201+A!H$4*B201^2,A!H$2+A!H$3*(A!H$3/(-2*A!H$4))+A!H$3*A!H$3/(4*A!H$4)) -> 3056.137947 | E201: =A!I$2+A!I$3*EXP(A!I$4*B201) -> 3067.61737 | F201: =IF((A!J$2+A!J$3*B201)<A!J$4,A!J$2+A!J$3*B201,A!J$4) -> 3038.99947 | G201: =IF(B201<A!K$4,A!K$2+A!K$3*(3*B201/(2*A!K$4)-0.5*(B201/A!K$4)^3),A!K$3+A!K$2) -> 3046.318579 | H201: =(C201*A!$G$5+'C'!D201*A!$H$5+'C'!E201*A!$I$5+'C'!F201*A!$J$5+'C'!G201*A!$K$5)/SUM(A!$G$5:$K$5) -> 3048.13022
A202: 316 | B202: 120 | C202: =A!G$2+A!G$3*B202+A!G$4*B202^2 -> 3031.486113 | D202: =IF(B202<(A!H$3/(-2*A!H$4)),A!H$2+A!H$3*B202+A!H$4*B202^2,A!H$2+A!H$3*(A!H$3/(-2*A!H$4))+A!H$3*A!H$3/(4*A!H$4)) -> 3056.137947 | E202: =A!I$2+A!I$3*EXP(A!I$4*B202) -> 3067.61737 | F202: =IF((A!J$2+A!J$3*B202)<A!J$4,A!J$2+A!J$3*B202,A!J$4) -> 3038.99947 | G202: =IF(B202<A!K$4,A!K$2+A!K$3*(3*B202/(2*A!K$4)-0.5*(B202/A!K$4)^3),A!K$3+A!K$2) -> 3046.318579 | H202: =(C202*A!$G$5+'C'!D202*A!$H$5+'C'!E202*A!$I$5+'C'!F202*A!$J$5+'C'!G202*A!$K$5)/SUM(A!$G$5:$K$5) -> 3048.13022
A203: 318 | B203: 120 | C203: =A!G$2+A!G$3*B203+A!G$4*B203^2 -> 3031.486113 | D203: =IF(B203<(A!H$3/(-2*A!H$4)),A!H$2+A!H$3*B203+A!H$4*B203^2,A!H$2+A!H$3*(A!H$3/(-2*A!H$4))+A!H$3*A!H$3/(4*A!H$4)) -> 3056.137947 | E203: =A!I$2+A!I$3*EXP(A!I$4*B203) -> 3067.61737 | F203: =IF((A!J$2+A!J$3*B203)<A!J$4,A!J$2+A!J$3*B203,A!J$4) -> 3038.99947 | G203: =IF(B203<A!K$4,A!K$2+A!K$3*(3*B203/(2*A!K$4)-0.5*(B203/A!K$4)^3),A!K$3+A!K$2) -> 3046.318579 | H203: =(C203*A!$G$5+'C'!D203*A!$H$5+'C'!E203*A!$I$5+'C'!F203*A!$J$5+'C'!G203*A!$K$5)/SUM(A!$G$5:$K$5) -> 3048.13022
... 91 more rows
